id,date,fund,department,account,vendor,checknumber,amount,fy
fy2018-39860,2018-04-17,"Airport Fund",Airport,"Electrical Services","DOMINION ENERGY VIRGINIA",839213.00,$664.72,2018
fy2018-39861,2018-04-03,"Airport Fund",Airport,"Repair & Maintenance Services","ATLANTIC FENCE SUPPLY",838280.00,$175.40,2018
fy2018-39862,2018-04-09,"Airport Fund",Airport,"Repair & Maintenance Services","ATLANTIC FENCE",10318.00,$195.87,2018
fy2018-39863,2018-04-24,"Airport Fund",Airport,"Repair & Maintenance Services","DOMINION DOOR SOLUTIONS INC",839597.00,$592.75,2018
fy2018-39864,2018-04-17,"Airport Fund",Airport,"Repair & Maintenance Services","ASHLAND ACE HARDWARE",839116.00,$11.99,2018
fy2018-39865,2018-04-03,"Airport CIP Fund","Airport CIP",Construction,"DELTA AIRPORT CONSULTANTS INC",838344.00,"$11,137.70",2018
fy2018-39866,2018-04-10,"General Fund","Animal Control","Animal Medical Care","CHENAULT VETERINARY HOSPITAL",838652.00,$345.75,2018
fy2018-39867,2018-04-10,"General Fund","Animal Control","Animal Medical Care","TREASURER OF VIRGINIA",838853.00,$406.00,2018
fy2018-39868,2018-04-17,"General Fund","Animal Control","Animal Medical Care","CHENAULT VETERINARY HOSPITAL",839169.00,$321.88,2018
fy2018-39869,2018-04-09,"General Fund","Animal Control","Animal Sterilizations","BANDITS ADOPTION & RESCUE OF K-9S INC",837454.00,-$323.00,2018
fy2018-39870,2018-04-10,"General Fund","Animal Control","Animal Sterilizations","BANDITS ADOPTION & RESCUE OF K-9S INC",838624.00,$806.75,2018
fy2018-39871,2018-04-11,"General Fund","Animal Control","Animal Sterilizations","BANDITS ADOPTION & RESCUE OF K-9S INC",838916.00,$323.00,2018
fy2018-39872,2018-04-17,"General Fund","Animal Control","Animal Sterilizations","BANDITS ADOPTION & RESCUE OF K-9S INC",839126.00,$399.67,2018
fy2018-39873,2018-04-09,"General Fund","Animal Control","Contractual Services",ACCESS-QUICKPA,10318.00,$183.52,2018
fy2018-39874,2018-04-17,"General Fund","Animal Control","Contractual Services","BUG BUSTERS PEST CONTROL SERVICES INC",839147.00,$20.00,2018
fy2018-39875,2018-04-17,"General Fund","Animal Control","Contractual Services","DILLON'S SEPTIC TANK SVC",839210.00,$205.00,2018
fy2018-39876,2018-04-10,"General Fund","Animal Control","Custodial Svcs Contracts","PRISTINE SERVICES INC",838796.00,$421.47,2018
fy2018-39877,2018-04-03,"General Fund","Animal Control","Electrical Services","DOMINION ENERGY VIRGINIA",838354.00,"$1,530.79",2018
fy2018-39878,2018-04-10,"General Fund","Animal Control","Heating Services","PAPCO, INC",838790.00,$805.13,2018
fy2018-39879,2018-04-10,"General Fund","Animal Control","Lease & Rentals Equipment","Webster Integrated Technologies Corp (WIT Corp)",838883.00,$198.42,2018
fy2018-39880,2018-04-10,"General Fund","Animal Control","Professional Services","CHENAULT VETERINARY HOSPITAL",838653.00,$9.75,2018
fy2018-39881,2018-04-10,"General Fund","Animal Control","Professional Services","CHENAULT VETERINARY HOSPITAL",838654.00,$6.00,2018
fy2018-39882,2018-04-17,"General Fund","Animal Control","Professional Services","CHENAULT VETERINARY HOSPITAL",839170.00,$305.94,2018
fy2018-39883,2018-04-10,"General Fund","Animal Control","Professional Services","CHENAULT VETERINARY HOSPITAL",838655.00,$150.74,2018
fy2018-39884,2018-04-17,"General Fund","Animal Control","Small Capital Outlay","SCHROER MANUFACTURING COMPANY",839419.00,"$8,224.00",2018
fy2018-39885,2018-04-10,"General Fund","Animal Control","Supplies Food","DIAMOND SPRINGS WATER CO",838678.00,$36.00,2018
fy2018-39886,2018-04-09,"General Fund","Animal Control","Supplies Laundry HSKP & Jan","RUTHERFORD JANITOR SUPPLY CORPORATION",837695.00,"-$2,267.06",2018
fy2018-39887,2018-04-11,"General Fund","Animal Control","Supplies Laundry HSKP & Jan","RUTHERFORD JANITOR SUPPLY CORPORATION",839052.00,"$2,267.06",2018
fy2018-39888,2018-04-10,"General Fund","Animal Control","Supplies Laundry HSKP & Jan","RUTHERFORD JANITOR SUPPLY CORPORATION",838816.00,$288.80,2018
fy2018-39889,2018-04-17,"General Fund","Animal Control","Supplies Laundry HSKP & Jan","BUCKEYE INTERNATIONAL INC",839146.00,$250.10,2018
fy2018-39890,2018-04-09,"General Fund","Animal Control","Supplies Public Safety","THE HOME DEPOT",10318.00,$45.11,2018
fy2018-39891,2018-04-09,"General Fund","Animal Control","Supplies Public Safety","PETCO 3801",10318.00,$49.98,2018
fy2018-39892,2018-04-10,"General Fund","Animal Control","Supplies Public Safety","ASHLAND ACE HARDWARE",838617.00,$54.37,2018
fy2018-39893,2018-04-17,"General Fund","Animal Control","Supplies Public Safety","ASHLAND ACE HARDWARE",839116.00,$16.98,2018
fy2018-39894,2018-04-09,"General Fund","Animal Control","Telecomm Wireless","VZWRLSS MY VZ",10318.00,$599.82,2018
fy2018-39895,2018-04-17,"General Fund","Animal Control","Trash Removal & Recycling","CENTRAL VIRGINIA WASTE MANAGEMENT AUTHORITY",839165.00,$99.82,2018
fy2018-39896,2018-04-10,"General Fund","Animal Control","Uniforms & Wearing Apparel","GALLS LLC",838706.00,$490.01,2018
fy2018-39897,2018-04-17,"General Fund","Animal Control","Uniforms & Wearing Apparel","GALLS LLC",839245.00,$40.76,2018
fy2018-39898,2018-04-09,"General Fund",Assessor,"Supplies Office","DMI  DELL HLTH",10318.00,$161.49,2018
fy2018-39899,2018-04-09,"General Fund",Assessor,"Telecomm Wireless","VZWRLSS MY VZ",10318.00,$50.16,2018
fy2018-39900,2018-04-17,"General Fund","Board of Supervisors",Advertising,"RICHMOND SUBURBAN NEWSPAPERS",839396.00,"$3,258.00",2018
fy2018-39901,2018-04-10,"General Fund","Board of Supervisors","Contractual Services","SUPERIOR SOUND INC",838838.00,$720.00,2018
fy2018-39902,2018-04-09,"General Fund","Board of Supervisors","Educational Training","EB RICHMOND HI",10318.00,$35.00,2018
fy2018-39903,2018-04-09,"General Fund","Board of Supervisors","Maintenance Service Contracts","THE WINVALE GR",10318.00,$920.21,2018
fy2018-39904,2018-04-17,"General Fund","Board of Supervisors","Mileage Reimbursement","HAZZARD WAYNE THOMAS",839277.00,$260.96,2018
fy2018-39905,2018-04-17,"General Fund","Board of Supervisors","Mileage Reimbursement","KELLY-WIECEK ANGELA",839309.00,$137.71,2018
fy2018-39906,2018-04-24,"General Fund","Board of Supervisors","Mileage Reimbursement","PETERSON WILLIAM CANOVA",839727.00,$320.46,2018
fy2018-39907,2018-04-09,"General Fund","Board of Supervisors","Professional Services","RICHMOND EXPRE",10318.00,$560.00,2018
fy2018-39908,2018-04-09,"General Fund","Board of Supervisors","Subsistence & Lodging","THE HANOVER CA",10318.00,$24.85,2018
fy2018-39909,2018-04-10,"General Fund","Board of Supervisors","Subsistence & Lodging","PETTY CASH CUSTODIAN",838791.00,$2.11,2018
fy2018-39910,2018-04-09,"General Fund","Board of Supervisors","Supplies Office","THE SUPPLY ROO",10318.00,"$1,098.30",2018
fy2018-39911,2018-04-09,"General Fund","Building Inspections","Books & Subscriptions","STRUCALC  INC",10318.00,$345.10,2018
fy2018-39912,2018-04-09,"General Fund","Building Inspections","Dues & Memberships",NAARSO,10318.00,$130.00,2018
fy2018-39913,2018-04-17,"General Fund","Building Inspections","Dues & Memberships","INTERNATIONAL ASSOC OF ELECTRICAL INSPECTORS",839295.00,$240.00,2018
fy2018-39914,2018-04-09,"General Fund","Building Inspections","Educational Training","INT'L CODE COU",10318.00,$940.00,2018
fy2018-39915,2018-04-09,"General Fund","Building Inspections","Small Tools","JIREH INTERNAT",10318.00,$39.90,2018
fy2018-39916,2018-04-09,"General Fund","Building Inspections","Small Tools","THE HOME DEPOT",10318.00,$277.16,2018
fy2018-39917,2018-04-09,"General Fund","Building Inspections","Small Tools",Amazon.com,10318.00,$54.66,2018
fy2018-39918,2018-04-09,"General Fund","Building Inspections","Software Services","SUPERION LLC",837720.00,-$150.00,2018
fy2018-39919,2018-04-11,"General Fund","Building Inspections","Software Services","SUPERION LLC",839071.00,$150.00,2018
fy2018-39920,2018-04-09,"General Fund","Building Inspections",Storage,ACCESS-QUICKPA,10318.00,$14.39,2018
fy2018-39921,2018-04-10,"General Fund","Building Inspections","Supplies Gas Grease & Oil","PETTY CASH CUSTODIAN",838791.00,$10.00,2018
fy2018-39922,2018-04-09,"General Fund","Building Inspections","Supplies Office","AMAZON MKTPLAC",10318.00,$24.62,2018
fy2018-39923,2018-04-09,"General Fund","Building Inspections","Supplies Office","THE SUPPLY ROO",10318.00,$84.04,2018
fy2018-39924,2018-04-09,"General Fund","Building Inspections","Telecomm Wireless","VZWRLSS MY VZ",10318.00,$641.61,2018
fy2018-39925,2018-04-09,"General Fund","Building Inspections","Uniforms & Wearing Apparel","JIREH INTERNAT",10318.00,"$1,998.05",2018
fy2018-39926,2018-04-09,"General Fund","Circuit Court","Books & Subscriptions","BHM RTD PAPER",10318.00,$157.92,2018
fy2018-39927,2018-04-09,"General Fund","Circuit Court","Books & Subscriptions","D J WALL ST JO",10318.00,$110.97,2018
fy2018-39928,2018-04-03,"General Fund","Clerk of the Circuit Court","Court-Appointed Attorney Fee","WELLS, LINWOOD T III",838567.00,$158.00,2018
fy2018-39929,2018-04-03,"General Fund","Clerk of the Circuit Court","Court-Appointed Attorney Fee","COTV LAW OFFICE PLLC",838333.00,$720.00,2018
fy2018-39930,2018-04-17,"General Fund","Clerk of the Circuit Court","Court-Appointed Attorney Fee","MCCAUL, MARTIN, EVANS AND COOK, P. C.",839335.00,$158.00,2018
fy2018-39931,2018-04-17,"General Fund","Clerk of the Circuit Court","Court-Appointed Attorney Fee","COLEMAN W STEPHEN",839181.00,$120.00,2018
fy2018-39932,2018-04-17,"General Fund","Clerk of the Circuit Court","Court-Appointed Attorney Fee","CLOWER, MICHAEL D",839178.00,$158.00,2018
fy2018-39933,2018-04-17,"General Fund","Clerk of the Circuit Court","Court-Appointed Attorney Fee","RAILSIDE LAW GROUP PLLC",839385.00,$135.00,2018
fy2018-39934,2018-04-17,"General Fund","Clerk of the Circuit Court","Lease & Rentals Equipment","XEROX CORPORATION",839511.00,$604.24,2018
fy2018-39935,2018-04-03,"General Fund","Clerk of the Circuit Court","Maintenance Service Contracts","TREASURER OF VIRGINIA",838538.00,"$7,165.00",2018
fy2018-39936,2018-04-10,"General Fund","Clerk of the Circuit Court","Maintenance Service Contracts","TREASURER OF VIRGINIA",838851.00,"$2,480.00",2018
fy2018-39937,2018-04-03,"General Fund","Clerk of the Circuit Court",Postage,"C W WARTHEN CO INC",838303.00,$25.84,2018
fy2018-39938,2018-04-09,"General Fund","Clerk of the Circuit Court",Postage,"WS PACKAGING G",10318.00,$38.24,2018
fy2018-39939,2018-04-09,"General Fund","Clerk of the Circuit Court","Professional Services","IRON MOUNTAIN",10318.00,$770.28,2018
fy2018-39940,2018-04-03,"General Fund","Clerk of the Circuit Court","Supplies Office","C W WARTHEN CO INC",838303.00,$480.00,2018
fy2018-39941,2018-04-09,"General Fund","Clerk of the Circuit Court","Supplies Office",Amazon.com,10318.00,$19.98,2018
fy2018-39942,2018-04-09,"General Fund","Clerk of the Circuit Court","Supplies Office","OFFICE DEPOT #",10318.00,$212.37,2018
fy2018-39943,2018-04-09,"General Fund","Clerk of the Circuit Court","Supplies Office","WS PACKAGING G",10318.00,$523.03,2018
fy2018-39944,2018-04-09,"General Fund","Clerk of the Circuit Court","Telecomm Landline",COMCAST,10318.00,$125.64,2018
fy2018-39945,2018-04-17,"County Improvements Fund","Commissioner of the Revenue","Contractual Services","AVENITY INC",839121.00,$517.00,2018
fy2018-39946,2018-04-10,"General Fund","Commissioner of the Revenue","Educational Training","HARRIS T SCOTT",838727.00,$197.94,2018
fy2018-39947,2018-04-09,"General Fund","Commissioner of the Revenue","Furniture & Fixtures Addtl","AMAZON MKTPLAC",10318.00,"$1,951.62",2018
fy2018-39948,2018-04-10,"General Fund","Commissioner of the Revenue","Maintenance Service Contracts","ACE UNIFORM VIRGINIA INC",838602.00,$39.12,2018
fy2018-39949,2018-04-17,"General Fund","Commissioner of the Revenue","Maintenance Service Contracts","ACE UNIFORM VIRGINIA INC",839100.00,$39.12,2018
fy2018-39950,2018-04-24,"General Fund","Commissioner of the Revenue","Maintenance Service Contracts","ACE UNIFORM VIRGINIA INC",839516.00,$39.12,2018
fy2018-39951,2018-04-17,"General Fund","Commissioner of the Revenue","Mileage Reimbursement","BAGBY THOMAS L",839124.00,$141.16,2018
fy2018-39952,2018-04-09,"General Fund","Commissioner of the Revenue",Postage,DATAMATX,837522.00,-$627.82,2018
fy2018-39953,2018-04-17,"General Fund","Commissioner of the Revenue",Postage,DATAMATX,839201.00,$989.72,2018
fy2018-39954,2018-04-11,"General Fund","Commissioner of the Revenue",Postage,DATAMATX,838958.00,$627.82,2018
fy2018-39955,2018-04-10,"General Fund","Commissioner of the Revenue","Printing & Binding","PRO IMAGE PRINTING",838797.00,$900.00,2018
fy2018-39956,2018-04-17,"General Fund","Commissioner of the Revenue","Printing & Binding",DATAMATX,839200.00,$828.87,2018
fy2018-39957,2018-04-24,"General Fund","Commissioner of the Revenue","Professional Services","EXPERIS IT SERVICES US LLC",839609.00,"$12,820.00",2018
fy2018-39958,2018-04-09,"General Fund","Commissioner of the Revenue","Supplies Office","THE SUPPLY ROO",10318.00,$378.98,2018
fy2018-39959,2018-04-09,"General Fund","Commissioner of the Revenue","Supplies Office","DMI  DELL HLTH",10318.00,$928.08,2018
fy2018-39960,2018-04-09,"General Fund","Commissioner of the Revenue","Supplies Office","NATIONAL PEN C",10318.00,$227.94,2018
fy2018-39961,2018-04-09,"General Fund","Commissioner of the Revenue","Supplies Office","HELLO DIRECT",10318.00,$282.61,2018
fy2018-39962,2018-04-09,"General Fund","Commonwealth's Attorney","Books & Subscriptions","THOMSON WEST T",10318.00,"$1,290.00",2018
fy2018-39963,2018-04-09,"General Fund","Commonwealth's Attorney","Books & Subscriptions","LAWYERS WEEKLY",10318.00,$389.00,2018
fy2018-39964,2018-04-09,"General Fund","Commonwealth's Attorney","Books & Subscriptions","REI MATTHEW BE",10318.00,$180.18,2018
fy2018-39965,2018-04-09,"General Fund","Commonwealth's Attorney","Books & Subscriptions","REI PAYMENT CE",10318.00,$298.00,2018
fy2018-39966,2018-04-09,"General Fund","Commonwealth's Attorney","Dues & Memberships","NATIONAL DISTR",10318.00,$255.00,2018
fy2018-39967,2018-04-09,"General Fund","Commonwealth's Attorney","Educational Training","QUALITY LOGO P",10318.00,$235.78,2018
fy2018-39968,2018-04-24,"General Fund","Commonwealth's Attorney","Educational Training","HUGHES TRAVIS P",839658.00,$656.96,2018
fy2018-39969,2018-04-24,"General Fund","Commonwealth's Attorney","Educational Training","ROYALTY STEPHEN B",839764.00,$476.44,2018
fy2018-39970,2018-04-24,"General Fund","Commonwealth's Attorney","Educational Training","BABICHENKO MACKENZIE K",839535.00,$486.44,2018
fy2018-39971,2018-04-24,"General Fund","Commonwealth's Attorney","Educational Training","PARKER DAVID",839722.00,$329.04,2018
fy2018-39972,2018-04-24,"General Fund","Commonwealth's Attorney","Educational Training","SKIPPER SHARI L",839776.00,$322.90,2018
fy2018-39973,2018-04-24,"General Fund","Commonwealth's Attorney","Educational Training","CHALKLEY RAMON E III",839568.00,$123.00,2018
fy2018-39974,2018-04-24,"General Fund","Commonwealth's Attorney","Educational Training","OMICK JOSEPH N",839721.00,$662.48,2018
fy2018-39975,2018-04-24,"General Fund","Commonwealth's Attorney","Educational Training","LINAS ALISON B",839691.00,$646.96,2018
fy2018-39976,2018-04-09,"General Fund","Commonwealth's Attorney",Postage,"USPS PO 513990",10318.00,$63.27,2018
fy2018-39977,2018-04-17,"General Fund","Commonwealth's Attorney","Small Capital Outlay","THE SUPPLY ROOM COMPANIES",839453.00,$513.00,2018
fy2018-39978,2018-04-09,"General Fund","Commonwealth's Attorney","Supplies Office","OFFICE DEPOT #",10318.00,$446.73,2018
fy2018-39979,2018-04-09,"General Fund","Commonwealth's Attorney","Supplies Office","GUERNSEY OFFIC",10318.00,$39.33,2018
fy2018-39980,2018-04-09,"General Fund","Commonwealth's Attorney","Supplies Office","SQ  LASERSERV,",10318.00,$89.90,2018
fy2018-39981,2018-04-09,"General Fund","Commonwealth's Attorney","Supplies Office","WM SUPERCENTER",10318.00,$14.88,2018
fy2018-39982,2018-04-09,"General Fund","Commonwealth's Attorney","Supplies Office","BEST BUY",10318.00,"$1,439.94",2018
fy2018-39983,2018-04-09,"General Fund","Commonwealth's Attorney","Supplies Office",WWW.NEWEGG.COM,10318.00,$100.98,2018
fy2018-39984,2018-04-09,"General Fund","Commonwealth's Attorney","Telecomm Wireless","VZWRLSS MY VZ",10318.00,$187.69,2018
fy2018-39985,2018-04-17,"General Fund","Community Corrections","Computer Equip Non-Cyc Repl","COMPUTER PROJECTS OF IL",839184.00,$173.40,2018
fy2018-39986,2018-04-09,"General Fund","Community Corrections","Educational Training","JTCC WORKFORCE",10318.00,$225.00,2018
fy2018-39987,2018-04-17,"General Fund","Community Corrections","Lease & Rentals Equipment","VIRGINIA BUSINESS SYSTEMS",839487.00,$161.79,2018
fy2018-39988,2018-04-17,"General Fund","Community Corrections","Supplies Medical & Lab","ALERE TOXICOLOGY SERVICES INC",839107.00,$214.50,2018
fy2018-39989,2018-04-17,"General Fund","Community Corrections","Supplies Office","TSRC INC",839469.00,$62.12,2018
fy2018-39990,2018-04-24,"General Fund","Community Corrections","Supplies Office","TSRC INC",839805.00,$223.90,2018
fy2018-39991,2018-04-24,"General Fund","Community Corrections","Supplies Office","ASSOCIATED PRINTING SERVICES INC",839530.00,$218.00,2018
fy2018-39992,2018-04-09,"General Fund","Community Corrections","Supplies Other Operating","COPY CAT PRINT",10318.00,$41.00,2018
fy2018-39993,2018-04-09,"General Fund","Community Corrections","Supplies Other Operating","WAL-MART #2795",10318.00,$32.09,2018
fy2018-39994,2018-04-09,"General Fund","Community Corrections","Supplies Other Operating",OFFICEMAX/DEPO,10318.00,$13.15,2018
fy2018-39995,2018-04-09,"General Fund","Community Corrections","Supplies Other Operating","PANERA BREAD #",10318.00,$18.02,2018
fy2018-39996,2018-04-09,"General Fund","Community Corrections","Supplies Other Operating","WM SUPERCENTER",10318.00,$32.82,2018
fy2018-39997,2018-04-09,"General Fund","Community Corrections","Supplies Other Operating","PUBLIX #1596",10318.00,$81.09,2018
fy2018-39998,2018-04-09,"General Fund","Community Corrections","Supplies Other Operating","SQ  PEPICELLI'",10318.00,$53.22,2018
fy2018-39999,2018-04-17,"General Fund","Community Corrections","Supplies Other Operating","TYLER MARANDA",839471.00,$14.00,2018
fy2018-40000,2018-04-09,"General Fund","Community Resources","Fees & Misc Charges","OTC BRANDS,  I",10318.00,$89.95,2018
fy2018-40001,2018-04-09,"General Fund","Community Resources","Fees & Misc Charges","WM SUPERCENTER",10318.00,$4.94,2018
fy2018-40002,2018-04-09,"General Fund","Community Resources","Fees & Misc Charges","WAL-MART #1525",10318.00,$282.25,2018
fy2018-40003,2018-04-09,"General Fund","Community Resources","Fees & Misc Charges",BANNERSONTHECH,10318.00,$169.76,2018
fy2018-40004,2018-04-09,"General Fund","Community Resources","Fees & Misc Charges","DOLLAR TREE",10318.00,$65.19,2018
fy2018-40005,2018-04-24,"General Fund","Community Resources","Fees & Misc Charges","RANDOLPH MACON COLLEGE",839740.00,$525.00,2018
fy2018-40006,2018-04-09,"General Fund","Community Resources","Mileage Reimbursement","SARBO, DANIELLE",837701.00,-$24.18,2018
fy2018-40007,2018-04-11,"General Fund","Community Resources","Mileage Reimbursement","SARBO, DANIELLE",839058.00,$24.18,2018
fy2018-40008,2018-04-09,"General Fund","Community Resources",Postage,"USPS PO 510354",10318.00,$22.00,2018
fy2018-40009,2018-04-10,"General Fund","Community Resources","Professional Services","FAMILY LIFELINE",838693.00,"$15,883.75",2018
fy2018-40010,2018-04-09,"General Fund","Community Resources","Software Services","IN  AUNT BERTH",10318.00,$100.00,2018
fy2018-40011,2018-04-09,"General Fund","Community Resources","Supplies Edu & Recreational","PAYPAL  PREVEN",10318.00,$58.00,2018
fy2018-40012,2018-04-09,"General Fund","Community Resources","Supplies Edu & Recreational","PANERA BREAD #",10318.00,$109.10,2018
fy2018-40013,2018-04-09,"General Fund","Community Resources","Supplies Edu & Recreational","AMAZON MKTPLAC",10318.00,$18.48,2018
fy2018-40014,2018-04-09,"General Fund","Community Resources","Supplies Edu & Recreational","UVA ILPPP PROG",10318.00,$75.00,2018
fy2018-40015,2018-04-09,"General Fund","Community Resources","Supplies Edu & Recreational","WM SUPERCENTER",10318.00,$1.98,2018
fy2018-40016,2018-04-09,"General Fund","Community Resources","Telecomm Wireless","VZWRLSS MY VZ",10318.00,$50.16,2018
fy2018-40017,2018-04-09,"General Fund","Community Services Board","Call Center","HELLO, INC    ",10318.00,$178.38,2018
fy2018-40018,2018-04-09,"General Fund","Community Services Board","Computer Equip Non-Cyc Repl","AMAZON MKTPLAC",10318.00,$19.14,2018
fy2018-40019,2018-04-09,"General Fund","Community Services Board","Computer Equip Non-Cyc Repl",Amazon.com,10318.00,$27.15,2018
fy2018-40020,2018-04-17,"General Fund","Community Services Board","Custodial Svcs Contracts","ORIGINAL BUILDING SERVICE INC",839362.00,$893.03,2018
fy2018-40021,2018-04-09,"General Fund","Community Services Board","Educational Training",BREATHFRESH,10318.00,$100.00,2018
fy2018-40022,2018-04-09,"General Fund","Community Services Board","Educational Training","PAYPAL  VACPN",10318.00,$255.95,2018
fy2018-40023,2018-04-17,"General Fund","Community Services Board","Educational Training","KEEGAN LYNNE",839308.00,$80.00,2018
fy2018-40024,2018-04-24,"General Fund","Community Services Board","Educational Training","JORDAN BERNIE JR",839671.00,$80.00,2018
fy2018-40025,2018-04-03,"General Fund","Community Services Board","Electrical Services","DOMINION ENERGY VIRGINIA",838354.00,$547.52,2018
fy2018-40026,2018-04-10,"General Fund","Community Services Board","Electrical Services","DOMINION ENERGY VIRGINIA",838681.00,"$1,013.03",2018
fy2018-40027,2018-04-24,"General Fund","Community Services Board","Electrical Services","RAPPAHANNOCK ELECTRIC COO",839743.00,$770.99,2018
fy2018-40028,2018-04-09,"General Fund","Community Services Board","Fees & Misc Charges","PAYPAL  VACPN",10318.00,$30.95,2018
fy2018-40029,2018-04-09,"General Fund","Community Services Board","Fees & Misc Charges","PAYPAL  ASHLAN",10318.00,$25.00,2018
fy2018-40030,2018-04-09,"General Fund","Community Services Board","Fees & Misc Charges","ACT Hanover Pa",10318.00,$150.00,2018
fy2018-40031,2018-04-09,"General Fund","Community Services Board","Fees & Misc Charges","DHP-LICENSE FE",10318.00,$135.00,2018
fy2018-40032,2018-04-09,"General Fund","Community Services Board","Fees & Misc Charges","VIRGINIA CERTI",10318.00,$350.00,2018
fy2018-40033,2018-04-10,"General Fund","Community Services Board","Fees & Misc Charges","VCU - OFFICE OF RECORDS AND REGISTRATION",838869.00,$10.00,2018
fy2018-40034,2018-04-09,"General Fund","Community Services Board","Food Purchases Non-Employee","FAS MART 27",10318.00,$30.00,2018
fy2018-40035,2018-04-09,"General Fund","Community Services Board","Food Purchases Non-Employee","WM SUPERCENTER",10318.00,$355.26,2018
fy2018-40036,2018-04-17,"General Fund","Community Services Board","Heating Services","VIRGINIA NATURAL GAS INC",839488.00,"$1,152.52",2018
fy2018-40037,2018-04-24,"General Fund","Community Services Board","Lease & Rentals Facility","HARRISON & BATES INC-DBA COLLIERS INTERNATIONAL",839648.00,"$3,825.00",2018
fy2018-40154,2018-04-09,"General Fund","Community Services Board","Supplies Food","WM SUPERCENTER",10318.00,$907.00,2018
fy2018-40038,2018-04-09,"General Fund","Community Services Board","Maint Svc Contract Copiers","VIRGINIA BUSINESS SYSTEMS",837755.00,-$53.00,2018
fy2018-40039,2018-04-09,"General Fund","Community Services Board","Maint Svc Contract Copiers","RICOH USA INC",837689.00,-$63.69,2018
fy2018-40040,2018-04-10,"General Fund","Community Services Board","Maint Svc Contract Copiers","RICOH USA INC",838803.00,$49.94,2018
fy2018-40041,2018-04-10,"General Fund","Community Services Board","Maint Svc Contract Copiers","RICOH USA INC",838806.00,$160.95,2018
fy2018-40042,2018-04-11,"General Fund","Community Services Board","Maint Svc Contract Copiers","VIRGINIA BUSINESS SYSTEMS",839087.00,$53.00,2018
fy2018-40043,2018-04-24,"General Fund","Community Services Board","Maint Svc Contract Copiers","RICOH USA INC",839752.00,$49.94,2018
fy2018-40044,2018-04-24,"General Fund","Community Services Board","Maint Svc Contract Copiers","VIRGINIA BUSINESS SYSTEMS",839815.00,$53.00,2018
fy2018-40045,2018-04-09,"General Fund","Community Services Board","Maintenance Service Contracts","BUG BUSTERS PE",10318.00,$60.00,2018
fy2018-40046,2018-04-10,"General Fund","Community Services Board","Maintenance Service Contracts",SIMPLEXGRINNELL,838822.00,$200.00,2018
fy2018-40047,2018-04-10,"General Fund","Community Services Board","Maintenance Service Contracts","CREDIBLE WIRELESS INC",838670.00,"$5,228.38",2018
fy2018-40048,2018-04-17,"General Fund","Community Services Board","Maintenance Service Contracts","RICOH USA INC",839399.00,$33.44,2018
fy2018-40049,2018-04-11,"General Fund","Community Services Board","Maintenance Service Contracts","RICOH USA INC",839050.00,$63.69,2018
fy2018-40050,2018-04-09,"General Fund","Community Services Board","Mileage Reimbursement","BOYCE DONNA",837474.00,-$171.79,2018
fy2018-40051,2018-04-09,"General Fund","Community Services Board","Mileage Reimbursement","ELLIOTT MICHELLE",837539.00,-$64.28,2018
fy2018-40052,2018-04-09,"General Fund","Community Services Board","Mileage Reimbursement","GIORGI CHRISTOPHER",837562.00,-$171.68,2018
fy2018-40053,2018-04-09,"General Fund","Community Services Board","Mileage Reimbursement","SWEENEY MERI",837725.00,-$220.18,2018
fy2018-40054,2018-04-09,"General Fund","Community Services Board","Mileage Reimbursement","HUPALO LEANN",837593.00,-$15.26,2018
fy2018-40055,2018-04-09,"General Fund","Community Services Board","Mileage Reimbursement","BLAKENSHIP, ELIZABETH",837466.00,-$34.34,2018
fy2018-40056,2018-04-09,"General Fund","Community Services Board","Mileage Reimbursement","HARRIS, TAYLOR",837583.00,-$45.78,2018
fy2018-40057,2018-04-09,"General Fund","Community Services Board","Mileage Reimbursement","LALLA ELIZABETH",837611.00,-$74.67,2018
fy2018-40058,2018-04-10,"General Fund","Community Services Board","Mileage Reimbursement","BYERS JANET",838643.00,$11.97,2018
fy2018-40059,2018-04-10,"General Fund","Community Services Board","Mileage Reimbursement","GORDON DYANNE",838711.00,$119.90,2018
fy2018-40060,2018-04-10,"General Fund","Community Services Board","Mileage Reimbursement","JOHNSON HEATHER",838754.00,$59.08,2018
fy2018-40061,2018-04-10,"General Fund","Community Services Board","Mileage Reimbursement","ONGARO DONNA",838786.00,$91.56,2018
fy2018-40062,2018-04-10,"General Fund","Community Services Board","Mileage Reimbursement","FEILER, SARAH",838697.00,$89.60,2018
fy2018-40063,2018-04-10,"General Fund","Community Services Board","Mileage Reimbursement","GIPSON KATHERINE R",838708.00,$14.72,2018
fy2018-40064,2018-04-10,"General Fund","Community Services Board","Mileage Reimbursement","LAMBERT MARTHA",838761.00,$306.56,2018
fy2018-40065,2018-04-10,"General Fund","Community Services Board","Mileage Reimbursement","BURRUSS, ROBBIN",838642.00,$59.41,2018
fy2018-40066,2018-04-10,"General Fund","Community Services Board","Mileage Reimbursement","LEATHERBERRY, TIFFANY",838764.00,$26.71,2018
fy2018-40067,2018-04-11,"General Fund","Community Services Board","Mileage Reimbursement","SWEENEY MERI",839073.00,$220.18,2018
fy2018-40068,2018-04-11,"General Fund","Community Services Board","Mileage Reimbursement","BOYCE DONNA",838931.00,$171.79,2018
fy2018-40069,2018-04-11,"General Fund","Community Services Board","Mileage Reimbursement","HARRIS, TAYLOR",838990.00,$45.78,2018
fy2018-40070,2018-04-11,"General Fund","Community Services Board","Mileage Reimbursement","BLAKENSHIP, ELIZABETH",838925.00,$34.34,2018
fy2018-40071,2018-04-11,"General Fund","Community Services Board","Mileage Reimbursement","GIORGI CHRISTOPHER",838977.00,$171.68,2018
fy2018-40072,2018-04-11,"General Fund","Community Services Board","Mileage Reimbursement","HUPALO LEANN",838996.00,$15.26,2018
fy2018-40073,2018-04-17,"General Fund","Community Services Board","Mileage Reimbursement","BEA JESSE L",839131.00,$74.12,2018
fy2018-40074,2018-04-17,"General Fund","Community Services Board","Mileage Reimbursement","EDELMAN JENNIFER",839219.00,$112.82,2018
fy2018-40075,2018-04-17,"General Fund","Community Services Board","Mileage Reimbursement","ELLIOTT MICHELLE",839220.00,$37.06,2018
fy2018-40076,2018-04-17,"General Fund","Community Services Board","Mileage Reimbursement","GIORGI CHRISTOPHER",839248.00,$81.75,2018
fy2018-40077,2018-04-17,"General Fund","Community Services Board","Mileage Reimbursement","GOLDING LORRAINE",839251.00,$38.37,2018
fy2018-40078,2018-04-17,"General Fund","Community Services Board","Mileage Reimbursement","LEWIS BETHANY",839321.00,$91.56,2018
fy2018-40079,2018-04-17,"General Fund","Community Services Board","Mileage Reimbursement","NELSON ANGELA",839354.00,$106.28,2018
fy2018-40080,2018-04-17,"General Fund","Community Services Board","Mileage Reimbursement","BELCASTRO DABNEY",839133.00,$166.77,2018
fy2018-40081,2018-04-17,"General Fund","Community Services Board","Mileage Reimbursement","CARTER, NICOLE",839161.00,$250.70,2018
fy2018-40082,2018-04-17,"General Fund","Community Services Board","Mileage Reimbursement","HARRIS, TAYLOR",839275.00,$15.26,2018
fy2018-40083,2018-04-17,"General Fund","Community Services Board","Mileage Reimbursement","SCHARTZER JOHN",839417.00,$131.89,2018
fy2018-40084,2018-04-17,"General Fund","Community Services Board","Mileage Reimbursement","SORRELL MELISSA",839436.00,$120.77,2018
fy2018-40085,2018-04-17,"General Fund","Community Services Board","Mileage Reimbursement","TEST, BRITTNEY",839451.00,$212.55,2018
fy2018-40086,2018-04-10,"General Fund","Community Services Board","Mileage Reimbursement","BYNUM, LINDA",838644.00,$30.52,2018
fy2018-40087,2018-04-10,"General Fund","Community Services Board","Mileage Reimbursement","YURINA JANEANN M",838896.00,$229.99,2018
fy2018-40088,2018-04-17,"General Fund","Community Services Board","Mileage Reimbursement","UZOHO, BEVERLY",839482.00,$77.39,2018
fy2018-40089,2018-04-24,"General Fund","Community Services Board","Mileage Reimbursement","FELDMAN, PAULA",839615.00,$106.82,2018
fy2018-40090,2018-04-24,"General Fund","Community Services Board","Mileage Reimbursement","HUPALO LEANN",839659.00,$30.52,2018
fy2018-40091,2018-04-24,"General Fund","Community Services Board","Mileage Reimbursement","LEAHEY KATHERINE",839687.00,$235.44,2018
fy2018-40092,2018-04-24,"General Fund","Community Services Board","Mileage Reimbursement","CHRISTOPHER SUZANNE",839573.00,$157.51,2018
fy2018-40093,2018-04-24,"General Fund","Community Services Board","Mileage Reimbursement","JORDAN BERNIE JR",839671.00,$38.75,2018
fy2018-40094,2018-04-24,"General Fund","Community Services Board","Mileage Reimbursement","LALLA ELIZABETH",839683.00,$77.94,2018
fy2018-40095,2018-04-24,"General Fund","Community Services Board","Mileage Reimbursement","YURINA JANEANN M",839836.00,$188.57,2018
fy2018-40096,2018-04-11,"General Fund","Community Services Board","Mileage Reimbursement","ELLIOTT MICHELLE",838965.00,$64.28,2018
fy2018-40097,2018-04-11,"General Fund","Community Services Board","Mileage Reimbursement","LALLA ELIZABETH",839005.00,$74.67,2018
fy2018-40098,2018-04-17,"General Fund","Community Services Board","Mileage Reimbursement","NUSBAUM MEREDITH",839357.00,$54.50,2018
fy2018-40099,2018-04-17,"General Fund","Community Services Board","Mileage Reimbursement","WORMELEY, ERIKA",839509.00,$50.69,2018
fy2018-40100,2018-04-24,"General Fund","Community Services Board","Mileage Reimbursement","ELLINGER LISA M",839606.00,$155.57,2018
fy2018-40101,2018-04-24,"General Fund","Community Services Board","Mileage Reimbursement","GALLEGOS, DIANE",839623.00,$245.80,2018
fy2018-40102,2018-04-24,"General Fund","Community Services Board","Mileage Reimbursement","SMITH HEATHER L",839777.00,$76.30,2018
fy2018-40103,2018-04-09,"General Fund","Community Services Board","Printing & Binding",OFFICEMAX/DEPO,10318.00,$132.50,2018
fy2018-40104,2018-04-09,"General Fund","Community Services Board","Professional Health Services","NEW KENT CO HE",10318.00,$84.51,2018
fy2018-40105,2018-04-09,"General Fund","Community Services Board","Professional Services","FEDEX 97360504",10318.00,$87.22,2018
fy2018-40106,2018-04-09,"General Fund","Community Services Board","Professional Services","LCA LabCorpHol",10318.00,$69.45,2018
fy2018-40107,2018-04-09,"General Fund","Community Services Board","Professional Services",PURPLE,10318.00,$350.00,2018
fy2018-40108,2018-04-09,"General Fund","Community Services Board","Professional Services","IN  CHALLENGE",10318.00,$306.00,2018
fy2018-40109,2018-04-10,"General Fund","Community Services Board","Professional Services","BRYANS COMPLETE LAWN SVE",838640.00,$100.00,2018
fy2018-40110,2018-04-17,"General Fund","Community Services Board","Professional Services","ADVANCED BEHAVIORAL HEALTH SERVICES",839102.00,$500.00,2018
fy2018-40111,2018-04-17,"General Fund","Community Services Board","Professional Services","MUSIK, SHIRLEY E.",839348.00,$84.00,2018
fy2018-40112,2018-04-10,"General Fund","Community Services Board","Professional Services","NATIONAL COUNCIL FOR BEHAVORIAL HEALTH",838780.00,"$4,750.00",2018
fy2018-40113,2018-04-10,"General Fund","Community Services Board","Professional Services","STERICYCLE INC",838831.00,$243.00,2018
fy2018-40114,2018-04-17,"General Fund","Community Services Board","Professional Services","GRAND PRIX AUTO WASH",839256.00,$9.00,2018
fy2018-40115,2018-04-24,"General Fund","Community Services Board","Professional Services","STERICYCLE INC",839787.00,$108.00,2018
fy2018-40116,2018-04-24,"General Fund","Community Services Board","Professional Services","PETTY CASH CUSTODIAN",839728.00,$16.47,2018
fy2018-40117,2018-04-24,"General Fund","Community Services Board","Professional Services","REDWOOD TOXICOLOGY LAB INC",839747.00,$25.00,2018
fy2018-40118,2018-04-24,"General Fund","Community Services Board","Professional Services","VERNON GREENE, INC.",839814.00,$27.00,2018
fy2018-40119,2018-04-10,"General Fund","Community Services Board","Purchase of Services","RIVER CITY COMPREHENSIVE COUNSELING SERVICES INC",838808.00,$165.00,2018
fy2018-40120,2018-04-10,"General Fund","Community Services Board","Purchase of Services","ST MARY'S HOSPITAL",838828.00,"$7,376.00",2018
fy2018-40121,2018-04-10,"General Fund","Community Services Board","Purchase of Services","BON SECOURS MEMORIAL REGIONAL",838634.00,$616.00,2018
fy2018-40122,2018-04-10,"General Fund","Community Services Board","Purchase of Services","WAIVER SERVICES LLC",838880.00,$175.40,2018
fy2018-40123,2018-04-10,"General Fund","Community Services Board","Purchase of Services","ASSURANCE LLC",838619.00,$175.40,2018
fy2018-40124,2018-04-17,"General Fund","Community Services Board","Purchase of Services","FAMILY COUNSELING CENTER FOR RECOVERY",839228.00,$252.00,2018
fy2018-40125,2018-04-17,"General Fund","Community Services Board","Purchase of Services","RIVER CITY COMPREHENSIVE COUNSELING SERVICES INC",839407.00,"$1,140.00",2018
fy2018-40126,2018-04-09,"General Fund","Community Services Board","Repair & Maintenance Services","HOBART SERVICE",10318.00,$267.43,2018
fy2018-40127,2018-04-09,"General Fund","Community Services Board","Repair & Maintenance Services","SERV PRO OF HA",10318.00,$125.00,2018
fy2018-40128,2018-04-09,"General Fund","Community Services Board","Small Capital Outlay","THE SUPPLY ROO",10318.00,"$1,034.83",2018
fy2018-40129,2018-04-17,"General Fund","Community Services Board","Software Services","VIRGINIA ASSOCIATION OF COMMUNITY SERVICE BOARDS",839486.00,"$2,750.00",2018
fy2018-40130,2018-04-09,"General Fund","Community Services Board","Subsistence & Lodging","AMAZON MKTPLAC",10318.00,$23.92,2018
fy2018-40131,2018-04-09,"General Fund","Community Services Board","Subsistence & Lodging","CHICK-FIL-A #0",10318.00,$94.05,2018
fy2018-40132,2018-04-09,"General Fund","Community Services Board","Subsistence & Lodging","GIOVANNI'S PIZ",10318.00,$60.00,2018
fy2018-40133,2018-04-09,"General Fund","Community Services Board","Subsistence & Lodging","4353 Dominos P",10318.00,$51.81,2018
fy2018-40134,2018-04-09,"General Fund","Community Services Board","Subsistence & Lodging","EL AZTECA - AS",10318.00,$675.39,2018
fy2018-40135,2018-04-09,"General Fund","Community Services Board","Subsistence & Lodging","KROGER #515",10318.00,$39.73,2018
fy2018-40136,2018-04-09,"General Fund","Community Services Board","Subsistence & Lodging","MI JALISCO",10318.00,$97.00,2018
fy2018-40137,2018-04-09,"General Fund","Community Services Board","Subsistence & Lodging","PUBLIX #1591",10318.00,$124.36,2018
fy2018-40138,2018-04-09,"General Fund","Community Services Board","Subsistence & Lodging","ANNAS ITALIAN",10318.00,$58.00,2018
fy2018-40139,2018-04-09,"General Fund","Community Services Board","Subsistence & Lodging","DOMINO'S 4353",10318.00,$53.10,2018
fy2018-40140,2018-04-09,"General Fund","Community Services Board","Subsistence & Lodging","FAS MART 27",10318.00,$20.00,2018
fy2018-40141,2018-04-09,"General Fund","Community Services Board","Subsistence & Lodging","HARDEES 2910",10318.00,$42.75,2018
fy2018-40142,2018-04-09,"General Fund","Community Services Board","Subsistence & Lodging","JERSEY MIKE'S",10318.00,$252.68,2018
fy2018-40143,2018-04-09,"General Fund","Community Services Board","Subsistence & Lodging","TRACKSIDE GRIL",10318.00,$71.66,2018
fy2018-40144,2018-04-09,"General Fund","Community Services Board","Supplies Edu & Recreational","108 - AMF HANO",10318.00,$9.28,2018
fy2018-40145,2018-04-09,"General Fund","Community Services Board","Supplies Edu & Recreational",Amazon.com,10318.00,$16.18,2018
fy2018-40146,2018-04-09,"General Fund","Community Services Board","Supplies Edu & Recreational","DOLLAR TREE",10318.00,$35.00,2018
fy2018-40147,2018-04-09,"General Fund","Community Services Board","Supplies Edu & Recreational","HOBBY-LOBBY #7",10318.00,$29.44,2018
fy2018-40148,2018-04-09,"General Fund","Community Services Board","Supplies Edu & Recreational","WM SUPERCENTER",10318.00,$255.70,2018
fy2018-40149,2018-04-09,"General Fund","Community Services Board","Supplies Edu & Recreational","YMCA OF GREATE",10318.00,$74.00,2018
fy2018-40150,2018-04-09,"General Fund","Community Services Board","Supplies Edu & Recreational","AC MOORE STORE",10318.00,$19.82,2018
fy2018-40151,2018-04-09,"General Fund","Community Services Board","Supplies Edu & Recreational","RICHMOND FLYIN",10318.00,$50.00,2018
fy2018-40152,2018-04-09,"General Fund","Community Services Board","Supplies Edu & Recreational","WAL-MART #2795",10318.00,$65.62,2018
fy2018-40153,2018-04-09,"General Fund","Community Services Board","Supplies Edu & Recreational","WAL-MART #3880",10318.00,$125.00,2018
fy2018-40155,2018-04-09,"General Fund","Community Services Board","Supplies Food","WAL-MART #3880",10318.00,$34.88,2018
fy2018-40156,2018-04-09,"General Fund","Community Services Board","Supplies Food","FOOD LION  #22",10318.00,$10.61,2018
fy2018-40157,2018-04-09,"General Fund","Community Services Board","Supplies Food","WAL-MART #2795",10318.00,"$2,507.48",2018
fy2018-40158,2018-04-24,"General Fund","Community Services Board","Supplies Gas Grease & Oil","PETTY CASH CUSTODIAN",839728.00,$10.00,2018
fy2018-40159,2018-04-09,"General Fund","Community Services Board","Supplies Laundry HSKP & Jan","WAL-MART #3880",10318.00,$11.44,2018
fy2018-40160,2018-04-09,"General Fund","Community Services Board","Supplies Laundry HSKP & Jan","AMAZON MKTPLAC",10318.00,$115.38,2018
fy2018-40161,2018-04-09,"General Fund","Community Services Board","Supplies Laundry HSKP & Jan",Amazon.com,10318.00,$14.05,2018
fy2018-40162,2018-04-09,"General Fund","Community Services Board","Supplies Laundry HSKP & Jan","WAL-MART #1525",10318.00,$46.06,2018
fy2018-40163,2018-04-09,"General Fund","Community Services Board","Supplies Laundry HSKP & Jan","WM SUPERCENTER",10318.00,$113.30,2018
fy2018-40164,2018-04-09,"General Fund","Community Services Board","Supplies Laundry HSKP & Jan","TREASURER OF VIRGINIA",837740.00,-$477.71,2018
fy2018-40165,2018-04-09,"General Fund","Community Services Board","Supplies Laundry HSKP & Jan","WAL-MART #2795",10318.00,$52.62,2018
fy2018-40166,2018-04-11,"General Fund","Community Services Board","Supplies Laundry HSKP & Jan","TREASURER OF VIRGINIA",839080.00,$477.71,2018
fy2018-40167,2018-04-09,"General Fund","Community Services Board","Supplies Medical & Lab","VERDE ENVIRONM",10318.00,$224.50,2018
fy2018-40168,2018-04-09,"General Fund","Community Services Board","Supplies Medical & Lab","BRIGGS HEALTHC",10318.00,$256.53,2018
fy2018-40169,2018-04-09,"General Fund","Community Services Board","Supplies Medical & Lab","WM SUPERCENTER",10318.00,$13.20,2018
fy2018-40170,2018-04-09,"General Fund","Community Services Board","Supplies Medical & Lab","REDWOOD TOXICO",10318.00,"$1,961.26",2018
fy2018-40171,2018-04-17,"General Fund","Community Services Board","Supplies Medical & Lab","WESTWOOD PHARMACY",839500.00,"$3,576.56",2018
fy2018-40172,2018-04-24,"General Fund","Community Services Board","Supplies Medical & Lab","WESTWOOD PHARMACY",839825.00,"$1,597.80",2018
fy2018-40173,2018-04-09,"General Fund","Community Services Board","Supplies Office","WAL-MART #2795",10318.00,$31.37,2018
fy2018-40174,2018-04-09,"General Fund","Community Services Board","Supplies Office","THE SUPPLY ROO",10318.00,$875.81,2018
fy2018-40175,2018-04-09,"General Fund","Community Services Board","Supplies Office","AMAZON MKTPLAC",10318.00,$791.62,2018
fy2018-40176,2018-04-09,"General Fund","Community Services Board","Supplies Office",Amazon.com,10318.00,$258.92,2018
fy2018-40177,2018-04-10,"General Fund","Community Services Board","Supplies Office","ASSOCIATED PRINTING SERVICES INC",838618.00,$88.00,2018
fy2018-40178,2018-04-24,"General Fund","Community Services Board","Supplies Office","PETTY CASH CUSTODIAN",839728.00,$15.99,2018
fy2018-40179,2018-04-09,"General Fund","Community Services Board","Supplies Other Operating",ACCESS-QUICKPA,10318.00,"$1,101.99",2018
fy2018-40180,2018-04-09,"General Fund","Community Services Board","Supplies Veh & Pw Eq Non-Fleet","AMAZON MKTPLAC",10318.00,$74.80,2018
fy2018-40181,2018-04-09,"General Fund","Community Services Board","Telecomm Wireless","DTV DIRECTV SE",10318.00,$117.98,2018
fy2018-40182,2018-04-09,"General Fund","Community Services Board","Telecomm Wireless","VERIZON ONETIM",10318.00,$266.85,2018
fy2018-40183,2018-04-09,"General Fund","Community Services Board","Telecomm Wireless","VZWRLSS MY VZ",10318.00,"$4,952.97",2018
fy2018-40184,2018-04-09,"General Fund","Community Services Board","Telecomm Wireless",COMCAST,10318.00,$156.23,2018
fy2018-40185,2018-04-17,"General Fund","Community Services Board","Trash Removal & Recycling","CENTRAL VIRGINIA WASTE MANAGEMENT AUTHORITY",839165.00,$382.64,2018
fy2018-40186,2018-04-13,"General Fund","Community Support","Gr Richmond Conv Center Auth","GREATER  RICHMOND CONVENTION CENTER AUTHORITY",41318.00,"$54,712.49",2018
fy2018-40187,2018-04-09,"General Fund","County Administrator","Books & Subscriptions","BHM RTD PAPER",10318.00,$23.35,2018
fy2018-40188,2018-04-09,"General Fund","County Administrator","Dues & Memberships",ISACA,10318.00,$85.00,2018
fy2018-40189,2018-04-09,"General Fund","County Administrator","Dues & Memberships","PAYPAL  3CMA",10318.00,$400.00,2018
fy2018-40190,2018-04-10,"General Fund","County Administrator","Dues & Memberships",VALHSO,838867.00,$25.00,2018
fy2018-40191,2018-04-09,"General Fund","County Administrator","Educational Training","EB RICHMOND HI",10318.00,$35.00,2018
fy2018-40192,2018-04-09,"General Fund","County Administrator","Educational Training","OMNI CHARLOTTE",10318.00,$143.74,2018
fy2018-40193,2018-04-17,"General Fund","County Administrator","Mileage Reimbursement","HARRIS HAROLD T JR",839273.00,$157.78,2018
fy2018-40194,2018-04-10,"General Fund","County Administrator","Mileage Reimbursement","PETTY CASH CUSTODIAN",838791.00,$6.00,2018
fy2018-40195,2018-04-17,"General Fund","County Administrator","Mileage Reimbursement","BARNETT MICHELLE",839127.00,$59.73,2018
fy2018-40196,2018-04-24,"General Fund","County Administrator","Mileage Reimbursement","CHENAULT DIANE",839571.00,$29.87,2018
fy2018-40197,2018-04-09,"General Fund","County Administrator","Professional Services","N-VISIONED GRAPHICS LLC",837649.00,-$332.50,2018
fy2018-40198,2018-04-11,"General Fund","County Administrator","Professional Services","N-VISIONED GRAPHICS LLC",839023.00,$332.50,2018
fy2018-40199,2018-04-09,"General Fund","County Administrator",Storage,ACCESS-QUICKPA,10318.00,$86.37,2018
fy2018-40200,2018-04-09,"General Fund","County Administrator","Subsistence & Lodging","FOOD LION #062",10318.00,$23.27,2018
fy2018-40201,2018-04-10,"General Fund","County Administrator","Subsistence & Lodging","PETTY CASH CUSTODIAN",838791.00,$22.15,2018
fy2018-40202,2018-04-09,"General Fund","County Administrator","Telecomm Wireless","VZWRLSS MY VZ",10318.00,$60.16,2018
fy2018-40203,2018-04-09,"General Fund","County Attorney","Books & Subscriptions","REI MATTHEW BE",10318.00,$186.00,2018
fy2018-40204,2018-04-09,"General Fund","County Attorney","Books & Subscriptions","REI PAYMENT CE",10318.00,$549.01,2018
fy2018-40205,2018-04-24,"General Fund","County Attorney","Educational Training","GIBNEY YVONNE S",839629.00,$806.63,2018
fy2018-40206,2018-04-03,"General Fund","County Attorney","Mileage Reimbursement","SEWARD LISA A",838499.00,$117.72,2018
fy2018-40207,2018-04-10,"General Fund","County Attorney","Repair & Maintenance Services","RIVES STERLING E III",838810.00,$63.18,2018
fy2018-40208,2018-04-09,"General Fund","County Attorney",Storage,ACCESS-QUICKPA,10318.00,$75.17,2018
fy2018-40209,2018-04-09,"General Fund","County Attorney","Supplies Office","TSRC INC",837743.00,-$34.89,2018
fy2018-40210,2018-04-17,"General Fund","County Attorney","Supplies Office","LASERSERV INC",839316.00,$79.90,2018
fy2018-40211,2018-04-11,"General Fund","County Attorney","Supplies Office","TSRC INC",839081.00,$34.89,2018
fy2018-40212,2018-04-09,"General Fund","Court Services","Educational Training","ELIZABETH RIVE",10318.00,$34.90,2018
fy2018-40213,2018-04-10,"General Fund","Court Services","Lease & Rentals Equipment","RICOH USA INC",838803.00,$372.46,2018
fy2018-40214,2018-04-24,"General Fund","Court Services","Lease & Rentals Equipment","RICOH USA INC",839752.00,$372.46,2018
fy2018-40215,2018-04-24,"General Fund","Court Services","Motor Vehicle & Equipment Addl","HALEY FORD  SOUTH",839643.00,"$11,013.28",2018
fy2018-40216,2018-04-24,"General Fund","Court Services","Motor Vehicle & Equipment Repl","HALEY FORD  SOUTH",839643.00,"$224,508.00",2018
fy2018-40217,2018-04-17,"General Fund","Court Services","Printing & Binding","RICHMOND TIMES DISPATCH",839397.00,$223.00,2018
fy2018-40218,2018-04-09,"General Fund","Court Services","Supplies Office","TRAINERS WAREH",10318.00,$50.46,2018
fy2018-40219,2018-04-10,"General Fund","Court Services","Uniforms & Wearing Apparel","GALLS LLC",838706.00,$878.10,2018
fy2018-40220,2018-04-17,"General Fund","Court Services","Uniforms & Wearing Apparel","GALLS LLC",839245.00,$33.00,2018
fy2018-40221,2018-04-24,"General Fund","Court Services","Uniforms & Wearing Apparel","GALLS LLC",839624.00,"$1,162.56",2018
fy2018-40222,2018-04-17,"Debt Service Fund","Debt Service","Fees Trustee","US BANK",839478.00,"$2,800.00",2018
fy2018-40223,2018-04-09,"General Fund","Economic Development","Books & Subscriptions","BHM RTD PAPER",10318.00,$228.00,2018
fy2018-40224,2018-04-09,"General Fund","Economic Development","Condo Association Fees","RUTLAND CENTER COMMERCIAL CONDOMINIUMS",837696.00,-$666.00,2018
fy2018-40225,2018-04-11,"General Fund","Economic Development","Condo Association Fees","RUTLAND CENTER COMMERCIAL CONDOMINIUMS",839053.00,$666.00,2018
fy2018-40226,2018-04-17,"General Fund","Economic Development","Condo Association Fees","RUTLAND CENTER COMMERCIAL CONDOMINIUMS",839415.00,$666.00,2018
fy2018-40227,2018-04-09,"General Fund","Economic Development","Custodial Svcs Contracts","CINTAS 143",10318.00,$8.16,2018
fy2018-40228,2018-04-17,"General Fund","Economic Development","Custodial Svcs Contracts","ORIGINAL BUILDING SERVICE INC",839362.00,$174.86,2018
fy2018-40229,2018-04-17,"General Fund","Economic Development","Dues & Memberships","GREATER RICHMOND PARTNERSHIP, INC.",839260.00,"$96,250.00",2018
fy2018-40230,2018-04-17,"General Fund","Economic Development","Electrical Services","DOMINION ENERGY VIRGINIA",839213.00,$113.77,2018
fy2018-40231,2018-04-09,"General Fund","Economic Development","Lease & Rentals Equipment","ACME AUTO LEAS",10318.00,"$1,230.00",2018
fy2018-40232,2018-04-03,"General Fund","Economic Development","Maint Svc Contract Copiers","RICOH USA INC",838486.00,$140.24,2018
fy2018-40233,2018-04-24,"General Fund","Economic Development","Mileage Reimbursement","WRIGHT ANGELA C",839832.00,$29.62,2018
fy2018-40234,2018-04-09,"General Fund","Economic Development","Printing & Binding",ALPHAGRAPHICS,10318.00,$100.60,2018
fy2018-40235,2018-04-09,"General Fund","Economic Development","Professional Services","RICK WHITTINGTON CONSULTING INC",837688.00,"-$2,635.00",2018
fy2018-40236,2018-04-17,"General Fund","Economic Development","Professional Services","RICK WHITTINGTON CONSULTING INC",839398.00,$175.00,2018
fy2018-40237,2018-04-11,"General Fund","Economic Development","Professional Services","RICK WHITTINGTON CONSULTING INC",839049.00,"$2,635.00",2018
fy2018-40238,2018-04-09,"General Fund","Economic Development","Regional Meetings","PARKING CITY O",10318.00,$18.00,2018
fy2018-40239,2018-04-09,"General Fund","Economic Development","Regional Meetings","VIRGINIA ECONO",10318.00,$750.00,2018
fy2018-40240,2018-04-09,"General Fund","Economic Development","Regional Meetings","DUNKIN #351950",10318.00,$10.00,2018
fy2018-40241,2018-04-09,"General Fund","Economic Development","Regional Meetings","UNITED      01",10318.00,$328.00,2018
fy2018-40242,2018-04-17,"General Fund","Economic Development","Regional Meetings","ANDERSON, KEITH LAMONE",839111.00,$400.00,2018
fy2018-40243,2018-04-09,"General Fund","Economic Development","Subsistence & Lodging","GIOVANNI'S PIZ",10318.00,$60.92,2018
fy2018-40244,2018-04-09,"General Fund","Economic Development","Subsistence & Lodging","MARTYS GRILL",10318.00,$143.76,2018
fy2018-40245,2018-04-09,"General Fund","Economic Development","Subsistence & Lodging","MARRIOTT RICHM",10318.00,$19.00,2018
fy2018-40246,2018-04-09,"General Fund","Economic Development","Subsistence & Lodging","TRACKSIDE GRIL",10318.00,$60.69,2018
fy2018-40247,2018-04-09,"General Fund","Economic Development","Supplies Gas Grease & Oil","EZPASSVA AUTO",10318.00,$105.00,2018
fy2018-40248,2018-04-09,"General Fund","Economic Development","Supplies Office","CRESSET CORPOR",10318.00,$15.00,2018
fy2018-40249,2018-04-09,"General Fund","Economic Development","Supplies Office","KROGER #515",10318.00,$27.90,2018
fy2018-40250,2018-04-09,"General Fund","Economic Development","Supplies Office",STAPLS71929552,10318.00,$37.06,2018
fy2018-40251,2018-04-09,"General Fund","Economic Development","Supplies Veh & Pw Eq Non-Fleet","PARKING CITY O",10318.00,$4.00,2018
fy2018-40252,2018-04-09,"General Fund","Economic Development","Supplies Veh & Pw Eq Non-Fleet","CITYPARKING IN",10318.00,$12.00,2018
fy2018-40253,2018-04-09,"General Fund","Economic Development","Supplies Veh & Pw Eq Non-Fleet","DEPARTMENT MOT",10318.00,$39.75,2018
fy2018-40254,2018-04-09,"General Fund","Economic Development","Telecomm Landline",COMCAST,10318.00,$77.32,2018
fy2018-40255,2018-04-09,"General Fund","Economic Development","Water & Sewer Services","RUTLAND CENTER COMMERCIAL CONDOMINIUMS",837696.00,-$40.00,2018
fy2018-40256,2018-04-11,"General Fund","Economic Development","Water & Sewer Services","RUTLAND CENTER COMMERCIAL CONDOMINIUMS",839053.00,$40.00,2018
fy2018-40257,2018-04-17,"General Fund","Economic Development","Water & Sewer Services","RUTLAND CENTER COMMERCIAL CONDOMINIUMS",839415.00,$40.00,2018
fy2018-40258,2018-04-03,"County Improvements Fund","Emergency Communications","Communications Equipment Repl","MOTOROLA SOLUTIONS INC",837644.00,"-$2,050,344.00",2018
fy2018-40259,2018-04-04,"County Improvements Fund","Emergency Communications","Communications Equipment Repl","MOTOROLA SOLUTIONS INC",838599.00,"$2,050,344.00",2018
fy2018-40260,2018-04-09,"County Improvements Fund","Emergency Communications","Professional Services","ALTAIRIS TECHNOLOGY PARTNERS LLC",837438.00,"-$1,248.00",2018
fy2018-40261,2018-04-11,"County Improvements Fund","Emergency Communications","Professional Services","ALTAIRIS TECHNOLOGY PARTNERS LLC",838907.00,"$1,248.00",2018
fy2018-40262,2018-04-24,"County Improvements Fund","Emergency Communications","Professional Services","ALTAIRIS TECHNOLOGY PARTNERS LLC",839523.00,"$1,692.00",2018
fy2018-40263,2018-04-09,"General Fund","Emergency Communications","Custodial Svcs Contracts","PRISTINE SERVICES INC",837672.00,"-$1,036.29",2018
fy2018-40264,2018-04-10,"General Fund","Emergency Communications","Custodial Svcs Contracts","PRISTINE SERVICES INC",838796.00,"$1,036.29",2018
fy2018-40265,2018-04-11,"General Fund","Emergency Communications","Custodial Svcs Contracts","PRISTINE SERVICES INC",839037.00,"$1,036.29",2018
fy2018-40266,2018-04-03,"General Fund","Emergency Communications","Electrical Services","DOMINION ENERGY VIRGINIA",838354.00,"$2,090.72",2018
fy2018-40267,2018-04-09,"General Fund","Emergency Communications","Electrical Services","RAPPAHANNOCK ELECTRIC COOP",837679.00,"-$1,903.00",2018
fy2018-40268,2018-04-10,"General Fund","Emergency Communications","Electrical Services","DOMINION ENERGY VIRGINIA",838681.00,"$4,668.21",2018
fy2018-40269,2018-04-11,"General Fund","Emergency Communications","Electrical Services","RAPPAHANNOCK ELECTRIC COOP",839044.00,"$1,903.00",2018
fy2018-40270,2018-04-17,"General Fund","Emergency Communications","Electrical Services","RAPPAHANNOCK ELECTRIC COOP",839387.00,"$2,063.02",2018
fy2018-40271,2018-04-09,"General Fund","Emergency Communications","Heating Services","AMERIGAS-RICHMOND VA",837440.00,-$717.80,2018
fy2018-40272,2018-04-11,"General Fund","Emergency Communications","Heating Services","AMERIGAS-RICHMOND VA",838909.00,$717.80,2018
fy2018-40273,2018-04-03,"General Fund","Emergency Communications","Lease & Rentals Equipment","TAYLOR PHILIP L JR",838518.00,"$6,000.00",2018
fy2018-40274,2018-04-10,"General Fund","Emergency Communications","Lease & Rentals Equipment","XEROX CORPORATION",838893.00,$313.78,2018
fy2018-40275,2018-04-24,"General Fund","Emergency Communications","Lease & Rentals Equipment","CROWN CASTLE GT COMPANY LLC",839584.00,$578.06,2018
fy2018-40276,2018-04-03,"General Fund","Emergency Communications","Maintenance Service Contracts","CINTAS CORPORATION",838317.00,$6.11,2018
fy2018-40277,2018-04-10,"General Fund","Emergency Communications","Maintenance Service Contracts","CINTAS CORPORATION",838658.00,$12.22,2018
fy2018-40278,2018-04-10,"General Fund","Emergency Communications","Maintenance Service Contracts","COMPUTER PROJECTS OF IL",838663.00,$173.40,2018
fy2018-40279,2018-04-17,"General Fund","Emergency Communications","Maintenance Service Contracts","CINTAS CORPORATION",839173.00,$6.11,2018
fy2018-40280,2018-04-09,"General Fund","Emergency Communications","Mileage Reimbursement","SHAFFER CURTIS",837707.00,-$254.52,2018
fy2018-40281,2018-04-11,"General Fund","Emergency Communications","Mileage Reimbursement","SHAFFER CURTIS",839063.00,$254.52,2018
fy2018-40282,2018-04-17,"General Fund","Emergency Communications","Mileage Reimbursement","LAWRENCE CASEY B",839318.00,$47.09,2018
fy2018-40283,2018-04-17,"General Fund","Emergency Communications","Mileage Reimbursement","HAYES JANIE WITHERSPOON",839276.00,$47.09,2018
fy2018-40284,2018-04-17,"General Fund","Emergency Communications","Mileage Reimbursement","SHARPE ARLENE H",839423.00,$47.09,2018
fy2018-40285,2018-04-24,"General Fund","Emergency Communications",Postage,FEDEX,839614.00,$18.71,2018
fy2018-40286,2018-04-09,"General Fund","Emergency Communications","Professional Health Services","BON SECOURS REGIONAL MED CTR",837471.00,-$478.00,2018
fy2018-40287,2018-04-11,"General Fund","Emergency Communications","Professional Health Services","BON SECOURS REGIONAL MED CTR",838929.00,$478.00,2018
fy2018-40288,2018-04-03,"General Fund","Emergency Communications","R&M Svcs - Radios","FASTENAL COMPANY",838368.00,$50.02,2018
fy2018-40289,2018-04-03,"General Fund","Emergency Communications","R&M Svcs - Radios","TRU-POWER CORPORATION",838542.00,"$1,550.41",2018
fy2018-40290,2018-04-03,"General Fund","Emergency Communications","R&M Svcs - Radios","WAYTEK INC",838564.00,$190.71,2018
fy2018-40291,2018-04-10,"General Fund","Emergency Communications","R&M Svcs - Radios",TESSCO,838842.00,$631.38,2018
fy2018-40292,2018-04-10,"General Fund","Emergency Communications","R&M Svcs - Radios","ASHLAND ACE HARDWARE",838617.00,$29.97,2018
fy2018-40293,2018-04-17,"General Fund","Emergency Communications","R&M Svcs - Radios","RADIO COMMUNICATIONS OF VA INC",839384.00,$489.65,2018
fy2018-40294,2018-04-17,"General Fund","Emergency Communications","R&M Svcs - Radios","SECOM SYSTEMS INC",839420.00,$476.25,2018
fy2018-40295,2018-04-17,"General Fund","Emergency Communications","R&M Svcs - Radios","TIDEWATER FLEET SUPPLY LLC",839456.00,$431.64,2018
fy2018-40296,2018-04-17,"General Fund","Emergency Communications","R&M Svcs - Radios","WAYTEK INC",839496.00,$272.39,2018
fy2018-40297,2018-04-17,"General Fund","Emergency Communications","R&M Svcs - Radios","BATTERY BARN OF VIRGINIA",839129.00,$15.95,2018
fy2018-40298,2018-04-10,"General Fund","Emergency Communications","R&M Svcs - Radios","TIDEWATER FLEET SUPPLY LLC",838845.00,$540.32,2018
fy2018-40299,2018-04-24,"General Fund","Emergency Communications","R&M Svcs - Radios","NAPA/GENUINE PARTS CO.",839716.00,$46.48,2018
fy2018-40300,2018-04-24,"General Fund","Emergency Communications","R&M Svcs - Radios",TESSCO,839794.00,$187.27,2018
fy2018-40301,2018-04-24,"General Fund","Emergency Communications","R&M Svcs - Radios","WAYTEK INC",839821.00,$44.29,2018
fy2018-40302,2018-04-09,"General Fund","Emergency Communications","Repair & Maintenance Services",RAYCAP,10318.00,"$1,190.86",2018
fy2018-40303,2018-04-10,"General Fund","Emergency Communications","Repair & Maintenance Services","MID-ATLANTIC ENTRY SYSTEMS INC",838774.00,$166.00,2018
fy2018-40304,2018-04-17,"General Fund","Emergency Communications","Repair & Maintenance Services","BEAHILL CORPORATION",839132.00,$385.00,2018
fy2018-40305,2018-04-03,"General Fund","Emergency Communications","Small Capital Outlay","ROSENBAUM DANIEL E",838490.00,"$1,200.00",2018
fy2018-40306,2018-04-09,"General Fund","Emergency Communications","Small Capital Outlay","SECRETARY OF T",10318.00,$45.00,2018
fy2018-40307,2018-04-09,"General Fund","Emergency Communications","Small Capital Outlay","WM SUPERCENTER",10318.00,$143.54,2018
fy2018-40308,2018-04-09,"General Fund","Emergency Communications","Small Capital Outlay",WWW.NEWEGG.COM,10318.00,$98.15,2018
fy2018-40309,2018-04-10,"General Fund","Emergency Communications","Small Capital Outlay","CONLEY ANGELA",838664.00,$10.00,2018
fy2018-40310,2018-04-03,"General Fund","Emergency Communications","Supplies Office",TESSCO,838523.00,$120.30,2018
fy2018-40311,2018-04-03,"General Fund","Emergency Communications","Supplies Office","OFFICE DEPOT",838467.00,$89.82,2018
fy2018-40312,2018-04-03,"General Fund","Emergency Communications","Supplies Office","COAST TO COAST COMPUTER PRODUCTS",838323.00,$359.97,2018
fy2018-40313,2018-04-09,"General Fund","Emergency Communications","Supplies Office","OFFICE DEPOT",837661.00,-$251.98,2018
fy2018-40314,2018-04-10,"General Fund","Emergency Communications","Supplies Office","COAST TO COAST COMPUTER PRODUCTS",838662.00,$479.98,2018
fy2018-40315,2018-04-11,"General Fund","Emergency Communications","Supplies Office","OFFICE DEPOT",839030.00,$251.98,2018
fy2018-40316,2018-04-17,"General Fund","Emergency Communications","Supplies Office","COAST TO COAST COMPUTER PRODUCTS",839179.00,$229.98,2018
fy2018-40317,2018-04-17,"General Fund","Emergency Communications","Supplies Office","BATTERY BARN OF VIRGINIA",839129.00,$33.00,2018
fy2018-40318,2018-04-17,"General Fund","Emergency Communications","Supplies Office","OFFICE DEPOT",839359.00,$202.41,2018
fy2018-40319,2018-04-17,"General Fund","Emergency Communications","Supplies Other Operating","CROWN TROPHY",839195.00,$309.00,2018
fy2018-40320,2018-04-03,"General Fund","Emergency Communications","Telecomm Wireless","MCI COMM SERVICE",838451.00,$350.31,2018
fy2018-40321,2018-04-03,"General Fund","Emergency Communications","Telecomm Wireless",AT&T,838277.00,$15.32,2018
fy2018-40322,2018-04-03,"General Fund","Emergency Communications","Telecomm Wireless",VERIZON,838550.00,$285.91,2018
fy2018-40323,2018-04-09,"General Fund","Emergency Communications","Telecomm Wireless","LANGUAGE LINE SERVICES",837613.00,-$60.80,2018
fy2018-40324,2018-04-09,"General Fund","Emergency Communications","Telecomm Wireless",VERIZON,837753.00,-$589.28,2018
fy2018-40325,2018-04-09,"General Fund","Emergency Communications","Telecomm Wireless","VZWRLSS MY VZ",10318.00,$660.28,2018
fy2018-40326,2018-04-09,"General Fund","Emergency Communications","Telecomm Wireless",SPRINT,837713.00,-$78.49,2018
fy2018-40327,2018-04-11,"General Fund","Emergency Communications","Telecomm Wireless",VERIZON,839086.00,$589.28,2018
fy2018-40328,2018-04-11,"General Fund","Emergency Communications","Telecomm Wireless",SPRINT,839067.00,$78.49,2018
fy2018-40329,2018-04-11,"General Fund","Emergency Communications","Telecomm Wireless","LANGUAGE LINE SERVICES",839006.00,$60.80,2018
fy2018-40330,2018-04-24,"General Fund","Emergency Communications","Telecomm Wireless","LANGUAGE LINE SERVICES",839685.00,$81.60,2018
fy2018-40331,2018-04-24,"General Fund","Emergency Communications","Telecomm Wireless",VERIZON,839812.00,$69.65,2018
fy2018-40332,2018-04-17,"General Fund","Emergency Communications","Telecomm Wireless",SPRINT,839439.00,$77.62,2018
fy2018-40333,2018-04-17,"General Fund","Emergency Communications","Telecomm Wireless",VERIZON,839484.00,"$1,939.08",2018
fy2018-40334,2018-04-09,"General Fund","Finance & Management Services","Books & Subscriptions","AMERICAN PAYRO",10318.00,$359.95,2018
fy2018-40335,2018-04-09,"General Fund","Finance & Management Services","Dues & Memberships","CAPITAL AREA P",10318.00,$160.00,2018
fy2018-40336,2018-04-09,"General Fund","Finance & Management Services","Dues & Memberships",AGA,837428.00,-$65.00,2018
fy2018-40337,2018-04-10,"General Fund","Finance & Management Services","Dues & Memberships","SUMNER JACOB",838836.00,$65.00,2018
fy2018-40338,2018-04-11,"General Fund","Finance & Management Services","Dues & Memberships",AGA,838900.00,$65.00,2018
fy2018-40339,2018-04-09,"General Fund","Finance & Management Services","Educational Training","VIRGINIA GOV F",10318.00,$600.00,2018
fy2018-40340,2018-04-10,"General Fund","Finance & Management Services","Educational Training","PETTY CASH CUSTODIAN",838792.00,$50.00,2018
fy2018-40341,2018-04-09,"General Fund","Finance & Management Services","Maintenance Service Contracts",PUBLICSURPLUS,10318.00,$50.00,2018
fy2018-40342,2018-04-10,"General Fund","Finance & Management Services","Mileage Reimbursement","PETTY CASH CUSTODIAN",838791.00,$38.43,2018
fy2018-40343,2018-04-09,"General Fund","Finance & Management Services","Printing & Binding","FEDEX KINKOS",837546.00,-$48.75,2018
fy2018-40344,2018-04-11,"General Fund","Finance & Management Services","Printing & Binding","FEDEX KINKOS",838968.00,$48.75,2018
fy2018-40345,2018-04-09,"General Fund","Finance & Management Services","Software Services","CDW GOVT #LVJ6",10318.00,$207.92,2018
fy2018-40346,2018-04-09,"General Fund","Finance & Management Services",Storage,ACCESS-QUICKPA,10318.00,$7.68,2018
fy2018-40347,2018-04-09,"General Fund","Finance & Management Services","Subsistence & Lodging","WAL-MART #2795",10318.00,$52.22,2018
fy2018-40348,2018-04-09,"General Fund","Finance & Management Services","Supplies Office","AMAZON MKTPLAC",10318.00,$275.08,2018
fy2018-40349,2018-04-09,"General Fund","Finance & Management Services","Supplies Office","GUERNSEY OFFIC",10318.00,$154.38,2018
fy2018-40350,2018-04-10,"County Improvements Fund",Fire-EMS,"Fire Trucks & Ambulances Addtl","ALEXANDER JAMES M",838606.00,$83.00,2018
fy2018-40351,2018-04-09,"County Improvements Fund",Fire-EMS,"Fire Trucks & Ambulances Repl","MASTER GRAPHICS LLC",837630.00,"-$4,979.04",2018
fy2018-40352,2018-04-09,"County Improvements Fund",Fire-EMS,"Fire Trucks & Ambulances Repl","EMERGENCY EQUIPMENT INC",837540.00,-$287.87,2018
fy2018-40353,2018-04-11,"County Improvements Fund",Fire-EMS,"Fire Trucks & Ambulances Repl","MASTER GRAPHICS LLC",839015.00,"$4,979.04",2018
fy2018-40354,2018-04-17,"County Improvements Fund",Fire-EMS,"Fire Trucks & Ambulances Repl","SHEEHY FORD OF RICHMOND",839424.00,"$36,956.48",2018
fy2018-40355,2018-04-11,"County Improvements Fund",Fire-EMS,"Fire Trucks & Ambulances Repl","EMERGENCY EQUIPMENT INC",838966.00,$287.87,2018
fy2018-40356,2018-04-03,"General Fund",Fire-EMS,Advertising,"WRIC TV8",838584.00,$800.00,2018
fy2018-40357,2018-04-10,"General Fund",Fire-EMS,Advertising,"DOTTED LINE COLLABORATIONS",838683.00,"$4,166.67",2018
fy2018-40358,2018-04-09,"General Fund",Fire-EMS,"Computer Equip Non-Cyc Repl","AMAZON MKTPLAC",10318.00,$289.93,2018
fy2018-40359,2018-04-09,"General Fund",Fire-EMS,"Computer Equip Non-Cyc Repl",Amazon.com,10318.00,$191.97,2018
fy2018-40360,2018-04-09,"General Fund",Fire-EMS,"Computer Equip Non-Cyc Repl","CDW GOVT #LSW4",10318.00,$519.80,2018
fy2018-40361,2018-04-09,"General Fund",Fire-EMS,"Computer Equip Non-Cyc Repl","CDW GOVT #LWX7",10318.00,$150.26,2018
fy2018-40362,2018-04-09,"General Fund",Fire-EMS,"Computer Equip Non-Cyc Repl","AMAZON.COM AMZ",10318.00,$89.99,2018
fy2018-40363,2018-04-09,"General Fund",Fire-EMS,"Computer Equip Non-Cyc Repl","CDW GOVT #LVT3",10318.00,$150.26,2018
fy2018-40364,2018-04-17,"General Fund",Fire-EMS,"Computer Equip Non-Cyc Repl","CDW GOVERNMENT, INC.",839163.00,-$414.00,2018
fy2018-40365,2018-04-17,"General Fund",Fire-EMS,"Custodial Svcs Contracts","ORIGINAL BUILDING SERVICE INC",839362.00,$612.01,2018
fy2018-40366,2018-04-09,"General Fund",Fire-EMS,"Dues & Memberships","BJS WHOLESALE",10318.00,$85.00,2018
fy2018-40367,2018-04-09,"General Fund",Fire-EMS,"Educational Training","HILTON GARDEN",10318.00,"$1,342.76",2018
fy2018-40368,2018-04-09,"General Fund",Fire-EMS,"Educational Training","PEN FDIC/FIRE",10318.00,$60.00,2018
fy2018-40369,2018-04-09,"General Fund",Fire-EMS,"Educational Training","TMS VIRGINIA F",10318.00,$75.00,2018
fy2018-40370,2018-04-09,"General Fund",Fire-EMS,"Educational Training","VCU CENTER FOR",10318.00,$310.00,2018
fy2018-40371,2018-04-09,"General Fund",Fire-EMS,"Educational Training","VIRGINIA FIRE",10318.00,$825.00,2018
fy2018-40372,2018-04-09,"General Fund",Fire-EMS,"Educational Training","DOUBLETREE HOT",10318.00,$459.44,2018
fy2018-40373,2018-04-09,"General Fund",Fire-EMS,"Educational Training","UNITED      01",10318.00,$471.00,2018
fy2018-40374,2018-04-10,"General Fund",Fire-EMS,"Educational Training","VIRGINIA FIRE CHIEFS ASSC",838874.00,$790.00,2018
fy2018-40375,2018-04-17,"General Fund",Fire-EMS,"Educational Training","HUBBARD CHRIS",839288.00,"$1,021.75",2018
fy2018-40376,2018-04-24,"General Fund",Fire-EMS,"Educational Training","PHIPPS JEFFREY L",839729.00,$724.70,2018
fy2018-40377,2018-04-03,"General Fund",Fire-EMS,"Electrical Services","DOMINION ENERGY VIRGINIA",838354.00,"$14,152.85",2018
fy2018-40378,2018-04-10,"General Fund",Fire-EMS,"Electrical Services","DOMINION ENERGY VIRGINIA",838681.00,"$5,831.84",2018
fy2018-40379,2018-04-17,"General Fund",Fire-EMS,"Electrical Services","RAPPAHANNOCK ELECTRIC COOP",839387.00,"$8,966.04",2018
fy2018-40380,2018-04-09,"General Fund",Fire-EMS,"Heating Services",VIRGINIANATURA,10318.00,$16.06,2018
fy2018-40381,2018-04-10,"General Fund",Fire-EMS,"Heating Services","AMERIGAS-RICHMOND VA",838611.00,$873.12,2018
fy2018-40382,2018-04-10,"General Fund",Fire-EMS,"Heating Services","VIRGINIA NATURAL GAS INC",838875.00,"$2,305.17",2018
fy2018-40383,2018-04-18,"General Fund",Fire-EMS,"Heating Services","VIRGINIA NATURAL GAS INC",835497.00,"-$3,034.92",2018
fy2018-40384,2018-04-09,"General Fund",Fire-EMS,"Information System Equip Addtl","AMAZON MKTPLAC",10318.00,$704.70,2018
fy2018-40385,2018-04-09,"General Fund",Fire-EMS,"Information System Equip Addtl",Amazon.com,10318.00,$183.38,2018
fy2018-40386,2018-04-09,"General Fund",Fire-EMS,"Information System Equip Addtl","NPI/RAM MOUNTS",10318.00,"$3,164.23",2018
fy2018-40387,2018-04-09,"General Fund",Fire-EMS,"Information System Equip Addtl",OFFICEMAX/DEPO,10318.00,$133.93,2018
fy2018-40388,2018-04-09,"General Fund",Fire-EMS,"Information System Equip Addtl","AMAZON.COM AMZ",10318.00,$449.97,2018
fy2018-40389,2018-04-17,"General Fund",Fire-EMS,"Information System Equip Addtl","CDW GOVERNMENT, INC.",839163.00,"$4,957.68",2018
fy2018-40390,2018-04-03,"General Fund",Fire-EMS,Instructors,"COY DAMIEN",838335.00,$262.50,2018
fy2018-40391,2018-04-03,"General Fund",Fire-EMS,Instructors,"VIRGINIA EMS TRAINING GROUP",838553.00,"$1,820.00",2018
fy2018-40392,2018-04-03,"General Fund",Fire-EMS,Instructors,ODEMSA,838466.00,$350.00,2018
fy2018-40393,2018-04-03,"General Fund",Fire-EMS,Instructors,"SCHLUETER ERIC",838494.00,$413.25,2018
fy2018-40394,2018-04-03,"General Fund",Fire-EMS,Instructors,"WADE MICHAEL P",838558.00,$490.00,2018
fy2018-40395,2018-04-09,"General Fund",Fire-EMS,Instructors,"AMERICAN SAFETY & HEALTH INSTITUTE",837439.00,-$40.00,2018
fy2018-40396,2018-04-09,"General Fund",Fire-EMS,Instructors,"GRAU JOSEPH A JR",837572.00,-$280.00,2018
fy2018-40397,2018-04-10,"General Fund",Fire-EMS,Instructors,"ASHBY LEE ANN",838616.00,$638.00,2018
fy2018-40398,2018-04-10,"General Fund",Fire-EMS,Instructors,"COY DAMIEN",838669.00,$166.25,2018
fy2018-40399,2018-04-10,"General Fund",Fire-EMS,Instructors,"GRAU JOSEPH A JR",838714.00,$507.50,2018
fy2018-40400,2018-04-10,"General Fund",Fire-EMS,Instructors,"CHALLIS LAUREN C",838651.00,$355.25,2018
fy2018-40401,2018-04-10,"General Fund",Fire-EMS,Instructors,"CHINN, FRANK S",838657.00,$385.00,2018
fy2018-40402,2018-04-11,"General Fund",Fire-EMS,Instructors,"GRAU JOSEPH A JR",838981.00,$280.00,2018
fy2018-40403,2018-04-17,"General Fund",Fire-EMS,Instructors,"FRAYSER VERNON M",839244.00,$739.50,2018
fy2018-40404,2018-04-17,"General Fund",Fire-EMS,Instructors,"COULTER, AMANDA",839189.00,$150.00,2018
fy2018-40405,2018-04-17,"General Fund",Fire-EMS,Instructors,"FIGG COLEMAN DRUMMOND",839235.00,$428.75,2018
fy2018-40406,2018-04-17,"General Fund",Fire-EMS,Instructors,"SCHLUETER ERIC",839418.00,$116.00,2018
fy2018-40407,2018-04-24,"General Fund",Fire-EMS,Instructors,"ARES SELF-DEFENSE INC",839527.00,"$2,925.00",2018
fy2018-40408,2018-04-24,"General Fund",Fire-EMS,Instructors,"CHINN, FRANK S",839572.00,$481.25,2018
fy2018-40409,2018-04-11,"General Fund",Fire-EMS,Instructors,"AMERICAN SAFETY & HEALTH INSTITUTE",838908.00,$40.00,2018
fy2018-40410,2018-04-17,"General Fund",Fire-EMS,Instructors,"GRAU JOSEPH A JR",839257.00,$288.75,2018
fy2018-40411,2018-04-24,"General Fund",Fire-EMS,Instructors,"GRAU JOSEPH A JR",839637.00,$533.75,2018
fy2018-40412,2018-04-03,"General Fund",Fire-EMS,"Lease & Rentals Equipment","RICOH USA INC",838486.00,$478.62,2018
fy2018-40413,2018-04-10,"General Fund",Fire-EMS,"Lease & Rentals Equipment","Webster Integrated Technologies Corp (WIT Corp)",838883.00,$382.86,2018
fy2018-40414,2018-04-24,"General Fund",Fire-EMS,"Lease & Rentals Equipment","RICOH USA INC",839753.00,$478.62,2018
fy2018-40415,2018-04-24,"General Fund",Fire-EMS,"Lease & Rentals Facility","MODULAR TECHNOLOGIES INC",839706.00,"$2,147.00",2018
fy2018-40416,2018-04-09,"General Fund",Fire-EMS,"Machinery & Equipment Addtl","AMAZON MKTPLAC",10318.00,$151.80,2018
fy2018-40417,2018-04-10,"General Fund",Fire-EMS,"Machinery & Equipment Addtl","PHYSIO-CONTROL INC",838793.00,"$8,121.75",2018
fy2018-40418,2018-04-24,"General Fund",Fire-EMS,"Machinery & Equipment Addtl","PHYSIO-CONTROL INC",839730.00,"$15,855.75",2018
fy2018-40419,2018-04-03,"General Fund",Fire-EMS,"Maintenance Service Contracts","CINTAS CORPORATION",838317.00,$12.23,2018
fy2018-40420,2018-04-03,"General Fund",Fire-EMS,"Maintenance Service Contracts","STERICYCLE INC",838509.00,$54.00,2018
fy2018-40421,2018-04-09,"General Fund",Fire-EMS,"Maintenance Service Contracts",ACCESS-QUICKPA,10318.00,$5.76,2018
fy2018-40422,2018-04-10,"General Fund",Fire-EMS,"Maintenance Service Contracts","STERICYCLE INC",838831.00,$27.00,2018
fy2018-40423,2018-04-10,"General Fund",Fire-EMS,"Maintenance Service Contracts","CINTAS CORPORATION",838658.00,$12.23,2018
fy2018-40424,2018-04-24,"General Fund",Fire-EMS,"Maintenance Service Contracts","BUG BUSTERS PEST CONTROL SERVICES INC",839559.00,$300.00,2018
fy2018-40425,2018-04-17,"General Fund",Fire-EMS,"Motor Vehicle & Equipment Addl","TIDEWATER FLEET SUPPLY LLC",839458.00,"$1,711.53",2018
fy2018-40426,2018-04-24,"General Fund",Fire-EMS,"Motor Vehicle & Equipment Addl","TIDEWATER FLEET SUPPLY LLC",839797.00,$298.30,2018
fy2018-40427,2018-04-24,"General Fund",Fire-EMS,"Other Auto Insurance","MCNEIL & COMPANY INC",839702.00,$87.47,2018
fy2018-40428,2018-04-09,"General Fund",Fire-EMS,"Professional Health Services","BON SECOURS REGIONAL MED CTR",837471.00,"-$2,840.00",2018
fy2018-40429,2018-04-09,"General Fund",Fire-EMS,"Professional Health Services","BON SECOURS OCCUMED CENTER INC",837470.00,"-$3,040.50",2018
fy2018-40430,2018-04-11,"General Fund",Fire-EMS,"Professional Health Services","BON SECOURS REGIONAL MED CTR",838929.00,"$2,840.00",2018
fy2018-40431,2018-04-11,"General Fund",Fire-EMS,"Professional Health Services","BON SECOURS OCCUMED CENTER INC",838928.00,"$3,040.50",2018
fy2018-40432,2018-04-03,"General Fund",Fire-EMS,"Professional Services","CHANGE HEALTHCARE LLC",838312.00,"$1,216.09",2018
fy2018-40433,2018-04-09,"General Fund",Fire-EMS,"Professional Services","POWELL ROBERT G MD PC",837669.00,"-$2,500.00",2018
fy2018-40434,2018-04-11,"General Fund",Fire-EMS,"Professional Services","POWELL ROBERT G MD PC",839034.00,"$2,500.00",2018
fy2018-40435,2018-04-24,"General Fund",Fire-EMS,"Professional Services","POWELL ROBERT G MD PC",839733.00,"$2,500.00",2018
fy2018-40436,2018-04-24,"General Fund",Fire-EMS,"Professional Services","CHANGE HEALTHCARE LLC",839569.00,"$12,624.30",2018
fy2018-40437,2018-04-09,"General Fund",Fire-EMS,"Protective Clothing","WPSG, INC 800-",10318.00,$820.00,2018
fy2018-40438,2018-04-03,"General Fund",Fire-EMS,"R&M Svcs - Equipment","TACTICAL FIRE EQUIPMENT LLC",838517.00,"$9,109.18",2018
fy2018-40439,2018-04-09,"General Fund",Fire-EMS,"R&M Svcs - Equipment","HON ANALYTICS",10318.00,$712.99,2018
fy2018-40440,2018-04-24,"General Fund",Fire-EMS,"R&M Svcs - Equipment","MOORE, SCOTT",839709.00,$113.00,2018
fy2018-40441,2018-04-03,"General Fund",Fire-EMS,"Repair & Maintenance Services",SIMPLEXGRINNELL,838502.00,"$1,738.00",2018
fy2018-40442,2018-04-03,"General Fund",Fire-EMS,"Repair & Maintenance Services",GUERNSEY,838389.00,$9.80,2018
fy2018-40443,2018-04-03,"General Fund",Fire-EMS,"Repair & Maintenance Services","M E KEETON ELECTRICAL",838442.00,$943.40,2018
fy2018-40444,2018-04-03,"General Fund",Fire-EMS,"Repair & Maintenance Services","STRYKER SALES CORPORATION",838514.00,$375.07,2018
fy2018-40445,2018-04-03,"General Fund",Fire-EMS,"Repair & Maintenance Services",WAL-MART,838560.00,$52.16,2018
fy2018-40446,2018-04-03,"General Fund",Fire-EMS,"Repair & Maintenance Services","360 POWER EQUIPMENT",838262.00,$14.23,2018
fy2018-40447,2018-04-03,"General Fund",Fire-EMS,"Repair & Maintenance Services","HOME DEPOT",838404.00,$3.43,2018
fy2018-40448,2018-04-03,"General Fund",Fire-EMS,"Repair & Maintenance Services","MARKA LLC",838445.00,"$1,860.00",2018
fy2018-40449,2018-04-03,"General Fund",Fire-EMS,"Repair & Maintenance Services","PATRIOT MECHANICAL CORPORATION",838473.00,$185.00,2018
fy2018-40450,2018-04-09,"General Fund",Fire-EMS,"Repair & Maintenance Services","AMAZON MKTPLAC",10318.00,$13.22,2018
fy2018-40451,2018-04-09,"General Fund",Fire-EMS,"Repair & Maintenance Services",Amazon.com,10318.00,$223.88,2018
fy2018-40452,2018-04-09,"General Fund",Fire-EMS,"Repair & Maintenance Services","S B COX INC",10318.00,$450.00,2018
fy2018-40453,2018-04-09,"General Fund",Fire-EMS,"Repair & Maintenance Services","LOWE'S CREDIT SERVICES",837623.00,-$14.24,2018
fy2018-40454,2018-04-09,"General Fund",Fire-EMS,"Repair & Maintenance Services","THE HOME DEPOT",10318.00,$185.73,2018
fy2018-40455,2018-04-09,"General Fund",Fire-EMS,"Repair & Maintenance Services","HOME DEPOT",837586.00,-$491.39,2018
fy2018-40456,2018-04-09,"General Fund",Fire-EMS,"Repair & Maintenance Services","MID ATLANTIC I",10318.00,$986.99,2018
fy2018-40457,2018-04-10,"General Fund",Fire-EMS,"Repair & Maintenance Services","BEAHILL CORPORATION",838629.00,"$3,204.40",2018
fy2018-40458,2018-04-10,"General Fund",Fire-EMS,"Repair & Maintenance Services","CARDNO INC",838648.00,"$2,600.00",2018
fy2018-40459,2018-04-10,"General Fund",Fire-EMS,"Repair & Maintenance Services","JAMES STEPHENS PLUMBING & BACKHOE INC",838751.00,"$1,160.80",2018
fy2018-40460,2018-04-10,"General Fund",Fire-EMS,"Repair & Maintenance Services","DOMINION DOOR SOLUTIONS INC",838680.00,"$3,644.82",2018
fy2018-40461,2018-04-10,"General Fund",Fire-EMS,"Repair & Maintenance Services","HOME DEPOT",838738.00,$417.39,2018
fy2018-40462,2018-04-10,"General Fund",Fire-EMS,"Repair & Maintenance Services","STANDBY SYSTEMS INC",838829.00,$344.12,2018
fy2018-40463,2018-04-11,"General Fund",Fire-EMS,"Repair & Maintenance Services","HOME DEPOT",838993.00,$491.39,2018
fy2018-40464,2018-04-11,"General Fund",Fire-EMS,"Repair & Maintenance Services","LOWE'S CREDIT SERVICES",839011.00,$14.24,2018
fy2018-40465,2018-04-16,"General Fund",Fire-EMS,"Repair & Maintenance Services","360 HARDWARE AND RENTAL",837421.00,-$49.99,2018
fy2018-40466,2018-04-17,"General Fund",Fire-EMS,"Repair & Maintenance Services","MUNICIPAL EMERGENCY SERVICES, INC",839346.00,"$1,905.00",2018
fy2018-40467,2018-04-10,"General Fund",Fire-EMS,"Repair & Maintenance Services","360 POWER EQUIPMENT",838601.00,$651.01,2018
fy2018-40468,2018-04-10,"General Fund",Fire-EMS,"Repair & Maintenance Services","MUNICIPAL EMERGENCY SERVICES, INC",838776.00,"$2,771.52",2018
fy2018-40469,2018-04-24,"General Fund",Fire-EMS,"Repair & Maintenance Services","MUNICIPAL EMERGENCY SERVICES, INC",839713.00,$196.81,2018
fy2018-40470,2018-04-24,"General Fund",Fire-EMS,"Repair & Maintenance Services","BEAHILL CORPORATION",839543.00,"$1,787.00",2018
fy2018-40471,2018-04-24,"General Fund",Fire-EMS,"Repair & Maintenance Services","HOME DEPOT",839654.00,$457.86,2018
fy2018-40472,2018-04-24,"General Fund",Fire-EMS,"Repair & Maintenance Services","MITCHELL WADE ASSOCIATES",839705.00,$634.70,2018
fy2018-40473,2018-04-17,"General Fund",Fire-EMS,"Repair & Maintenance Services","360 HARDWARE AND RENTAL",839096.00,$49.99,2018
fy2018-40474,2018-04-18,"General Fund",Fire-EMS,"Repair & Maintenance Services","DOMINION DOOR SOLUTIONS INC",834955.00,"-$1,966.32",2018
fy2018-40475,2018-04-24,"General Fund",Fire-EMS,"Repair & Maintenance Services","M E KEETON ELECTRICAL",839697.00,"$1,642.20",2018
fy2018-40476,2018-04-24,"General Fund",Fire-EMS,"Repair & Maintenance Services","NAFECO, INC.",839714.00,$90.25,2018
fy2018-40477,2018-04-24,"General Fund",Fire-EMS,"Repair & Maintenance Services","PIONEER PRODUCTS INC",839731.00,$321.94,2018
fy2018-40478,2018-04-24,"General Fund",Fire-EMS,"Repair & Maintenance Services",ULINE,839808.00,$288.62,2018
fy2018-40479,2018-04-03,"General Fund",Fire-EMS,"Small Capital Outlay",WAL-MART,838560.00,$217.00,2018
fy2018-40480,2018-04-09,"General Fund",Fire-EMS,"Small Capital Outlay","15 - ASHLAND -",10318.00,$184.40,2018
fy2018-40481,2018-04-09,"General Fund",Fire-EMS,"Small Capital Outlay","AMAZON MKTPLAC",10318.00,$26.65,2018
fy2018-40482,2018-04-09,"General Fund",Fire-EMS,"Small Capital Outlay","HARBOR FREIGHT",10318.00,$330.28,2018
fy2018-40483,2018-04-09,"General Fund",Fire-EMS,"Small Tools","WPSG, INC 800-",10318.00,$160.94,2018
fy2018-40484,2018-04-09,"General Fund",Fire-EMS,"Software Services","ACTIVE911 INC",10318.00,$25.50,2018
fy2018-40485,2018-04-09,"General Fund",Fire-EMS,"Software Services","DRI GPSGATE AB",10318.00,$49.75,2018
fy2018-40486,2018-04-09,"General Fund",Fire-EMS,"Software Services",NAME-CHEAP.COM,10318.00,$15.00,2018
fy2018-40487,2018-04-17,"General Fund",Fire-EMS,"Software Services",CORRIGO,839186.00,$500.00,2018
fy2018-40488,2018-04-24,"General Fund",Fire-EMS,"Software Services","ZOLL DATA SYSTEMS",839837.00,$318.25,2018
fy2018-40489,2018-04-24,"General Fund",Fire-EMS,"Supplies Edu & Recreational","PIPES OF ARGYLL & SCOTTISH GOODS",839732.00,$500.00,2018
fy2018-40490,2018-04-09,"General Fund",Fire-EMS,"Supplies Medical & Lab","ARMSTRONG MEDI",10318.00,$254.70,2018
fy2018-40491,2018-04-10,"General Fund",Fire-EMS,"Supplies Medical & Lab","BOUND TREE MEDICAL LLC",838637.00,"$4,881.98",2018
fy2018-40492,2018-04-10,"General Fund",Fire-EMS,"Supplies Medical & Lab","PHYSIO-CONTROL INC",838793.00,-$234.90,2018
fy2018-40493,2018-04-17,"General Fund",Fire-EMS,"Supplies Non-Fleet Ins Recover","COASTAL COLLISION WORKS LLC",839180.00,"$1,065.34",2018
fy2018-40494,2018-04-24,"General Fund",Fire-EMS,"Supplies Non-Fleet Ins Recover","GLEN ALLEN TOWING & RECOVERY INC",839631.00,$575.00,2018
fy2018-40495,2018-04-24,"General Fund",Fire-EMS,"Supplies Non-Fleet Ins Recover","GLASS AMERICA LLC",839630.00,$197.26,2018
fy2018-40496,2018-04-03,"General Fund",Fire-EMS,"Supplies Office",GUERNSEY,838389.00,"$1,187.46",2018
fy2018-40497,2018-04-09,"General Fund",Fire-EMS,"Supplies Office","AMAZON.COM AMZ",10318.00,$165.99,2018
fy2018-40498,2018-04-09,"General Fund",Fire-EMS,"Supplies Office",TARGET,10318.00,$6.14,2018
fy2018-40499,2018-04-10,"General Fund",Fire-EMS,"Supplies Office",GUERNSEY,838717.00,$183.75,2018
fy2018-40500,2018-04-10,"General Fund",Fire-EMS,"Supplies Office",ULINE,838861.00,$146.63,2018
fy2018-40501,2018-04-17,"General Fund",Fire-EMS,"Supplies Office","CDW GOVERNMENT, INC.",839163.00,$407.59,2018
fy2018-40502,2018-04-24,"General Fund",Fire-EMS,"Supplies Office",GUERNSEY,839641.00,"$1,004.40",2018
fy2018-40503,2018-04-17,"General Fund",Fire-EMS,"Supplies Office","XL4U LLC",839512.00,$70.00,2018
fy2018-40504,2018-04-03,"General Fund",Fire-EMS,"Supplies Other Operating","DIAMOND SPRINGS WATER CO",838351.00,$176.00,2018
fy2018-40505,2018-04-03,"General Fund",Fire-EMS,"Supplies Other Operating","NAPA/GENUINE PARTS CO.",838459.00,$2.99,2018
fy2018-40506,2018-04-03,"General Fund",Fire-EMS,"Supplies Other Operating",WAL-MART,838560.00,$125.24,2018
fy2018-40507,2018-04-09,"General Fund",Fire-EMS,"Supplies Other Operating","ELITE K9 INC 2",10318.00,$15.93,2018
fy2018-40508,2018-04-09,"General Fund",Fire-EMS,"Supplies Other Operating","MCDONALD'S F49",10318.00,$20.00,2018
fy2018-40509,2018-04-09,"General Fund",Fire-EMS,"Supplies Other Operating","PETSMART # 132",10318.00,$198.97,2018
fy2018-40510,2018-04-09,"General Fund",Fire-EMS,"Supplies Other Operating","CHICK-FIL-A #0",10318.00,$145.15,2018
fy2018-40511,2018-04-09,"General Fund",Fire-EMS,"Supplies Other Operating","PIERCES PITT B",10318.00,$28.22,2018
fy2018-40512,2018-04-10,"General Fund",Fire-EMS,"Supplies Other Operating","ROBOS DETAIL SUPPLIES",838814.00,$275.00,2018
fy2018-40513,2018-04-17,"General Fund",Fire-EMS,"Supplies Other Operating","NAFECO, INC.",839350.00,$12.85,2018
fy2018-40514,2018-04-24,"General Fund",Fire-EMS,"Supplies Other Operating","ARC3 GASES",839526.00,$144.00,2018
fy2018-40515,2018-04-24,"General Fund",Fire-EMS,"Supplies Other Operating","DIAMOND SPRINGS WATER CO",839594.00,$104.00,2018
fy2018-40516,2018-04-09,"General Fund",Fire-EMS,"Supplies Public Safety","DGS RICHMOND W",10318.00,$95.00,2018
fy2018-40517,2018-04-09,"General Fund",Fire-EMS,"Supplies Public Safety","BJS WHOLESALE",10318.00,$138.68,2018
fy2018-40518,2018-04-09,"General Fund",Fire-EMS,"Supplies Public Safety","EZCLOCKS, LLC ",10318.00,$244.69,2018
fy2018-40519,2018-04-17,"General Fund",Fire-EMS,"Supplies Public Safety","RICHMOND OXYGEN CO",839395.00,"$1,254.60",2018
fy2018-40520,2018-04-17,"General Fund",Fire-EMS,"Supplies Public Safety","INFORMATION STATION SPECIALISTS INC",839292.00,$525.00,2018
fy2018-40521,2018-04-24,"General Fund",Fire-EMS,"Supplies Public Safety","SOUTHWEST PLASTIC BINDING CO",839782.00,"$6,147.79",2018
fy2018-40522,2018-04-09,"General Fund",Fire-EMS,"Supplies Veh & Pw Eq Non-Fleet","THE WILL-BURT",10318.00,$72.59,2018
fy2018-40523,2018-04-09,"General Fund",Fire-EMS,"Supplies Veh & Pw Eq Non-Fleet","HANOVER TOOL INC",837580.00,-$70.00,2018
fy2018-40524,2018-04-09,"General Fund",Fire-EMS,"Supplies Veh & Pw Eq Non-Fleet","CUMMINS ATLANT",10318.00,$175.42,2018
fy2018-40525,2018-04-09,"General Fund",Fire-EMS,"Supplies Veh & Pw Eq Non-Fleet","TRACTOR SUPPLY",10318.00,$120.00,2018
fy2018-40526,2018-04-09,"General Fund",Fire-EMS,"Supplies Veh & Pw Eq Non-Fleet","SHEEHY FORD OF",10318.00,$162.24,2018
fy2018-40527,2018-04-09,"General Fund",Fire-EMS,"Supplies Veh & Pw Eq Non-Fleet","VA DMV HANOVER",10318.00,$5.00,2018
fy2018-40528,2018-04-11,"General Fund",Fire-EMS,"Supplies Veh & Pw Eq Non-Fleet","HANOVER TOOL INC",838987.00,$70.00,2018
fy2018-40529,2018-04-24,"General Fund",Fire-EMS,"Supplies Veh & Pw Eq Non-Fleet","CUSTOM HOSE & FITTING",839586.00,$107.14,2018
fy2018-40530,2018-04-24,"General Fund",Fire-EMS,"Supplies Veh & Pw Eq Non-Fleet","FASTENAL COMPANY",839613.00,$2.35,2018
fy2018-40531,2018-04-24,"General Fund",Fire-EMS,"Supplies Veh & Pw Eq Non-Fleet","NAFECO, INC.",839714.00,$198.00,2018
fy2018-40532,2018-04-17,"General Fund",Fire-EMS,"Supplies Veh & Pw Eq Non-Fleet","NAPA/GENUINE PARTS CO.",839352.00,$22.90,2018
fy2018-40533,2018-04-24,"General Fund",Fire-EMS,"Supplies Veh & Pw Eq Non-Fleet","NAPA/GENUINE PARTS CO.",839716.00,$28.98,2018
fy2018-40534,2018-04-03,"General Fund",Fire-EMS,"Telecomm Landline",AT&T,838277.00,$44.19,2018
fy2018-40535,2018-04-03,"General Fund",Fire-EMS,"Telecomm Landline",VERIZON,838550.00,"$1,517.77",2018
fy2018-40536,2018-04-09,"General Fund",Fire-EMS,"Telecomm Landline",VERIZON,837753.00,-$853.49,2018
fy2018-40537,2018-04-09,"General Fund",Fire-EMS,"Telecomm Landline","DTV DIRECTV SE",10318.00,$251.88,2018
fy2018-40538,2018-04-09,"General Fund",Fire-EMS,"Telecomm Landline","VERIZON ONETIM",10318.00,$149.22,2018
fy2018-40539,2018-04-09,"General Fund",Fire-EMS,"Telecomm Landline",CENTURYLINK/SP,10318.00,"$1,362.41",2018
fy2018-40540,2018-04-09,"General Fund",Fire-EMS,"Telecomm Landline",COMCAST,10318.00,$579.47,2018
fy2018-40541,2018-04-09,"General Fund",Fire-EMS,"Telecomm Landline","AT&T    020762",10318.00,$45.92,2018
fy2018-40542,2018-04-09,"General Fund",Fire-EMS,"Telecomm Landline","DISH NETWORK-O",10318.00,$86.19,2018
fy2018-40543,2018-04-10,"General Fund",Fire-EMS,"Telecomm Landline",AT&T,838620.00,$40.79,2018
fy2018-40544,2018-04-11,"General Fund",Fire-EMS,"Telecomm Landline",VERIZON,839086.00,$853.49,2018
fy2018-40545,2018-04-17,"General Fund",Fire-EMS,"Telecomm Landline","TREASURER OF VIRGINIA",839462.00,"$1,019.31",2018
fy2018-40546,2018-04-17,"General Fund",Fire-EMS,"Telecomm Landline","PREMIERE CONFERENCING",839377.00,$98.51,2018
fy2018-40547,2018-04-17,"General Fund",Fire-EMS,"Telecomm Landline",CENTURYLINK,839166.00,$839.87,2018
fy2018-40548,2018-04-24,"General Fund",Fire-EMS,"Telecomm Landline",CENTURYLINK,839566.00,$501.58,2018
fy2018-40549,2018-04-24,"General Fund",Fire-EMS,"Telecomm Landline",VERIZON,839812.00,$798.95,2018
fy2018-40550,2018-04-17,"General Fund",Fire-EMS,"Telecomm Landline",AT&T,839119.00,$44.18,2018
fy2018-40551,2018-04-17,"General Fund",Fire-EMS,"Telecomm Landline",VERIZON,839484.00,$675.76,2018
fy2018-40552,2018-04-24,"General Fund",Fire-EMS,"Telecomm Landline",COMCAST,839578.00,$307.66,2018
fy2018-40553,2018-04-09,"General Fund",Fire-EMS,"Telecomm Wireless","MOBIL SATELLIT",10318.00,"$1,749.00",2018
fy2018-40554,2018-04-09,"General Fund",Fire-EMS,"Telecomm Wireless","VZWRLSS MY VZ",10318.00,"$5,928.87",2018
fy2018-40555,2018-04-17,"General Fund",Fire-EMS,"Trash Removal & Recycling","CENTRAL VIRGINIA WASTE MANAGEMENT AUTHORITY",839165.00,$931.65,2018
fy2018-40556,2018-04-03,"General Fund",Fire-EMS,"Uniforms & Wearing Apparel","NAFECO, INC.",838458.00,$125.00,2018
fy2018-40557,2018-04-03,"General Fund",Fire-EMS,"Uniforms & Wearing Apparel","WITMER PUBLIC SAFETY GROUP INC",838580.00,$50.00,2018
fy2018-40558,2018-04-10,"General Fund",Fire-EMS,"Uniforms & Wearing Apparel","GALLS LLC",838706.00,"$5,494.47",2018
fy2018-40559,2018-04-10,"General Fund",Fire-EMS,"Uniforms & Wearing Apparel","WITMER PUBLIC SAFETY GROUP INC",838888.00,$89.00,2018
fy2018-40560,2018-04-24,"General Fund",Fire-EMS,"Uniforms & Wearing Apparel","WITMER PUBLIC SAFETY GROUP INC",839828.00,$438.00,2018
fy2018-40561,2018-04-24,"General Fund",Fire-EMS,"Uniforms & Wearing Apparel","NAFECO, INC.",839714.00,$262.00,2018
fy2018-40562,2018-04-10,"General Fund","General District Court","Books & Subscriptions","MATTHEW BENDER & CO INC",838770.00,$372.00,2018
fy2018-40563,2018-04-09,"General Fund","General District Court","Court-Appointed Attorney Fee","BOWEN TEN CARDANI PC",837473.00,-$120.00,2018
fy2018-40564,2018-04-09,"General Fund","General District Court","Court-Appointed Attorney Fee","GRAVES LAW PC",837573.00,-$240.00,2018
fy2018-40565,2018-04-09,"General Fund","General District Court","Court-Appointed Attorney Fee","BYNUM, PATRICK R., JR.",837487.00,"-$1,320.00",2018
fy2018-40566,2018-04-09,"General Fund","General District Court","Court-Appointed Attorney Fee","CLOWER, MICHAEL D",837498.00,-$840.00,2018
fy2018-40567,2018-04-09,"General Fund","General District Court","Court-Appointed Attorney Fee","RAILSIDE LAW GROUP PLLC",837677.00,-$120.00,2018
fy2018-40568,2018-04-10,"General Fund","General District Court","Court-Appointed Attorney Fee","BYNUM, PATRICK R., JR.",838645.00,$240.00,2018
fy2018-40569,2018-04-10,"General Fund","General District Court","Court-Appointed Attorney Fee","GRAVES LAW PC",838715.00,$120.00,2018
fy2018-40570,2018-04-10,"General Fund","General District Court","Court-Appointed Attorney Fee","RAILSIDE LAW GROUP PLLC",838799.00,$360.00,2018
fy2018-40571,2018-04-10,"General Fund","General District Court","Court-Appointed Attorney Fee","SUTTON, DANNIE R",838839.00,$120.00,2018
fy2018-40572,2018-04-10,"General Fund","General District Court","Court-Appointed Attorney Fee","WELLS, LINWOOD T III",838884.00,$240.00,2018
fy2018-40573,2018-04-10,"General Fund","General District Court","Court-Appointed Attorney Fee","CLOWER, MICHAEL D",838660.00,$240.00,2018
fy2018-40574,2018-04-10,"General Fund","General District Court","Court-Appointed Attorney Fee","COTV LAW OFFICE PLLC",838667.00,$120.00,2018
fy2018-40575,2018-04-10,"General Fund","General District Court","Court-Appointed Attorney Fee","JURACH TACEY & QUITIQUIT PLC",838756.00,$240.00,2018
fy2018-40576,2018-04-10,"General Fund","General District Court","Court-Appointed Attorney Fee","BOWEN TEN CARDANI PC",838638.00,$240.00,2018
fy2018-40577,2018-04-10,"General Fund","General District Court","Court-Appointed Attorney Fee","STARK AND STARK PLC",838830.00,$360.00,2018
fy2018-40578,2018-04-11,"General Fund","General District Court","Court-Appointed Attorney Fee","RAILSIDE LAW GROUP PLLC",839042.00,$120.00,2018
fy2018-40579,2018-04-11,"General Fund","General District Court","Court-Appointed Attorney Fee","BOWEN TEN CARDANI PC",838930.00,$120.00,2018
fy2018-40580,2018-04-11,"General Fund","General District Court","Court-Appointed Attorney Fee","GRAVES LAW PC",838982.00,$240.00,2018
fy2018-40581,2018-04-17,"General Fund","General District Court","Court-Appointed Attorney Fee","STARK AND STARK PLC",839442.00,$120.00,2018
fy2018-40582,2018-04-11,"General Fund","General District Court","Court-Appointed Attorney Fee","BYNUM, PATRICK R., JR.",838943.00,"$1,320.00",2018
fy2018-40583,2018-04-11,"General Fund","General District Court","Court-Appointed Attorney Fee","CLOWER, MICHAEL D",838947.00,$840.00,2018
fy2018-40584,2018-04-17,"General Fund","General District Court","Court-Appointed Attorney Fee","BYNUM, PATRICK R., JR.",839150.00,$240.00,2018
fy2018-40585,2018-04-17,"General Fund","General District Court","Court-Appointed Attorney Fee","WELLS, LINWOOD T III",839498.00,$600.00,2018
fy2018-40586,2018-04-16,"General Fund","General District Court","Court-Appointed Attorney Fee","WELLS, LINWOOD T III",837761.00,-$480.00,2018
fy2018-40587,2018-04-17,"General Fund","General District Court","Court-Appointed Attorney Fee","JURACH TACEY & QUITIQUIT PLC",839306.00,$240.00,2018
fy2018-40588,2018-04-24,"General Fund","General District Court","Court-Appointed Attorney Fee","CLOWER, MICHAEL D",839575.00,$360.00,2018
fy2018-40589,2018-04-24,"General Fund","General District Court","Court-Appointed Attorney Fee","RAILSIDE LAW GROUP PLLC",839738.00,$120.00,2018
fy2018-40590,2018-04-24,"General Fund","General District Court","Court-Appointed Attorney Fee","JURACH TACEY & QUITIQUIT PLC",839674.00,$480.00,2018
fy2018-40591,2018-04-24,"General Fund","General District Court","Court-Appointed Attorney Fee","STARK AND STARK PLC",839785.00,$120.00,2018
fy2018-40592,2018-04-24,"General Fund","General District Court","Court-Appointed Attorney Fee","WELLS, LINWOOD T III",839823.00,$120.00,2018
fy2018-40593,2018-04-17,"General Fund","General District Court","Court-Appointed Attorney Fee","COTV LAW OFFICE PLLC",839188.00,$120.00,2018
fy2018-40594,2018-04-17,"General Fund","General District Court","Court-Appointed Attorney Fee","MCCAUL, MARTIN, EVANS AND COOK, P. C.",839335.00,$120.00,2018
fy2018-40595,2018-04-24,"General Fund","General District Court","Court-Appointed Attorney Fee","BOWEN TEN CARDANI PC",839554.00,$120.00,2018
fy2018-40596,2018-04-09,"General Fund","General District Court","Lease & Rentals Equipment","VIRGINIA BUSINESS SYSTEMS",837755.00,-$76.75,2018
fy2018-40597,2018-04-10,"General Fund","General District Court","Lease & Rentals Equipment","VIRGINIA BUSINESS SYSTEMS",838872.00,$136.75,2018
fy2018-40598,2018-04-11,"General Fund","General District Court","Lease & Rentals Equipment","VIRGINIA BUSINESS SYSTEMS",839087.00,$76.75,2018
fy2018-40599,2018-04-24,"General Fund","General District Court","Lease & Rentals Equipment","VIRGINIA BUSINESS SYSTEMS",839815.00,$76.75,2018
fy2018-40600,2018-04-24,"General Fund","General District Court","Lease & Rentals Equipment","XEROX CORPORATION",839834.00,$125.89,2018
fy2018-40601,2018-04-24,"General Fund","General District Court","Refunds Bond","HENDERSON BAIL BONDING LLC",839649.00,"$1,000.00",2018
fy2018-40602,2018-04-09,"General Fund","General District Court","Supplies Office","SUPPLY ROOM COMPANIES,THE",837722.00,-$417.03,2018
fy2018-40603,2018-04-10,"General Fund","General District Court","Supplies Office","TSRC INC",838860.00,$85.78,2018
fy2018-40604,2018-04-11,"General Fund","General District Court","Supplies Office","SUPPLY ROOM COMPANIES,THE",839072.00,$417.03,2018
fy2018-40605,2018-04-03,"County Improvements Fund","General Services",Construction,"Loughridge & Company LLC",837622.00,"-$769,535.54",2018
fy2018-40606,2018-04-04,"County Improvements Fund","General Services",Construction,"Loughridge & Company LLC",838596.00,"$769,535.54",2018
fy2018-40607,2018-04-17,"County Improvements Fund","General Services",Construction,"ATLANTIC GEOTECHNICAL SERVICES INC",839120.00,$110.00,2018
fy2018-40608,2018-04-17,"County Improvements Fund","General Services",Construction,"Loughridge & Company LLC",839324.00,"$551,242.13",2018
fy2018-40609,2018-04-03,"County Improvements Fund","General Services","Engineering & Architect Svcs","MOSELEY ARCHITECTS",837642.00,"-$4,249.05",2018
fy2018-40610,2018-04-04,"County Improvements Fund","General Services","Engineering & Architect Svcs","MOSELEY ARCHITECTS",838598.00,"$4,249.05",2018
fy2018-40611,2018-04-17,"County Improvements Fund","General Services","Information System Equip Addtl","DELL MARKETING L.P.",839205.00,"$7,303.14",2018
fy2018-40612,2018-04-03,"County Improvements Fund","General Services","Motor Vehicle & Equipment Repl","HALEY FORD  SOUTH",838393.00,"$15,713.00",2018
fy2018-40613,2018-04-17,"County Improvements Fund","General Services","Motor Vehicle & Equipment Repl","RK CHEVROLET",839410.00,"$28,727.90",2018
fy2018-40614,2018-04-03,"County Improvements Fund","General Services","Professional Services","MOSELEY ARCHITECTS",837642.00,"-$14,039.76",2018
fy2018-40615,2018-04-04,"County Improvements Fund","General Services","Professional Services","MOSELEY ARCHITECTS",838598.00,"$14,039.76",2018
fy2018-40616,2018-04-17,"County Improvements Fund","General Services","Professional Services","MOSELEY ARCHITECTS",839344.00,"$11,885.41",2018
fy2018-40617,2018-04-03,"General Fund","General Services","Building Accessory Equip Addtl","MID-ATLANTIC CONTROLS",838456.00,"$32,900.00",2018
fy2018-40618,2018-04-03,"General Fund","General Services","Condo Association Fees","BELL CREEK OLSEN OFFICES",838289.00,"$3,243.95",2018
fy2018-40619,2018-04-24,"General Fund","General Services","Contractual Services","RICHMOND AUTO AUCTION OF VA INC",839749.00,"$11,880.32",2018
fy2018-40620,2018-04-17,"General Fund","General Services","Custodial Svcs Contracts","ORIGINAL BUILDING SERVICE INC",839362.00,"$19,912.46",2018
fy2018-40621,2018-04-17,"General Fund","General Services","Educational Training","DAY, STEPHEN",839204.00,$118.00,2018
fy2018-40622,2018-04-03,"General Fund","General Services","Electrical Services","DOMINION ENERGY VIRGINIA",838354.00,"$13,885.37",2018
fy2018-40623,2018-04-03,"General Fund","General Services","Electrical Services","DOMINION ENERGY VIRGINIA",838355.00,"$5,851.16",2018
fy2018-40624,2018-04-10,"General Fund","General Services","Electrical Services","DOMINION ENERGY VIRGINIA",838681.00,"$20,153.92",2018
fy2018-40625,2018-04-17,"General Fund","General Services","Electrical Services","DOMINION ENERGY VIRGINIA",839213.00,$392.85,2018
fy2018-40626,2018-04-24,"General Fund","General Services","Electrical Services","DOMINION ENERGY VIRGINIA",839598.00,$248.61,2018
fy2018-40627,2018-04-04,"General Fund","General Services","Fleet Fuel Payable","QUARLES PETROLEUM INC",4042018.00,"$86,396.76",2018
fy2018-40628,2018-04-20,"General Fund","General Services","Fleet Fuel Payable","QUARLES PETROLEUM INC",42018.00,"$106,888.89",2018
fy2018-40629,2018-04-30,"General Fund","General Services","Fleet Fuel Payable","QUARLES PETROLEUM INC",43018.00,"$111,368.83",2018
fy2018-40630,2018-04-03,"General Fund","General Services","Fleet Parts Inventory","JAMES RIVER EQUIPMENT",838415.00,$34.26,2018
fy2018-40631,2018-04-03,"General Fund","General Services","Fleet Parts Inventory","WILLIAMS EMERGENCY VEHICLE SERVICES LLC",838575.00,$366.34,2018
fy2018-40632,2018-04-03,"General Fund","General Services","Fleet Parts Inventory","PENINSULA SALES",838475.00,$165.42,2018
fy2018-40633,2018-04-03,"General Fund","General Services","Fleet Parts Inventory","PASCO BATTERY WAREHOUSE OF VIRGINIA LLC",838472.00,$165.00,2018
fy2018-40634,2018-04-03,"General Fund","General Services","Fleet Parts Inventory","WESTERN BRANCH DIESEL INC",838571.00,$549.90,2018
fy2018-40635,2018-04-03,"General Fund","General Services","Fleet Parts Inventory","CAPITAL GMC TRUCKS INC",838304.00,$64.23,2018
fy2018-40636,2018-04-09,"General Fund","General Services","Fleet Parts Inventory","KAMAN INDUSTRIAL TECHNOLOGIES",837603.00,-$30.13,2018
fy2018-40637,2018-04-09,"General Fund","General Services","Fleet Parts Inventory","SUMMIT RACING",10318.00,-$223.18,2018
fy2018-40638,2018-04-09,"General Fund","General Services","Fleet Parts Inventory","TRIDENT EMERGE",10318.00,$241.86,2018
fy2018-40639,2018-04-09,"General Fund","General Services","Fleet Parts Inventory","BG PRODUCTS OF CENTRAL VIRGINIA",837460.00,"-$5,994.90",2018
fy2018-40640,2018-04-09,"General Fund","General Services","Fleet Parts Inventory","BLUE BIRD SALES OF PITTSBURGH INC",837467.00,-$329.60,2018
fy2018-40641,2018-04-09,"General Fund","General Services","Fleet Parts Inventory","LEETE TIRE & AUTO CENTER INC",837615.00,-$288.94,2018
fy2018-40642,2018-04-09,"General Fund","General Services","Fleet Parts Inventory","CUSTOM HOSE & FITTING",837519.00,-$22.91,2018
fy2018-40643,2018-04-09,"General Fund","General Services","Fleet Parts Inventory","WILLIAMS EMERGENCY VEHICLE SERVICES LLC",837766.00,-$78.77,2018
fy2018-40644,2018-04-09,"General Fund","General Services","Fleet Parts Inventory","RV AND AUTO PA",10318.00,$76.37,2018
fy2018-40645,2018-04-09,"General Fund","General Services","Fleet Parts Inventory",SIMPLEXGRINNELL,837708.00,-$517.14,2018
fy2018-40646,2018-04-11,"General Fund","General Services","Fleet Parts Inventory",SIMPLEXGRINNELL,839064.00,$517.14,2018
fy2018-40647,2018-04-11,"General Fund","General Services","Fleet Parts Inventory","CUSTOM HOSE & FITTING",838957.00,$22.91,2018
fy2018-40648,2018-04-11,"General Fund","General Services","Fleet Parts Inventory","KAMAN INDUSTRIAL TECHNOLOGIES",839000.00,$30.13,2018
fy2018-40649,2018-04-17,"General Fund","General Services","Fleet Parts Inventory","BLUE BIRD SALES OF PITTSBURGH INC",839139.00,"$4,169.91",2018
fy2018-40650,2018-04-17,"General Fund","General Services","Fleet Parts Inventory","CAPITAL GMC TRUCKS INC",839156.00,$313.76,2018
fy2018-40651,2018-04-17,"General Fund","General Services","Fleet Parts Inventory","CROSSROADS FORD MAZDA OF PRINCE GEORGE",839193.00,"$4,606.33",2018
fy2018-40652,2018-04-17,"General Fund","General Services","Fleet Parts Inventory","FESCO EMERGENCY SALES",839234.00,"$1,008.20",2018
fy2018-40653,2018-04-17,"General Fund","General Services","Fleet Parts Inventory","JAMES RIVER EQUIPMENT",839299.00,$117.51,2018
fy2018-40654,2018-04-17,"General Fund","General Services","Fleet Parts Inventory","PENINSULA SALES",839368.00,$885.63,2018
fy2018-40655,2018-04-17,"General Fund","General Services","Fleet Parts Inventory","TRUCKPRO INC",839468.00,"$5,138.04",2018
fy2018-40656,2018-04-17,"General Fund","General Services","Fleet Parts Inventory","WHITTEN BROTHERS OF ASHLAND INC",839505.00,$13.36,2018
fy2018-40657,2018-04-17,"General Fund","General Services","Fleet Parts Inventory","CARTER MACHINERY CO INC",839160.00,$209.60,2018
fy2018-40658,2018-04-17,"General Fund","General Services","Fleet Parts Inventory",GRAINGER,839255.00,$105.08,2018
fy2018-40659,2018-04-17,"General Fund","General Services","Fleet Parts Inventory","KINGMOR SUPPLY INC",839311.00,"$1,940.95",2018
fy2018-40660,2018-04-17,"General Fund","General Services","Fleet Parts Inventory","KORMAN SIGNS, INC.",839312.00,$543.74,2018
fy2018-40661,2018-04-17,"General Fund","General Services","Fleet Parts Inventory","LAWRENCE EQUIPMENT",839319.00,$625.90,2018
fy2018-40662,2018-04-17,"General Fund","General Services","Fleet Parts Inventory","QUALITY AUTOMOTIVE WAREHOUSE",839381.00,"$1,425.70",2018
fy2018-40663,2018-04-17,"General Fund","General Services","Fleet Parts Inventory","RICHMOND BUMPER SERVICE",839394.00,$49.50,2018
fy2018-40664,2018-04-17,"General Fund","General Services","Fleet Parts Inventory","ASHLAND ACE HARDWARE",839116.00,$50.11,2018
fy2018-40665,2018-04-17,"General Fund","General Services","Fleet Parts Inventory","EXCEL TRUCK GROUP",839226.00,"$1,647.99",2018
fy2018-40666,2018-04-17,"General Fund","General Services","Fleet Parts Inventory",FLEETPRIDE,839239.00,$22.60,2018
fy2018-40667,2018-04-17,"General Fund","General Services","Fleet Parts Inventory","WESTERN BRANCH DIESEL INC",839499.00,"$1,779.31",2018
fy2018-40668,2018-04-17,"General Fund","General Services","Fleet Parts Inventory","SEREDNI AUGIE INC",839421.00,"$9,012.12",2018
fy2018-40669,2018-04-17,"General Fund","General Services","Fleet Parts Inventory","TIDEWATER FLEET SUPPLY LLC",839457.00,"$2,325.13",2018
fy2018-40670,2018-04-17,"General Fund","General Services","Fleet Parts Inventory","VIRGINIA PUBLIC WORKS EQUIPMENT COMPANY",839489.00,$72.26,2018
fy2018-40671,2018-04-24,"General Fund","General Services","Fleet Parts Inventory","GOODMAN TRUCK & TRACTOR",839633.00,"$6,120.58",2018
fy2018-40672,2018-04-24,"General Fund","General Services","Fleet Parts Inventory","IEH AUTO PARTS LLC",839660.00,$84.98,2018
fy2018-40673,2018-04-24,"General Fund","General Services","Fleet Parts Inventory","PASCO BATTERY WAREHOUSE OF VIRGINIA LLC",839724.00,$176.79,2018
fy2018-40674,2018-04-24,"General Fund","General Services","Fleet Parts Inventory","RICHMOND FORD LLC",839750.00,$44.86,2018
fy2018-40675,2018-04-24,"General Fund","General Services","Fleet Parts Inventory","BLUE BIRD SALES OF PITTSBURGH INC",839549.00,$131.59,2018
fy2018-40676,2018-04-24,"General Fund","General Services","Fleet Parts Inventory","CROSSROADS CHRYSLER JEEP DODGE",839583.00,$224.40,2018
fy2018-40677,2018-04-24,"General Fund","General Services","Fleet Parts Inventory","RUSH TRUCK CENTERS OF VIRGINIA INC",839765.00,$648.04,2018
fy2018-40678,2018-04-11,"General Fund","General Services","Fleet Parts Inventory","BG PRODUCTS OF CENTRAL VIRGINIA",838920.00,"$5,994.90",2018
fy2018-40679,2018-04-11,"General Fund","General Services","Fleet Parts Inventory","BLUE BIRD SALES OF PITTSBURGH INC",838926.00,$329.60,2018
fy2018-40680,2018-04-11,"General Fund","General Services","Fleet Parts Inventory","LEETE TIRE & AUTO CENTER INC",839007.00,$288.94,2018
fy2018-40681,2018-04-11,"General Fund","General Services","Fleet Parts Inventory","WILLIAMS EMERGENCY VEHICLE SERVICES LLC",839092.00,$78.77,2018
fy2018-40682,2018-04-16,"General Fund","General Services","Fleet Parts Inventory","FESCO EMERGENCY SALES",837548.00,-$133.53,2018
fy2018-40683,2018-04-17,"General Fund","General Services","Fleet Parts Inventory","CENTRAL TIRE CORPORATION",839164.00,"$1,182.00",2018
fy2018-40684,2018-04-17,"General Fund","General Services","Fleet Parts Inventory","CROSSROADS FORD MAZDA OF PRINCE GEORGE",839192.00,$832.09,2018
fy2018-40685,2018-04-17,"General Fund","General Services","Fleet Parts Inventory","CROSSROADS FUEL SERVICE",839194.00,"$1,125.95",2018
fy2018-40686,2018-04-17,"General Fund","General Services","Fleet Parts Inventory","CUSTOM HOSE & FITTING",839196.00,$689.31,2018
fy2018-40687,2018-04-17,"General Fund","General Services","Fleet Parts Inventory","FISHER AUTO PARTS INC",839238.00,"$2,544.10",2018
fy2018-40688,2018-04-17,"General Fund","General Services","Fleet Parts Inventory","GCR TIRES & SERVICE",839246.00,"$3,282.90",2018
fy2018-40689,2018-04-17,"General Fund","General Services","Fleet Parts Inventory","IEH AUTO PARTS LLC",839290.00,$229.91,2018
fy2018-40690,2018-04-17,"General Fund","General Services","Fleet Parts Inventory","LEETE TIRE & AUTO CENTER INC",839320.00,"$2,560.00",2018
fy2018-40691,2018-04-17,"General Fund","General Services","Fleet Parts Inventory","NAFECO, INC.",839350.00,$232.50,2018
fy2018-40692,2018-04-17,"General Fund","General Services","Fleet Parts Inventory",SIMPLEXGRINNELL,839429.00,$285.00,2018
fy2018-40693,2018-04-17,"General Fund","General Services","Fleet Parts Inventory","SONNY MERRYMAN, INC.",839435.00,$959.94,2018
fy2018-40694,2018-04-24,"General Fund","General Services","Fleet Parts Inventory","JAMES RIVER EQUIPMENT",839667.00,$683.90,2018
fy2018-40695,2018-04-24,"General Fund","General Services","Fleet Parts Inventory","NAPA AUTO PARTS",839715.00,"$1,570.08",2018
fy2018-40696,2018-04-03,"General Fund","General Services","Heating Services","PAPCO, INC",838469.00,"$2,434.26",2018
fy2018-40697,2018-04-09,"General Fund","General Services","Heating Services",AmeriGas,10318.00,"$12,438.77",2018
fy2018-40698,2018-04-10,"General Fund","General Services","Heating Services","VIRGINIA NATURAL GAS INC",838876.00,"$2,525.03",2018
fy2018-40699,2018-04-10,"General Fund","General Services","Heating Services","VIRGINIA NATURAL GAS INC",838875.00,$860.39,2018
fy2018-40700,2018-04-17,"General Fund","General Services","Heating Services","PAPCO, INC",839365.00,$582.59,2018
fy2018-40701,2018-04-17,"General Fund","General Services","Heating Services","VIRGINIA NATURAL GAS INC",839488.00,$82.88,2018
fy2018-40702,2018-04-18,"General Fund","General Services","Heating Services","VIRGINIA NATURAL GAS INC",835497.00,"-$1,057.06",2018
fy2018-40703,2018-04-03,"General Fund","General Services","Lease & Rentals Equipment","RICOH USA INC",838486.00,$133.43,2018
fy2018-40704,2018-04-10,"General Fund","General Services","Lease & Rentals Equipment","VIRGINIA BUSINESS SYSTEMS",838873.00,$321.40,2018
fy2018-40705,2018-04-10,"General Fund","General Services","Lease & Rentals Equipment","XEROX CORPORATION",838894.00,"$1,744.88",2018
fy2018-40706,2018-04-17,"General Fund","General Services","Lease & Rentals Equipment","RICOH USA INC",839403.00,$664.86,2018
fy2018-40707,2018-04-17,"General Fund","General Services","Lease & Rentals Equipment","RICOH USA INC",839401.00,$45.10,2018
fy2018-40708,2018-04-17,"General Fund","General Services","Lease & Rentals Equipment","RICOH USA INC",839402.00,$133.43,2018
fy2018-40709,2018-04-17,"General Fund","General Services","Lease & Rentals Equipment","XEROX CORPORATION",839511.00,$758.83,2018
fy2018-40710,2018-04-24,"General Fund","General Services","Machinery & Equipment Addtl","SONNY MERRYMAN, INC.",839780.00,"$3,325.00",2018
fy2018-40711,2018-04-24,"General Fund","General Services","Machinery & Equipment Addtl","NAPA AUTO PARTS",839715.00,$165.52,2018
fy2018-40712,2018-04-09,"General Fund","General Services","Maint Svc Contracts Countywide","QUARLES PETROLEUM INC",837674.00,"-$1,058.73",2018
fy2018-40713,2018-04-09,"General Fund","General Services","Maint Svc Contracts Countywide","CINTAS 143",10318.00,$191.90,2018
fy2018-40714,2018-04-09,"General Fund","General Services","Maint Svc Contracts Countywide","TFC RECYCLING",10318.00,$223.11,2018
fy2018-40715,2018-04-09,"General Fund","General Services","Maint Svc Contracts Countywide","SHRED-IT USA L",10318.00,"$2,563.10",2018
fy2018-40716,2018-04-09,"General Fund","General Services","Maint Svc Contracts Countywide","PERMATREAT PES",10318.00,$313.00,2018
fy2018-40717,2018-04-11,"General Fund","General Services","Maint Svc Contracts Countywide","QUARLES PETROLEUM INC",839039.00,"$1,058.73",2018
fy2018-40718,2018-04-17,"General Fund","General Services","Maint Svc Contracts Countywide","QUARLES PETROLEUM INC",839382.00,$155.82,2018
fy2018-40719,2018-04-17,"General Fund","General Services","Maint Svc Contracts Countywide","DOLI/BOILER SAFETY",839212.00,$100.00,2018
fy2018-40720,2018-04-17,"General Fund","General Services","Maint Svc Contracts Countywide","MID-ATLANTIC CONTROLS",839341.00,$413.00,2018
fy2018-40721,2018-04-09,"General Fund","General Services","Maintenance Service Contracts","PITNEY BOWES P",10318.00,"$1,184.83",2018
fy2018-40722,2018-04-09,"General Fund","General Services","Maintenance Service Contracts","BUG BUSTERS PEST CONTROL SERVICES INC",837484.00,-$20.00,2018
fy2018-40723,2018-04-09,"General Fund","General Services","Maintenance Service Contracts","PBI LeasedEqui",10318.00,"$1,992.00",2018
fy2018-40724,2018-04-10,"General Fund","General Services","Maintenance Service Contracts","BUG BUSTERS PEST CONTROL SERVICES INC",838641.00,$10.00,2018
fy2018-40725,2018-04-11,"General Fund","General Services","Maintenance Service Contracts","BUG BUSTERS PEST CONTROL SERVICES INC",838940.00,$20.00,2018
fy2018-40726,2018-04-17,"General Fund","General Services","Maintenance Service Contracts","MAYO & ASSOCIATES, INC.",839333.00,$75.00,2018
fy2018-40727,2018-04-10,"General Fund","General Services","Mileage Reimbursement","PETTY CASH CUSTODIAN",838791.00,$25.07,2018
fy2018-40728,2018-04-17,"General Fund","General Services","Motor Vehicle & Equipment Addl","R K CHEVROLET INC",839383.00,"$21,637.80",2018
fy2018-40729,2018-04-24,"General Fund","General Services","Professional Health Services","BON SECOURS REGIONAL MED CTR",839551.00,$239.00,2018
fy2018-40730,2018-04-17,"General Fund","General Services","Professional Services","INSURANCE BUYERS COUNCIL, INC.",839293.00,"$4,687.50",2018
fy2018-40731,2018-04-03,"General Fund","General Services","R&M Svcs - Equipment","SERVICE STATION EQUIPMENT COMPANY, INC.",838498.00,$931.94,2018
fy2018-40732,2018-04-17,"General Fund","General Services","R&M Svcs - Equipment","CRANE 1 SERVICES INC",839190.00,$395.00,2018
fy2018-40733,2018-04-03,"General Fund","General Services","R&M Svcs - Facilities","AIRECO SUPPLY INC.",838266.00,$97.35,2018
fy2018-40734,2018-04-03,"General Fund","General Services","R&M Svcs - Facilities","HOME DEPOT CREDIT SVCS",838405.00,$707.48,2018
fy2018-40735,2018-04-03,"General Fund","General Services","R&M Svcs - Facilities","R E MICHEL COMPANY INC",838481.00,$54.04,2018
fy2018-40736,2018-04-03,"General Fund","General Services","R&M Svcs - Facilities","VAMAC, INC.",838549.00,$58.88,2018
fy2018-40737,2018-04-03,"General Fund","General Services","R&M Svcs - Facilities","RICOH USA INC",838487.00,$156.89,2018
fy2018-40738,2018-04-03,"General Fund","General Services","R&M Svcs - Facilities","TRANE COMPANY",838535.00,$43.54,2018
fy2018-40739,2018-04-03,"General Fund","General Services","R&M Svcs - Facilities","CAPITAL TRISTATE",838305.00,$349.21,2018
fy2018-40740,2018-04-03,"General Fund","General Services","R&M Svcs - Facilities","POWER & HEAT SYSTEMS LLC",838479.00,"$2,550.78",2018
fy2018-40741,2018-04-03,"General Fund","General Services","R&M Svcs - Facilities","1-800-DRY CLEAN OF DOWNTOWN RICHMOND LLC",838261.00,$13.00,2018
fy2018-40742,2018-04-09,"General Fund","General Services","R&M Svcs - Facilities","AMAZON MKTPLAC",10318.00,$302.49,2018
fy2018-40743,2018-04-09,"General Fund","General Services","R&M Svcs - Facilities","LOGMEIN GoToMy",10318.00,$229.92,2018
fy2018-40744,2018-04-09,"General Fund","General Services","R&M Svcs - Facilities","US FLAG STORE",10318.00,$90.61,2018
fy2018-40745,2018-04-09,"General Fund","General Services","R&M Svcs - Facilities","ALLEN CORPORATION OF AMERICA INC",837435.00,-$525.00,2018
fy2018-40746,2018-04-09,"General Fund","General Services","R&M Svcs - Facilities","R E MICHEL COMPANY INC",837675.00,-$17.12,2018
fy2018-40747,2018-04-09,"General Fund","General Services","R&M Svcs - Facilities","ATLANTECH DIST",10318.00,$985.00,2018
fy2018-40748,2018-04-09,"General Fund","General Services","R&M Svcs - Facilities","PAYPAL  JFCOOP",10318.00,$58.55,2018
fy2018-40749,2018-04-09,"General Fund","General Services","R&M Svcs - Facilities","PAYPAL  KENCOE",10318.00,$76.00,2018
fy2018-40750,2018-04-09,"General Fund","General Services","R&M Svcs - Facilities","TRANE COMPANY",837739.00,-$234.78,2018
fy2018-40751,2018-04-09,"General Fund","General Services","R&M Svcs - Facilities",ACCESS-QUICKPA,10318.00,$69.42,2018
fy2018-40752,2018-04-09,"General Fund","General Services","R&M Svcs - Facilities","AmazonPrime Me",10318.00,$99.00,2018
fy2018-40753,2018-04-09,"General Fund","General Services","R&M Svcs - Facilities","PAYPAL  SMARTS",10318.00,$37.90,2018
fy2018-40754,2018-04-09,"General Fund","General Services","R&M Svcs - Facilities","THE WEBSTAURAN",10318.00,$338.42,2018
fy2018-40755,2018-04-09,"General Fund","General Services","R&M Svcs - Facilities","DOMINION LOCK & SECURITY INC",837531.00,-$32.76,2018
fy2018-40756,2018-04-09,"General Fund","General Services","R&M Svcs - Facilities","SQ  CIMCO INCO",10318.00,"$5,056.39",2018
fy2018-40757,2018-04-10,"General Fund","General Services","R&M Svcs - Facilities","AIRECO SUPPLY INC.",838605.00,$98.31,2018
fy2018-40758,2018-04-10,"General Fund","General Services","R&M Svcs - Facilities","ALLEN CORPORATION OF AMERICA INC",838608.00,$105.00,2018
fy2018-40759,2018-04-10,"General Fund","General Services","R&M Svcs - Facilities","BEAHILL CORPORATION",838629.00,$677.00,2018
fy2018-40760,2018-04-10,"General Fund","General Services","R&M Svcs - Facilities","DOMINION LOCK & SECURITY INC",838682.00,$855.27,2018
fy2018-40761,2018-04-10,"General Fund","General Services","R&M Svcs - Facilities","FERGUSON ENTERPRISES INC",838698.00,$43.53,2018
fy2018-40762,2018-04-10,"General Fund","General Services","R&M Svcs - Facilities","HOME DEPOT CREDIT SVCS",838739.00,$383.54,2018
fy2018-40763,2018-04-10,"General Fund","General Services","R&M Svcs - Facilities","TRANE COMPANY",838849.00,$140.66,2018
fy2018-40764,2018-04-10,"General Fund","General Services","R&M Svcs - Facilities","VAMAC, INC.",838868.00,$14.77,2018
fy2018-40765,2018-04-11,"General Fund","General Services","R&M Svcs - Facilities","R E MICHEL COMPANY INC",839040.00,$17.12,2018
fy2018-40766,2018-04-11,"General Fund","General Services","R&M Svcs - Facilities","TRANE COMPANY",839079.00,$234.78,2018
fy2018-40767,2018-04-11,"General Fund","General Services","R&M Svcs - Facilities","ALLEN CORPORATION OF AMERICA INC",838905.00,$525.00,2018
fy2018-40768,2018-04-11,"General Fund","General Services","R&M Svcs - Facilities","DOMINION LOCK & SECURITY INC",838962.00,$32.76,2018
fy2018-40769,2018-04-17,"General Fund","General Services","R&M Svcs - Facilities","BEAHILL CORPORATION",839132.00,"$2,487.00",2018
fy2018-40770,2018-04-17,"General Fund","General Services","R&M Svcs - Facilities","CHAMBERLAIN MECHANICAL SERVICE INC",839168.00,"$3,453.70",2018
fy2018-40771,2018-04-17,"General Fund","General Services","R&M Svcs - Facilities","HOME DEPOT CREDIT SVCS",839284.00,$128.34,2018
fy2018-40772,2018-04-17,"General Fund","General Services","R&M Svcs - Facilities","TRANE COMPANY",839461.00,$117.42,2018
fy2018-40773,2018-04-17,"General Fund","General Services","R&M Svcs - Facilities","DOMINION LOCK & SECURITY INC",839214.00,$137.48,2018
fy2018-40774,2018-04-17,"General Fund","General Services","R&M Svcs - Facilities","FERGUSON ENTERPRISES INC",839233.00,$215.93,2018
fy2018-40775,2018-04-17,"General Fund","General Services","R&M Svcs - Facilities","ONYX TECHNICAL SRVC, INC",839360.00,$283.75,2018
fy2018-40776,2018-04-10,"General Fund","General Services","R&M Svcs - Facilities","NAPA AUTO PARTS",838778.00,$48.96,2018
fy2018-40777,2018-04-17,"General Fund","General Services","R&M Svcs - Facilities","ALLEN CORPORATION OF AMERICA INC",839108.00,$262.50,2018
fy2018-40778,2018-04-17,"General Fund","General Services","R&M Svcs - Facilities","CAPITAL TRISTATE",839157.00,$773.47,2018
fy2018-40779,2018-04-18,"General Fund","General Services","R&M Svcs - Facilities","DOMINION DOOR SOLUTIONS INC",834955.00,-$110.45,2018
fy2018-40780,2018-04-24,"General Fund","General Services","R&M Svcs - Facilities","GRAYBAR ELECTRIC CO., INC",839639.00,$128.47,2018
fy2018-40781,2018-04-24,"General Fund","General Services","R&M Svcs - Facilities","HOME DEPOT CREDIT SVCS",839655.00,$139.21,2018
fy2018-40782,2018-04-24,"General Fund","General Services","R&M Svcs - Facilities","AIRECO SUPPLY INC.",839519.00,$414.15,2018
fy2018-40783,2018-04-24,"General Fund","General Services","R&M Svcs - Facilities","J KING DESHAZO III, INC.",839664.00,"$1,762.65",2018
fy2018-40784,2018-04-17,"General Fund","General Services","R&M Svcs - Facilities","AIRECO SUPPLY INC.",839105.00,$722.92,2018
fy2018-40785,2018-04-17,"General Fund","General Services","R&M Svcs - Facilities","LOWE'S CREDIT SERVICES",839325.00,$319.07,2018
fy2018-40786,2018-04-24,"General Fund","General Services","R&M Svcs - Facilities","DOMINION DOOR SOLUTIONS INC",839597.00,"$1,496.95",2018
fy2018-40787,2018-04-24,"General Fund","General Services","R&M Svcs - Facilities","DOMINION LOCK & SECURITY INC",839599.00,$95.63,2018
fy2018-40788,2018-04-03,"General Fund","General Services","Supplies Office","STAPLES BUSINESS ADVANTAGE    DEPT DC",838508.00,$38.82,2018
fy2018-40789,2018-04-09,"General Fund","General Services","Supplies Office","STAPLES BUSINESS ADVANTAGE    DEPT DC",837716.00,-$43.81,2018
fy2018-40790,2018-04-10,"General Fund","General Services","Supplies Office","PETTY CASH CUSTODIAN",838791.00,$5.39,2018
fy2018-40791,2018-04-17,"General Fund","General Services","Supplies Office","STAPLES BUSINESS ADVANTAGE    DEPT DC",839441.00,$131.12,2018
fy2018-40792,2018-04-11,"General Fund","General Services","Supplies Office","STAPLES BUSINESS ADVANTAGE    DEPT DC",839069.00,$43.81,2018
fy2018-40793,2018-04-03,"General Fund","General Services","Supplies Repair & Maint","PENINSULA SALES",838475.00,$321.18,2018
fy2018-40794,2018-04-03,"General Fund","General Services","Supplies Repair & Maint","VIRGINIA DEPT OF STATE POLICE",838552.00,$548.00,2018
fy2018-40795,2018-04-09,"General Fund","General Services","Supplies Repair & Maint","AIRGAS USA LLC",837433.00,-$57.09,2018
fy2018-40796,2018-04-09,"General Fund","General Services","Supplies Repair & Maint","PAYPAL  KENTOF",10318.00,$49.99,2018
fy2018-40797,2018-04-09,"General Fund","General Services","Supplies Repair & Maint","HVAC BRAIN",10318.00,$321.44,2018
fy2018-40798,2018-04-10,"General Fund","General Services","Supplies Repair & Maint","PETTY CASH CUSTODIAN",838791.00,$4.29,2018
fy2018-40799,2018-04-17,"General Fund","General Services","Supplies Repair & Maint","AIRGAS USA LLC",839106.00,$61.38,2018
fy2018-40800,2018-04-17,"General Fund","General Services","Supplies Repair & Maint","FISHER AUTO PARTS INC",839238.00,$59.55,2018
fy2018-40801,2018-04-17,"General Fund","General Services","Supplies Repair & Maint",GRAINGER,839255.00,$193.87,2018
fy2018-40802,2018-04-24,"General Fund","General Services","Supplies Repair & Maint","NAPA AUTO PARTS",839715.00,$93.83,2018
fy2018-40803,2018-04-11,"General Fund","General Services","Supplies Repair & Maint","AIRGAS USA LLC",838903.00,$57.09,2018
fy2018-40804,2018-04-17,"General Fund","General Services","Supplies Repair & Maint","PENINSULA SALES",839368.00,$220.48,2018
fy2018-40805,2018-04-03,"General Fund","General Services","Supplies V&PE Sublets Clearing","BILL TALLEY FORD",838293.00,$666.96,2018
fy2018-40806,2018-04-03,"General Fund","General Services","Supplies V&PE Sublets Clearing","LUCK CHEVROLET",838439.00,$393.75,2018
fy2018-40807,2018-04-03,"General Fund","General Services","Supplies V&PE Sublets Clearing","ASHLAND TIRE & ALIGNMENT",838276.00,$175.00,2018
fy2018-40808,2018-04-03,"General Fund","General Services","Supplies V&PE Sublets Clearing","GLEN ALLEN TOWING & RECOVERY INC",838385.00,$966.00,2018
fy2018-40809,2018-04-03,"General Fund","General Services","Supplies V&PE Sublets Clearing","THURSTON SPRING SERV INC",838530.00,"$1,663.06",2018
fy2018-40810,2018-04-03,"General Fund","General Services","Supplies V&PE Sublets Clearing","GLASS AMERICA LLC",838384.00,$317.12,2018
fy2018-40811,2018-04-09,"General Fund","General Services","Supplies V&PE Sublets Clearing","BILL TALLEY FORD",837461.00,-$143.07,2018
fy2018-40812,2018-04-09,"General Fund","General Services","Supplies V&PE Sublets Clearing","BINSWANGER GLASS CO - #39",837462.00,"-$1,079.15",2018
fy2018-40813,2018-04-09,"General Fund","General Services","Supplies V&PE Sublets Clearing","HANCHEY GLORIA THOMPSON",837577.00,-$120.00,2018
fy2018-40814,2018-04-09,"General Fund","General Services","Supplies V&PE Sublets Clearing","DOMINION LOCK & SECURITY INC",837531.00,-$113.50,2018
fy2018-40815,2018-04-09,"General Fund","General Services","Supplies V&PE Sublets Clearing","GLEN ALLEN TOWING & RECOVERY INC",837563.00,-$600.00,2018
fy2018-40816,2018-04-11,"General Fund","General Services","Supplies V&PE Sublets Clearing","BILL TALLEY FORD",838921.00,$143.07,2018
fy2018-40817,2018-04-11,"General Fund","General Services","Supplies V&PE Sublets Clearing","BINSWANGER GLASS CO - #39",838922.00,"$1,079.15",2018
fy2018-40818,2018-04-11,"General Fund","General Services","Supplies V&PE Sublets Clearing","DOMINION LOCK & SECURITY INC",838962.00,$113.50,2018
fy2018-40819,2018-04-17,"General Fund","General Services","Supplies V&PE Sublets Clearing","BILL TALLEY FORD",839136.00,"$3,192.35",2018
fy2018-40820,2018-04-17,"General Fund","General Services","Supplies V&PE Sublets Clearing","GLASS AMERICA LLC",839249.00,"$1,119.54",2018
fy2018-40821,2018-04-24,"General Fund","General Services","Supplies V&PE Sublets Clearing","RUSH TRUCK CENTERS OF VIRGINIA INC",839765.00,"$12,171.13",2018
fy2018-40822,2018-04-17,"General Fund","General Services","Supplies V&PE Sublets Clearing","ASHLAND TIRE & ALIGNMENT",839117.00,$150.00,2018
fy2018-40823,2018-04-17,"General Fund","General Services","Supplies V&PE Sublets Clearing","DOMINION LOCK & SECURITY INC",839214.00,$180.00,2018
fy2018-40824,2018-04-17,"General Fund","General Services","Supplies V&PE Sublets Clearing","ERVIN'S CAR WASH SERVICE",839225.00,$70.00,2018
fy2018-40825,2018-04-11,"General Fund","General Services","Supplies V&PE Sublets Clearing","GLEN ALLEN TOWING & RECOVERY INC",838978.00,$600.00,2018
fy2018-40826,2018-04-11,"General Fund","General Services","Supplies V&PE Sublets Clearing","HANCHEY GLORIA THOMPSON",838985.00,$120.00,2018
fy2018-40827,2018-04-24,"General Fund","General Services","Supplies V&PE Sublets Clearing","GLEN ALLEN TOWING & RECOVERY INC",839631.00,$575.00,2018
fy2018-40828,2018-04-24,"General Fund","General Services","Supplies V&PE Sublets Clearing","ASHLAND TIRE & ALIGNMENT",839529.00,$169.90,2018
fy2018-40829,2018-04-24,"General Fund","General Services","Supplies V&PE Sublets Clearing","HANCHEY GLORIA THOMPSON",839645.00,$40.00,2018
fy2018-40830,2018-04-24,"General Fund","General Services","Supplies V&PE Sublets Clearing","LAWRENCE EQUIPMENT",839686.00,$622.50,2018
fy2018-40831,2018-04-17,"General Fund","General Services","Supplies V&PE Sublets Clearing","GLEN ALLEN TOWING & RECOVERY INC",839250.00,"$2,385.00",2018
fy2018-40832,2018-04-17,"General Fund","General Services","Supplies V&PE Sublets Clearing","HANCHEY GLORIA THOMPSON",839264.00,$200.00,2018
fy2018-40833,2018-04-24,"General Fund","General Services","Supplies V&PE Sublets Clearing","GOODMAN TRUCK & TRACTOR",839633.00,"$15,373.36",2018
fy2018-40834,2018-04-24,"General Fund","General Services","Supplies V&PE Sublets Clearing","WESTERN BRANCH DIESEL INC",839824.00,"$1,763.50",2018
fy2018-40835,2018-04-03,"General Fund","General Services","Telecomm Landline",VERIZON,838551.00,$90.76,2018
fy2018-40836,2018-04-09,"General Fund","General Services","Telecomm Landline","VERIZON ONETIM",10318.00,$148.38,2018
fy2018-40837,2018-04-09,"General Fund","General Services","Telecomm Landline",COMCAST,10318.00,"$1,339.27",2018
fy2018-40838,2018-04-09,"General Fund","General Services","Telecomm Landline",COMCAST,837502.00,-$170.88,2018
fy2018-40839,2018-04-11,"General Fund","General Services","Telecomm Landline",COMCAST,838949.00,$170.88,2018
fy2018-40840,2018-04-17,"General Fund","General Services","Telecomm Landline",VERIZON,839485.00,$4.36,2018
fy2018-40841,2018-04-24,"General Fund","General Services","Telecomm Landline",COMCAST,839579.00,$170.88,2018
fy2018-40842,2018-04-09,"General Fund","General Services","Telecomm Landline Exp to Depts","LEVEL 3 COMMUN",10318.00,"$6,083.28",2018
fy2018-40843,2018-04-09,"General Fund","General Services","Telecomm Landline Exp to Depts","VA INFO TECH A",10318.00,"$6,979.39",2018
fy2018-40844,2018-04-09,"General Fund","General Services","Telecomm Landline Exp to Depts","VERIZON ONETIM",10318.00,"$5,166.35",2018
fy2018-40845,2018-04-17,"General Fund","General Services","Telecomm Landline Exp to Depts",CENTURYLINK,839166.00,$261.27,2018
fy2018-40846,2018-04-09,"General Fund","General Services","Telecomm Wireless","VZWRLSS MY VZ",10318.00,$725.87,2018
fy2018-40847,2018-04-09,"General Fund","General Services","Trash Removal & Recycling","CENTRAL VIRGINIA WASTE MANAGEMENT AUTHORITY",837493.00,-$266.18,2018
fy2018-40848,2018-04-11,"General Fund","General Services","Trash Removal & Recycling","CENTRAL VIRGINIA WASTE MANAGEMENT AUTHORITY",838945.00,$266.18,2018
fy2018-40849,2018-04-17,"General Fund","General Services","Trash Removal & Recycling","CENTRAL VIRGINIA WASTE MANAGEMENT AUTHORITY",839165.00,$565.64,2018
fy2018-40850,2018-04-09,"General Fund","General Services","Uniforms & Wearing Apparel","CINTAS 143",10318.00,$401.42,2018
fy2018-40851,2018-04-09,"General Fund","General Services","Uniforms & Wearing Apparel",GALLS,10318.00,$230.00,2018
fy2018-40852,2018-04-10,"General Fund","General Services","Uniforms & Wearing Apparel","WORK DUDS",838891.00,$118.78,2018
fy2018-40853,2018-04-17,"General Fund","General Services","Uniforms & Wearing Apparel","WORK DUDS",839508.00,$114.28,2018
fy2018-40854,2018-04-17,"General Fund","General Services","Workers Compensation","VML INSURANCE PROGRAMS",839492.00,$39.00,2018
fy2018-40855,2018-04-10,"General Fund",Health,"Local Contributions","TREASURER OF VIRGINIA CHICKAHOMINY HEALTH DIST",838850.00,"$146,000.00",2018
fy2018-40856,2018-04-09,"General Fund","Human Resources","Contractual Services","ADOBE SYSTEMS,",10318.00,$14.99,2018
fy2018-40857,2018-04-09,"General Fund","Human Resources","Contractual Services","SHRED-IT USA L",10318.00,$257.60,2018
fy2018-40858,2018-04-09,"General Fund","Human Resources","Contractual Services","SMK SURVEYMONK",10318.00,$26.00,2018
fy2018-40859,2018-04-24,"General Fund","Human Resources","Contractual Services","VA DEPT OF SOCIAL SERVICE",839810.00,$20.00,2018
fy2018-40860,2018-04-24,"General Fund","Human Resources","Contractual Services","VIRGINIA DEPT OF STATE POLICE",839817.00,"$1,225.00",2018
fy2018-40861,2018-04-09,"General Fund","Human Resources","Dues & Memberships","PAYPAL  RICHCO",10318.00,$150.00,2018
fy2018-40862,2018-04-09,"General Fund","Human Resources","Educational Training","123 123 IPMA-V",10318.00,$150.00,2018
fy2018-40863,2018-04-24,"General Fund","Human Resources","Fees & Misc Charges","LINCOLN FINANCIAL GROUP",839692.00,$135.00,2018
fy2018-40864,2018-04-09,"General Fund","Human Resources","Printing & Binding","WE THINK IN IN",10318.00,$51.75,2018
fy2018-40865,2018-04-09,"General Fund","Human Resources","Professional Health Services","BON SECOURS REGIONAL MED CTR",837471.00,-$35.00,2018
fy2018-40866,2018-04-11,"General Fund","Human Resources","Professional Health Services","BON SECOURS REGIONAL MED CTR",838929.00,$35.00,2018
fy2018-40867,2018-04-17,"General Fund","Human Resources","Software Services","KRONOS INCORPORATED",839313.00,"$2,294.37",2018
fy2018-40868,2018-04-09,"General Fund","Human Resources",Storage,ACCESS-QUICKPA,10318.00,$17.28,2018
fy2018-40869,2018-04-09,"General Fund","Human Resources","Subsistence & Lodging","PANERA BREAD #",10318.00,$22.16,2018
fy2018-40870,2018-04-09,"General Fund","Human Resources","Subsistence & Lodging","APPLE SPICE JU",10318.00,$263.51,2018
fy2018-40871,2018-04-09,"General Fund","Human Resources","Supplies Edu & Recreational","MEDIA PARTNERS",10318.00,$760.50,2018
fy2018-40872,2018-04-09,"General Fund","Human Resources","Supplies Office","GREATLAND CORP",10318.00,"$1,118.88",2018
fy2018-40873,2018-04-09,"General Fund","Human Resources","Supplies Office","R&R OFFICE SOL",10318.00,$485.41,2018
fy2018-40874,2018-04-09,"General Fund","Human Resources","Supplies Office","MTM BUSINESS S",10318.00,$63.00,2018
fy2018-40875,2018-04-09,"General Fund","Human Resources","Supplies Office","THE SUPPLY ROO",10318.00,$764.89,2018
fy2018-40876,2018-04-09,"General Fund","Human Resources","Telecomm Wireless","VZWRLSS MY VZ",10318.00,$50.16,2018
fy2018-40877,2018-04-09,"General Fund","Human Resources","Temp Help Service Fees","PREMIER STAFFI",10318.00,$510.46,2018
fy2018-40878,2018-04-09,"County Improvements Fund","Information Technology","Computer Equip Cyclical Repl","DMI  DELL HLTH",10318.00,"$3,716.56",2018
fy2018-40879,2018-04-09,"County Improvements Fund","Information Technology","Computer Equip Cyclical Repl",WWW.NEWEGG.COM,10318.00,$94.99,2018
fy2018-40880,2018-04-24,"County Improvements Fund","Information Technology","Computer Equip Cyclical Repl","DELL MARKETING L.P.",839590.00,"$6,485.20",2018
fy2018-40881,2018-04-03,"County Improvements Fund","Information Technology","Information System Equip Addtl","UNITY BUSINESS SYSTEMS",838546.00,$420.00,2018
fy2018-40882,2018-04-09,"County Improvements Fund","Information Technology","Information System Equip Addtl","SQ  TRIFECTA N",10318.00,$543.02,2018
fy2018-40883,2018-04-17,"County Improvements Fund","Information Technology","Information System Equip Addtl","SLAIT CONSULTING LLC",839431.00,"$15,868.42",2018
fy2018-40884,2018-04-24,"County Improvements Fund","Information Technology","Information System Equip Addtl","DELL MARKETING L.P.",839590.00,"$35,472.96",2018
fy2018-40885,2018-04-03,"General Fund","Information Technology","Computer Equip Non-Cyc Repl","COMPUTER AID INC",838328.00,"$1,261.50",2018
fy2018-40886,2018-04-09,"General Fund","Information Technology","Dues & Memberships","PMI - Membersh",10318.00,$159.00,2018
fy2018-40887,2018-04-03,"General Fund","Information Technology","Educational Training","NEW HORIZONS COMPUTER LEARNING CENTER",838460.00,$150.00,2018
fy2018-40888,2018-04-09,"General Fund","Information Technology","Educational Training","RAINFOCCISCO C",10318.00,"$2,095.00",2018
fy2018-40889,2018-04-09,"General Fund","Information Technology","Educational Training","AIRBNB   HMQAF",10318.00,$338.57,2018
fy2018-40890,2018-04-09,"General Fund","Information Technology","Educational Training","AMTRAK .COM 04",10318.00,$50.00,2018
fy2018-40891,2018-04-10,"General Fund","Information Technology","Educational Training","O'KEEFE, TIM",838785.00,$123.00,2018
fy2018-40892,2018-04-03,"General Fund","Information Technology","Maint Svc Contracts Countywide","KRONOS INCORPORATED",838423.00,"$6,400.00",2018
fy2018-40893,2018-04-09,"General Fund","Information Technology","Maint Svc Contracts Countywide","VERIZON ONETIM",10318.00,"$4,767.19",2018
fy2018-40894,2018-04-09,"General Fund","Information Technology","Maint Svc Contracts Countywide",CENTURYLINK/SP,10318.00,$867.00,2018
fy2018-40895,2018-04-09,"General Fund","Information Technology","Maint Svc Contracts Countywide","DIGICERT INC",10318.00,$175.00,2018
fy2018-40896,2018-04-09,"General Fund","Information Technology","Maint Svc Contracts Countywide","WSC Windstream",10318.00,$30.00,2018
fy2018-40897,2018-04-10,"General Fund","Information Technology","Maint Svc Contracts Countywide","KRONOS INCORPORATED",838760.00,$825.00,2018
fy2018-40898,2018-04-24,"General Fund","Information Technology","Maint Svc Contracts Countywide","KRONOS INCORPORATED",839681.00,$530.00,2018
fy2018-40899,2018-04-24,"General Fund","Information Technology","Maint Svc Contracts Countywide","IRON MOUNTAIN",839663.00,$850.00,2018
fy2018-40900,2018-04-09,"General Fund","Information Technology","Maintenance Service Contracts",HTTP://WEBEX.C,10318.00,$20.01,2018
fy2018-40901,2018-04-24,"General Fund","Information Technology","Maintenance Service Contracts","GANNETT FLEMING COMPANIES",839625.00,"$2,000.00",2018
fy2018-40902,2018-04-24,"General Fund","Information Technology","Maintenance Service Contracts","SHI INTERNATIONAL CORP",839772.00,$514.92,2018
fy2018-40903,2018-04-17,"General Fund","Information Technology","Printing & Binding","ASSOCIATED PRINTING SERVICES INC",839118.00,"$2,630.00",2018
fy2018-40904,2018-04-09,"General Fund","Information Technology","Supplies Office","AMAZON.COM AMZ",10318.00,$374.89,2018
fy2018-40905,2018-04-09,"General Fund","Information Technology","Supplies Other Operating","CALIFORNIA SAU",10318.00,$19.00,2018
fy2018-40906,2018-04-17,"General Fund","Information Technology","Supplies Other Operating","ASSOCIATED PRINTING SERVICES INC",839118.00,$406.00,2018
fy2018-40907,2018-04-09,"General Fund","Information Technology","Telecomm Wireless",COMCAST,10318.00,$149.93,2018
fy2018-40908,2018-04-09,"General Fund","Information Technology","Telecomm Wireless","VZWRLSS MY VZ",10318.00,$661.47,2018
fy2018-40909,2018-04-09,"General Fund","Information Technology","Telecomm Wireless","VA INFO TECH A",10318.00,$141.74,2018
fy2018-40910,2018-04-09,"General Fund","Information Technology","Telecomm Wireless","LEVEL 3 COMMUN",10318.00,"$3,478.88",2018
fy2018-40911,2018-04-09,"General Fund","Internal Audit","Educational Training",IIA,10318.00,$200.00,2018
fy2018-40912,2018-04-09,"General Fund","Juve & Domestic Relations Crt","Books & Subscriptions","MATTHEW BENDER & CO INC",837631.00,-$357.00,2018
fy2018-40913,2018-04-11,"General Fund","Juve & Domestic Relations Crt","Books & Subscriptions","MATTHEW BENDER & CO INC",839016.00,$357.00,2018
fy2018-40914,2018-04-17,"General Fund","Juve & Domestic Relations Crt","Lease & Rentals Equipment","RICOH USA INC",839400.00,$182.64,2018
fy2018-40915,2018-04-17,"General Fund","Juve & Domestic Relations Crt","Professional Services","STONE'S OFFICE EQUIPMENT CO INC",839443.00,$204.25,2018
fy2018-40916,2018-04-09,"General Fund","Juvenile Court Services","Contractual Services","SATELLITE TRACKING OF PEOPLE LLC",837703.00,-$573.50,2018
fy2018-40917,2018-04-11,"General Fund","Juvenile Court Services","Contractual Services","SATELLITE TRACKING OF PEOPLE LLC",839059.00,$573.50,2018
fy2018-40918,2018-04-24,"General Fund","Juvenile Court Services","Contractual Services","SATELLITE TRACKING OF PEOPLE LLC",839767.00,$471.20,2018
fy2018-40919,2018-04-09,"General Fund","Juvenile Court Services","Mileage Reimbursement","BAGBY KEVIN D",837453.00,-$173.31,2018
fy2018-40920,2018-04-24,"General Fund","Juvenile Court Services","Mileage Reimbursement","BAGBY KEVIN D",839537.00,$121.04,2018
fy2018-40921,2018-04-11,"General Fund","Juvenile Court Services","Mileage Reimbursement","BAGBY KEVIN D",838915.00,$173.31,2018
fy2018-40922,2018-04-24,"General Fund","Juvenile Court Services","Mileage Reimbursement","ALLEN SHELDON E",839521.00,$162.46,2018
fy2018-40923,2018-04-03,"General Fund","Juvenile Court Services","Professional Services","15TH DISTRICT COURT SERVICE UNIT",837420.00,"-$14,055.00",2018
fy2018-40924,2018-04-04,"General Fund","Juvenile Court Services","Professional Services","15TH DISTRICT COURT SERVICE UNIT",838587.00,"$14,055.00",2018
fy2018-40925,2018-04-03,"General Fund","Juvenile Court Services","Supplies Office",GUERNSEY,838389.00,$31.41,2018
fy2018-40926,2018-04-10,"General Fund","Juvenile Court Services","Supplies Office",GUERNSEY,838717.00,$15.70,2018
fy2018-40927,2018-04-24,"General Fund","Juvenile Court Services","Supplies Office","KIRSCHNER CYNTHIA",839679.00,$19.96,2018
fy2018-40928,2018-04-24,"General Fund","Juvenile Court Services","Supplies Other Operating","RASO TERRI",839744.00,$68.27,2018
fy2018-40929,2018-04-24,"General Fund","Juvenile Court Services","Supplies Other Operating","DEES JOHN A",839588.00,$13.54,2018
fy2018-40930,2018-04-09,"General Fund","Juvenile Court Services","Telecomm Wireless","VZWRLSS MY VZ",10318.00,$60.16,2018
fy2018-40931,2018-04-24,"County Improvements Fund","Pamunkey Regional Library","Contractual Services","BCWH ARCHITECTS",839542.00,"$67,421.25",2018
fy2018-40932,2018-04-09,"General Fund","Parks & Recreation",Construction,"CARPET AMERICA",10318.00,"$1,083.00",2018
fy2018-40933,2018-04-09,"General Fund","Parks & Recreation",Construction,"AMAZON MKTPLAC",10318.00,$211.67,2018
fy2018-40934,2018-04-09,"General Fund","Parks & Recreation",Construction,"THE CPE CONTRA",10318.00,"$3,720.00",2018
fy2018-40935,2018-04-09,"General Fund","Parks & Recreation","Custodial Svcs Contracts","BRADLEY CRYSTAL DAWN",837477.00,-$240.00,2018
fy2018-40936,2018-04-09,"General Fund","Parks & Recreation","Custodial Svcs Contracts","SQ  CATHI GLAS",10318.00,$300.00,2018
fy2018-40937,2018-04-11,"General Fund","Parks & Recreation","Custodial Svcs Contracts","BRADLEY CRYSTAL DAWN",838934.00,$240.00,2018
fy2018-40938,2018-04-17,"General Fund","Parks & Recreation","Custodial Svcs Contracts","ORIGINAL BUILDING SERVICE INC",839362.00,$416.53,2018
fy2018-40939,2018-04-09,"General Fund","Parks & Recreation","Educational Training","NATIONAL RECRE",10318.00,$60.00,2018
fy2018-40940,2018-04-09,"General Fund","Parks & Recreation","Educational Training","WPY Rebecca Ri",10318.00,$158.34,2018
fy2018-40941,2018-04-03,"General Fund","Parks & Recreation","Electrical Services","DOMINION ENERGY VIRGINIA",838354.00,$942.61,2018
fy2018-40942,2018-04-24,"General Fund","Parks & Recreation","Electrical Services","DOMINION ENERGY VIRGINIA",839598.00,"$2,691.66",2018
fy2018-40943,2018-04-09,"General Fund","Parks & Recreation","Heating Services","AGP PROPANE SE",10318.00,"$1,540.81",2018
fy2018-40944,2018-04-09,"General Fund","Parks & Recreation","Heating Services","MASSEY WOOD AN",10318.00,$373.93,2018
fy2018-40945,2018-04-09,"General Fund","Parks & Recreation","Maintenance Service Contracts","BUG BUSTERS PE",10318.00,$140.00,2018
fy2018-40946,2018-04-24,"General Fund","Parks & Recreation","Printing & Binding","WORTH HIGGINS & ASSOC INC",839830.00,"$4,768.50",2018
fy2018-40947,2018-04-24,"General Fund","Parks & Recreation","Professional Services","CUNNINGHAM RECREATION",839585.00,$600.00,2018
fy2018-40948,2018-04-09,"General Fund","Parks & Recreation","Repair & Maintenance Services","CUSTOM HOSE AN",10318.00,$32.87,2018
fy2018-40949,2018-04-09,"General Fund","Parks & Recreation","Repair & Maintenance Services","LAND & COATES",10318.00,$211.65,2018
fy2018-40950,2018-04-09,"General Fund","Parks & Recreation","Repair & Maintenance Services","RBI CORPORATIO",10318.00,$40.76,2018
fy2018-40951,2018-04-09,"General Fund","Parks & Recreation","Repair & Maintenance Services","TRACTOR SUPPLY",10318.00,$148.61,2018
fy2018-40952,2018-04-09,"General Fund","Parks & Recreation","Repair & Maintenance Services","EAST PENN MFG",10318.00,$212.25,2018
fy2018-40953,2018-04-09,"General Fund","Parks & Recreation","Repair & Maintenance Services",GAMETIME,10318.00,"$5,839.52",2018
fy2018-40954,2018-04-09,"General Fund","Parks & Recreation","Repair & Maintenance Services","360 POWER EQUI",10318.00,$128.66,2018
fy2018-40955,2018-04-09,"General Fund","Parks & Recreation","Repair & Maintenance Services","AMAZON MKTPLAC",10318.00,$145.00,2018
fy2018-40956,2018-04-09,"General Fund","Parks & Recreation","Repair & Maintenance Services","HANOVER TOOL",10318.00,$166.99,2018
fy2018-40957,2018-04-09,"General Fund","Parks & Recreation","Repair & Maintenance Services",HOOBER,10318.00,$195.30,2018
fy2018-40958,2018-04-09,"General Fund","Parks & Recreation","Repair & Maintenance Services","JAMES RIVER EQ",10318.00,$633.47,2018
fy2018-40959,2018-04-09,"General Fund","Parks & Recreation","Repair & Maintenance Services","SQ  CIMCO INCO",10318.00,$626.70,2018
fy2018-40960,2018-04-09,"General Fund","Parks & Recreation","Repair & Maintenance Services","THE HOME DEPOT",10318.00,$99.00,2018
fy2018-40961,2018-04-09,"General Fund","Parks & Recreation","Repair & Maintenance Services","WM SUPERCENTER",10318.00,$132.28,2018
fy2018-40962,2018-04-09,"General Fund","Parks & Recreation","Repair & Maintenance Services","WAL-MART #2795",10318.00,$186.82,2018
fy2018-40963,2018-04-09,"General Fund","Parks & Recreation","Repair & Maintenance Services","AMAZON.COM AMZ",10318.00,$29.08,2018
fy2018-40964,2018-04-24,"General Fund","Parks & Recreation","Repair & Maintenance Services","MARTIN MARIETTA MATERIALS",839699.00,$358.36,2018
fy2018-40965,2018-04-24,"General Fund","Parks & Recreation","Repair & Maintenance Services","SOUTH ANNA ELECTRIC, INC",839781.00,"$1,262.00",2018
fy2018-40966,2018-04-09,"General Fund","Parks & Recreation","Small Capital Outlay","THE SUPPLY ROO",10318.00,$379.99,2018
fy2018-40967,2018-04-09,"General Fund","Parks & Recreation","Supplies Agricultural","LANDSCAPE SUPP",10318.00,"$1,257.50",2018
fy2018-40968,2018-04-24,"General Fund","Parks & Recreation","Supplies Agricultural","MULCH UNLIMITED INC",839712.00,$243.00,2018
fy2018-40969,2018-04-09,"General Fund","Parks & Recreation","Supplies Edu & Recreational","RICHMOND FLYIN",10318.00,$50.00,2018
fy2018-40970,2018-04-09,"General Fund","Parks & Recreation","Supplies Edu & Recreational","804 DANCE PLACE",837422.00,"-$1,180.80",2018
fy2018-40971,2018-04-09,"General Fund","Parks & Recreation","Supplies Edu & Recreational","PIONEER REVERE",10318.00,"$1,743.00",2018
fy2018-40972,2018-04-09,"General Fund","Parks & Recreation","Supplies Edu & Recreational","AIM USA",837430.00,-$624.00,2018
fy2018-40973,2018-04-09,"General Fund","Parks & Recreation","Supplies Edu & Recreational","N-VISIONED GRAPHICS LLC",837649.00,"-$2,712.50",2018
fy2018-40974,2018-04-11,"General Fund","Parks & Recreation","Supplies Edu & Recreational","804 DANCE PLACE",838897.00,"$1,180.80",2018
fy2018-40975,2018-04-24,"General Fund","Parks & Recreation","Supplies Edu & Recreational","GEOMETRIC SHAPES LLC - DBA BRICKS 4 KIDZ",839627.00,$720.00,2018
fy2018-40976,2018-04-24,"General Fund","Parks & Recreation","Supplies Edu & Recreational","SIGNA TOURS LTD",839774.00,"$6,731.00",2018
fy2018-40977,2018-04-11,"General Fund","Parks & Recreation","Supplies Edu & Recreational","AIM USA",838902.00,$624.00,2018
fy2018-40978,2018-04-11,"General Fund","Parks & Recreation","Supplies Edu & Recreational","N-VISIONED GRAPHICS LLC",839023.00,"$2,712.50",2018
fy2018-40979,2018-04-24,"General Fund","Parks & Recreation","Supplies Edu & Recreational","AIM USA",839517.00,$744.00,2018
fy2018-40980,2018-04-24,"General Fund","Parks & Recreation","Supplies Edu & Recreational","GREEN, WALTER G",839640.00,$204.00,2018
fy2018-40981,2018-04-24,"General Fund","Parks & Recreation","Supplies Edu & Recreational","STRETCH N GROW",839788.00,$768.00,2018
fy2018-40982,2018-04-24,"General Fund","Parks & Recreation","Supplies Edu & Recreational","VON HAGEL JOHN R",839818.00,$120.00,2018
fy2018-40983,2018-04-24,"General Fund","Parks & Recreation","Supplies Edu & Recreational","BISHOP JILNELLE - LITTLE KOOKERS LLC",839546.00,$900.00,2018
fy2018-40984,2018-04-24,"General Fund","Parks & Recreation","Supplies Edu & Recreational","804 DANCE PLACE",839515.00,"$1,216.00",2018
fy2018-40985,2018-04-09,"General Fund","Parks & Recreation","Supplies Office","THE SUPPLY ROO",10318.00,$64.32,2018
fy2018-40986,2018-04-09,"General Fund","Parks & Recreation","Supplies Office","WAL-MART #1525",10318.00,$31.75,2018
fy2018-40987,2018-04-09,"General Fund","Parks & Recreation","Supplies Office","SHRED-IT USA L",10318.00,$180.00,2018
fy2018-40988,2018-04-09,"General Fund","Parks & Recreation","Supplies Office","AMAZON MKTPLAC",10318.00,$511.47,2018
fy2018-40989,2018-04-09,"General Fund","Parks & Recreation","Supplies Office",Amazon.com,10318.00,$9.00,2018
fy2018-40990,2018-04-09,"General Fund","Parks & Recreation","Supplies Office","LOWES #02572",10318.00,$10.66,2018
fy2018-40991,2018-04-09,"General Fund","Parks & Recreation","Supplies Other Operating","BJS WHOLESALE",10318.00,$39.96,2018
fy2018-40992,2018-04-09,"General Fund","Parks & Recreation","Supplies Other Operating","COMMONWEALTH FAIRS & EVENTS INC",837507.00,-$200.00,2018
fy2018-40993,2018-04-09,"General Fund","Parks & Recreation","Supplies Other Operating","411 DSIGNS",10318.00,$40.00,2018
fy2018-40994,2018-04-11,"General Fund","Parks & Recreation","Supplies Other Operating","COMMONWEALTH FAIRS & EVENTS INC",838952.00,$200.00,2018
fy2018-40995,2018-04-09,"General Fund","Parks & Recreation","Supplies Repair & Maint","ATLEE CAR WASH",10318.00,$4.00,2018
fy2018-40996,2018-04-09,"General Fund","Parks & Recreation","Supplies Repair & Maint","LOWES #00247",10318.00,$49.98,2018
fy2018-40997,2018-04-09,"General Fund","Parks & Recreation","Supplies Repair & Maint","AMAZON MKTPLAC",10318.00,$25.98,2018
fy2018-40998,2018-04-09,"General Fund","Parks & Recreation","Supplies Repair & Maint","LOWES #02572",10318.00,$194.50,2018
fy2018-40999,2018-04-09,"General Fund","Parks & Recreation","Supplies Repair & Maint","SHERWIN WILLIA",10318.00,$36.23,2018
fy2018-41000,2018-04-09,"General Fund","Parks & Recreation","Supplies Repair & Maint","THE HOME DEPOT",10318.00,$225.57,2018
fy2018-41001,2018-04-09,"General Fund","Parks & Recreation","Telecomm Wireless","VZWRLSS MY VZ",10318.00,"$1,240.34",2018
fy2018-41002,2018-04-24,"General Fund","Parks & Recreation","Trash Removal & Recycling","CENTRAL VIRGINIA WASTE MANAGEMENT AUTHORITY",839565.00,$673.25,2018
fy2018-41003,2018-04-09,"General Fund","Parks & Recreation","Uniforms & Wearing Apparel","LANDS END BUS",10318.00,$177.75,2018
fy2018-41004,2018-04-09,"General Fund","Parks & Recreation","Uniforms & Wearing Apparel","CINTAS 143",10318.00,$266.19,2018
fy2018-41005,2018-04-09,"General Fund","Parks & Recreation","Water & Sewer Services","UNITED SITE SE",10318.00,"$3,480.25",2018
fy2018-41006,2018-04-09,"General Fund","Parks & Recreation","Water & Sewer Services","VALLEY ICE",10318.00,$327.68,2018
fy2018-41007,2018-04-09,"General Fund","Parks & Recreation","Water & Sewer Services","DIAMOND SPRING",10318.00,$80.00,2018
fy2018-41008,2018-04-09,"General Fund","Parks & Recreation","Water & Sewer Services","PORTABLE WASTE",10318.00,"$1,970.00",2018
fy2018-41009,2018-04-24,"County Improvements Fund",Planning,"Professional Services","EXPERIS IT SERVICES US LLC",839609.00,"$6,880.00",2018
fy2018-41010,2018-04-09,"General Fund",Planning,Advertising,"LAKEWAY PUBLIS",10318.00,$380.60,2018
fy2018-41011,2018-04-17,"General Fund",Planning,Advertising,"RICHMOND SUBURBAN NEWSPAPERS",839396.00,"$2,340.00",2018
fy2018-41012,2018-04-09,"General Fund",Planning,"Educational Training","APT/DCJS ONLIN",10318.00,$87.00,2018
fy2018-41013,2018-04-24,"General Fund",Planning,"Printing & Binding","ASSOCIATED PRINTING SERVICES INC",839530.00,$533.00,2018
fy2018-41014,2018-04-17,"General Fund",Planning,"Professional Services","HACKWORTH REPROGRAPHICS",839262.00,"$7,726.00",2018
fy2018-41015,2018-04-09,"General Fund",Planning,"Repair & Maintenance Services","DECISION ONE C",10318.00,$574.00,2018
fy2018-41016,2018-04-09,"General Fund",Planning,Storage,ACCESS-QUICKPA,10318.00,$9.11,2018
fy2018-41017,2018-04-09,"General Fund",Planning,"Supplies Food",TARGET,10318.00,$1.79,2018
fy2018-41018,2018-04-09,"General Fund",Planning,"Supplies Food","BJS WHOLESALE",10318.00,$40.76,2018
fy2018-41019,2018-04-10,"General Fund",Planning,"Supplies Food","PETTY CASH CUSTODIAN",838791.00,$8.99,2018
fy2018-41020,2018-04-09,"General Fund",Planning,"Supplies Office","SQ  LASERSERV,",10318.00,$249.75,2018
fy2018-41021,2018-04-09,"General Fund",Planning,"Supplies Office","R&R OFFICE SOL",10318.00,$256.41,2018
fy2018-41022,2018-04-03,"Public Utilities CIP Fund","PU CIP Other","Information System Equip Repl","ADVANCED UTILITY SYSTEMS",837427.00,"-$24,530.00",2018
fy2018-41023,2018-04-04,"Public Utilities CIP Fund","PU CIP Other","Information System Equip Repl","ADVANCED UTILITY SYSTEMS",838588.00,"$24,530.00",2018
fy2018-41024,2018-04-17,"Public Utilities CIP Fund","PU CIP Other","Information System Equip Repl","ADVANCED UTILITY SYSTEMS",839103.00,"$16,430.00",2018
fy2018-41025,2018-04-03,"Public Utilities CIP Fund","PU CIP Sewer","Professional Services","DEWBERRY ENGINEERS INC",837527.00,"-$6,819.75",2018
fy2018-41026,2018-04-03,"Public Utilities CIP Fund","PU CIP Sewer","Professional Services","ARCADIS US INC",837442.00,"-$30,892.83",2018
fy2018-41027,2018-04-04,"Public Utilities CIP Fund","PU CIP Sewer","Professional Services","DEWBERRY ENGINEERS INC",838595.00,"$6,819.75",2018
fy2018-41028,2018-04-04,"Public Utilities CIP Fund","PU CIP Sewer","Professional Services","ARCADIS US INC",838589.00,"$30,892.83",2018
fy2018-41029,2018-04-09,"Public Utilities CIP Fund","PU CIP Sewer","Professional Services","AUSTIN BROCKENBROUGH & ASSOCIATES LLP",837450.00,"-$4,657.36",2018
fy2018-41030,2018-04-09,"Public Utilities CIP Fund","PU CIP Sewer","Professional Services","O'BRIEN & GERE ENGINEERS",837660.00,"-$1,371.88",2018
fy2018-41031,2018-04-09,"Public Utilities CIP Fund","PU CIP Sewer","Professional Services","RESOURCE INTERNATIONAL LIMITED",837682.00,-$500.00,2018
fy2018-41032,2018-04-11,"Public Utilities CIP Fund","PU CIP Sewer","Professional Services","AUSTIN BROCKENBROUGH & ASSOCIATES LLP",838913.00,"$4,657.36",2018
fy2018-41033,2018-04-11,"Public Utilities CIP Fund","PU CIP Sewer","Professional Services","O'BRIEN & GERE ENGINEERS",839029.00,"$1,371.88",2018
fy2018-41034,2018-04-11,"Public Utilities CIP Fund","PU CIP Sewer","Professional Services","RESOURCE INTERNATIONAL LIMITED",839046.00,$500.00,2018
fy2018-41035,2018-04-17,"Public Utilities CIP Fund","PU CIP Sewer","Professional Services","RESOURCE INTERNATIONAL LIMITED",839392.00,$550.00,2018
fy2018-41036,2018-04-24,"Public Utilities CIP Fund","PU CIP Sewer","Professional Services","DEWBERRY ENGINEERS INC",839593.00,"$10,646.00",2018
fy2018-41037,2018-04-10,"Public Utilities CIP Fund","PU CIP Sewer","Utilities Infrastruct Improve","FASTENAL COMPANY",838696.00,$88.43,2018
fy2018-41038,2018-04-10,"Public Utilities CIP Fund","PU CIP Sewer","Utilities Infrastruct Improve","LYTTLE SERVICE CO LLC",838767.00,"$1,565.00",2018
fy2018-41039,2018-04-10,"Public Utilities CIP Fund","PU CIP Sewer","Utilities Infrastruct Improve","UNITED RENTALS INC",838863.00,$295.80,2018
fy2018-41040,2018-04-10,"Public Utilities CIP Fund","PU CIP Sewer","Utilities Infrastruct Improve","TRIO FASTENERS INC",838858.00,$15.00,2018
fy2018-41041,2018-04-17,"Public Utilities CIP Fund","PU CIP Sewer","Utilities Infrastruct Improve","SUPERIOR EXCAVATING & CONSTRUCTION INC",839446.00,"$21,253.23",2018
fy2018-41042,2018-04-24,"Public Utilities CIP Fund","PU CIP Sewer","Utilities Infrastruct Improve","XYLEM DEWATERING SOLUTIONS INC",839835.00,$257.54,2018
fy2018-41043,2018-04-17,"Public Utilities CIP Fund","PU CIP Sewer","Utilities Infrastruct Improve","XYLEM DEWATERING SOLUTIONS INC",839513.00,"$8,661.50",2018
fy2018-41044,2018-04-24,"Public Utilities CIP Fund","PU CIP Water","Land Purch & Development Addtl","BOOKHEIMER, ROBERT L",839552.00,"$4,502.00",2018
fy2018-41045,2018-04-03,"Public Utilities CIP Fund","PU CIP Water","Professional Services","DEWBERRY ENGINEERS INC",837527.00,"-$5,080.00",2018
fy2018-41046,2018-04-03,"Public Utilities CIP Fund","PU CIP Water","Professional Services","DEWBERRY ENGINEERS INC",838349.00,"$15,314.00",2018
fy2018-41047,2018-04-03,"Public Utilities CIP Fund","PU CIP Water","Professional Services","DEWBERRY ENGINEERS INC",838350.00,"$15,202.85",2018
fy2018-41048,2018-04-03,"Public Utilities CIP Fund","PU CIP Water","Professional Services","GANNETT FLEMING INC",838379.00,"$3,314.90",2018
fy2018-41049,2018-04-04,"Public Utilities CIP Fund","PU CIP Water","Professional Services","DEWBERRY ENGINEERS INC",838595.00,"$5,080.00",2018
fy2018-41050,2018-04-17,"Public Utilities CIP Fund","PU CIP Water","Professional Services","DEWBERRY ENGINEERS INC",839209.00,"$10,160.00",2018
fy2018-41051,2018-04-24,"Public Utilities CIP Fund","PU CIP Water","Professional Services","DEWBERRY ENGINEERS INC",839593.00,"$38,881.00",2018
fy2018-41052,2018-04-24,"Public Utilities CIP Fund","PU CIP Water","Professional Services","WILEY WILSON INC",839826.00,"$2,898.20",2018
fy2018-41053,2018-04-03,"Public Utilities CIP Fund","PU CIP Water","Utilities Infrastruct Construc","BFE CONSTRUCTION INC",837459.00,"-$138,653.07",2018
fy2018-41054,2018-04-04,"Public Utilities CIP Fund","PU CIP Water","Utilities Infrastruct Construc","BFE CONSTRUCTION INC",838591.00,"$138,653.07",2018
fy2018-41055,2018-04-09,"Public Utilities CIP Fund","PU CIP Water","Utilities Infrastruct Construc","ATLANTIC GEOTECHNICAL SERVICES INC",837448.00,-$223.00,2018
fy2018-41056,2018-04-09,"Public Utilities CIP Fund","PU CIP Water","Utilities Infrastruct Construc","LOEHR LIGHTNING PROTECTION COMPANY",837620.00,"-$1,056.00",2018
fy2018-41057,2018-04-11,"Public Utilities CIP Fund","PU CIP Water","Utilities Infrastruct Construc","ATLANTIC GEOTECHNICAL SERVICES INC",838912.00,$223.00,2018
fy2018-41058,2018-04-11,"Public Utilities CIP Fund","PU CIP Water","Utilities Infrastruct Construc","LOEHR LIGHTNING PROTECTION COMPANY",839010.00,"$1,056.00",2018
fy2018-41059,2018-04-10,"Public Utilities CIP Fund","PU CIP Water","Utilities Infrastruct Construc","Rising Sun Inc",838807.00,"$114,831.43",2018
fy2018-41060,2018-04-17,"Public Utilities CIP Fund","PU CIP Water","Utilities Infrastruct Construc","BFE CONSTRUCTION INC",839135.00,"$420,395.01",2018
fy2018-41061,2018-04-17,"Public Utilities CIP Fund","PU CIP Water","Utilities Infrastruct Construc","Rising Sun Inc",839406.00,"$86,520.47",2018
fy2018-41062,2018-04-17,"Public Utilities CIP Fund","PU CIP Water","Utilities Infrastruct Improve","SUPERIOR EXCAVATING & CONSTRUCTION INC",839446.00,$150.00,2018
fy2018-41063,2018-04-27,"Public Utilities CIP Fund","PU CIP Water","Utilities Infrastruct Improve","CITY OF RICHMOND",4272018.00,"$1,659,611.00",2018
fy2018-41064,2018-04-10,"Public Utilities Fund","Public Utilities","Alt to Facility or Office","SUPERIOR EXCAVATING & CONSTRUCTION INC",838837.00,"$4,083.76",2018
fy2018-41065,2018-04-17,"Public Utilities Fund","Public Utilities","Alt to Facility or Office","C T PURCELL EXCAVATING INC",839152.00,"$6,232.08",2018
fy2018-41066,2018-04-17,"Public Utilities Fund","Public Utilities","Alt to Facility or Office","SUPERIOR EXCAVATING & CONSTRUCTION INC",839446.00,$300.00,2018
fy2018-41067,2018-04-24,"Public Utilities Fund","Public Utilities","Alt to Facility or Office","INSTRUMENTATION & CONTROL SYSTEMS ENGINEERING INC",839661.00,"$12,249.00",2018
fy2018-41068,2018-04-17,"Public Utilities Fund","Public Utilities","Call Center","VIRGINIA UTILITY PROTECTION SERVICE",839490.00,"$1,282.05",2018
fy2018-41069,2018-04-09,"Public Utilities Fund","Public Utilities","Computer Equip Cyclical Repl","DMI  DELL HLTH",10318.00,$218.39,2018
fy2018-41070,2018-04-09,"Public Utilities Fund","Public Utilities","Computer Equip Non-Cyc Repl","DMI  DELL HLTH",10318.00,$104.99,2018
fy2018-41071,2018-04-09,"Public Utilities Fund","Public Utilities","Computer Equip Non-Cyc Repl","USA BLUEBOOK",837747.00,-$213.96,2018
fy2018-41072,2018-04-09,"Public Utilities Fund","Public Utilities","Computer Equip Non-Cyc Repl",WWW.NEWEGG.COM,10318.00,$119.00,2018
fy2018-41073,2018-04-09,"Public Utilities Fund","Public Utilities","Computer Equip Non-Cyc Repl","AMAZON MKTPLAC",10318.00,$47.32,2018
fy2018-41074,2018-04-10,"Public Utilities Fund","Public Utilities","Computer Equip Non-Cyc Repl","VERIZON WIRELESS",838871.00,$704.97,2018
fy2018-41075,2018-04-11,"Public Utilities Fund","Public Utilities","Computer Equip Non-Cyc Repl","USA BLUEBOOK",839083.00,$213.96,2018
fy2018-41076,2018-04-09,"Public Utilities Fund","Public Utilities","Dues & Memberships","VA BOARD OF AC",10318.00,$60.00,2018
fy2018-41077,2018-04-09,"Public Utilities Fund","Public Utilities","Dues & Memberships","WEF MAIN",10318.00,$255.00,2018
fy2018-41078,2018-04-03,"Public Utilities Fund","Public Utilities","Educational Training","WANLESS DENNIS R",838561.00,$348.00,2018
fy2018-41079,2018-04-09,"Public Utilities Fund","Public Utilities","Educational Training",INTERNATIONAL,10318.00,$830.00,2018
fy2018-41080,2018-04-09,"Public Utilities Fund","Public Utilities","Educational Training","IN  VIRGINIA R",10318.00,-$99.00,2018
fy2018-41081,2018-04-09,"Public Utilities Fund","Public Utilities","Educational Training","VA AWWA",10318.00,$198.00,2018
fy2018-41082,2018-04-09,"Public Utilities Fund","Public Utilities","Educational Training","VIRGINIA WATER",10318.00,$570.00,2018
fy2018-41083,2018-04-09,"Public Utilities Fund","Public Utilities","Educational Training","VT CONTINUING",10318.00,$150.00,2018
fy2018-41084,2018-04-09,"Public Utilities Fund","Public Utilities","Educational Training","WEF REG",10318.00,$690.00,2018
fy2018-41085,2018-04-09,"Public Utilities Fund","Public Utilities","Educational Training","HILTON VIRGINI",10318.00,$114.86,2018
fy2018-41086,2018-04-10,"Public Utilities Fund","Public Utilities","Educational Training","PETTY CASH CUSTODIAN",838791.00,$20.00,2018
fy2018-41087,2018-04-03,"Public Utilities Fund","Public Utilities","Electrical Services","DOMINION ENERGY VIRGINIA",838354.00,"$52,404.05",2018
fy2018-41088,2018-04-10,"Public Utilities Fund","Public Utilities","Electrical Services","DOMINION ENERGY VIRGINIA",838681.00,"$20,596.86",2018
fy2018-41089,2018-04-17,"Public Utilities Fund","Public Utilities","Electrical Services","DOMINION ENERGY VIRGINIA",839213.00,"$2,449.96",2018
fy2018-41090,2018-04-24,"Public Utilities Fund","Public Utilities","Electrical Services","RAPPAHANNOCK ELECTRIC COOP",839742.00,"$26,027.75",2018
fy2018-41091,2018-04-09,"Public Utilities Fund","Public Utilities","Fees & Misc Charges","DEPARTMENT OF",10318.00,$200.00,2018
fy2018-41092,2018-04-09,"Public Utilities Fund","Public Utilities","Fees & Misc Charges","UPS 000000F151",10318.00,$94.80,2018
fy2018-41093,2018-04-09,"Public Utilities Fund","Public Utilities","Fees & Misc Charges","VA DPOR",10318.00,$250.00,2018
fy2018-41094,2018-04-10,"Public Utilities Fund","Public Utilities","Fees & Misc Charges","TREASURER OF VIRGINIA",838856.00,"$1,200.00",2018
fy2018-41095,2018-04-10,"Public Utilities Fund","Public Utilities","Fees & Misc Charges","SEAY MARK",838817.00,$60.00,2018
fy2018-41096,2018-04-03,"Public Utilities Fund","Public Utilities","Fees Sludge Disposal","CFS GROUP LLC",838311.00,"$14,938.57",2018
fy2018-41097,2018-04-10,"Public Utilities Fund","Public Utilities","Fees Sludge Disposal","LYTTLE SERVICE CO LLC",838767.00,$960.00,2018
fy2018-41098,2018-04-17,"Public Utilities Fund","Public Utilities","Fees Sludge Disposal","LYTTLE SERVICE CO LLC",839328.00,$640.00,2018
fy2018-41099,2018-04-24,"Public Utilities Fund","Public Utilities","Fees Sludge Disposal","CFS GROUP LLC",839567.00,"$22,150.29",2018
fy2018-41100,2018-04-03,"Public Utilities Fund","Public Utilities","Lease & Rentals Facility","HARRIS EXCAVATING CO INC",838400.00,"$1,507.50",2018
fy2018-41101,2018-04-03,"Public Utilities Fund","Public Utilities","Lease & Rentals Facility","HANNEMAN FOREST PRODUCTS LLC",838398.00,"$1,175.00",2018
fy2018-41102,2018-04-09,"Public Utilities Fund","Public Utilities","Lease & Rentals Facility","RICHARD E HOLLAND JR PROPERTIES LLC",837685.00,"-$3,041.00",2018
fy2018-41103,2018-04-17,"Public Utilities Fund","Public Utilities","Lease & Rentals Facility","RICHARD E HOLLAND JR PROPERTIES LLC",200025.00,"$3,041.00",2018
fy2018-41104,2018-04-17,"Public Utilities Fund","Public Utilities","Lease & Rentals Facility","PORTABLE WASTE SOLUTIONS LLC",839371.00,$70.00,2018
fy2018-41105,2018-04-17,"Public Utilities Fund","Public Utilities","Lease & Rentals Facility","RICHARD E HOLLAND JR PROPERTIES LLC",839048.00,"-$3,041.00",2018
fy2018-41106,2018-04-11,"Public Utilities Fund","Public Utilities","Lease & Rentals Facility","RICHARD E HOLLAND JR PROPERTIES LLC",839048.00,"$3,041.00",2018
fy2018-41107,2018-04-10,"Public Utilities Fund","Public Utilities","Machinery & Equipment Addtl","CORE & MAIN LP",838666.00,"$2,616.32",2018
fy2018-41108,2018-04-17,"Public Utilities Fund","Public Utilities","Machinery & Equipment Addtl","CORE & MAIN LP",839185.00,"$52,422.80",2018
fy2018-41109,2018-04-09,"Public Utilities Fund","Public Utilities","Maint Svc Contract Copiers","RICOH USA, INC",10318.00,$198.07,2018
fy2018-41110,2018-04-17,"Public Utilities Fund","Public Utilities","Maint Svc Contract Copiers","XEROX CORPORATION",839510.00,$46.53,2018
fy2018-41111,2018-04-03,"Public Utilities Fund","Public Utilities","Maintenance Service Contracts","CARTER MACHINERY CO INC",838308.00,$917.32,2018
fy2018-41112,2018-04-03,"Public Utilities Fund","Public Utilities","Maintenance Service Contracts","STERICYCLE INC",838509.00,$27.00,2018
fy2018-41113,2018-04-09,"Public Utilities Fund","Public Utilities","Maintenance Service Contracts","AIRGAS USA LLC",837433.00,-$190.91,2018
fy2018-41114,2018-04-10,"Public Utilities Fund","Public Utilities","Maintenance Service Contracts",DATAMATX,838675.00,$371.08,2018
fy2018-41115,2018-04-10,"Public Utilities Fund","Public Utilities","Maintenance Service Contracts","CARTER MACHINERY CO INC",838649.00,$53.96,2018
fy2018-41116,2018-04-10,"Public Utilities Fund","Public Utilities","Maintenance Service Contracts","VIRGINIA WATER SYSTEMS",838878.00,$199.00,2018
fy2018-41117,2018-04-17,"Public Utilities Fund","Public Utilities","Maintenance Service Contracts","UNITED STATES GEOLOGICAL SURVEY",839477.00,"$5,737.50",2018
fy2018-41118,2018-04-17,"Public Utilities Fund","Public Utilities","Maintenance Service Contracts","VIRGINIA WATER SYSTEMS",839491.00,"$1,860.00",2018
fy2018-41119,2018-04-24,"Public Utilities Fund","Public Utilities","Maintenance Service Contracts","ENVIRONMENTAL SAFETY PROFESSIONALS INC",839608.00,$90.00,2018
fy2018-41120,2018-04-24,"Public Utilities Fund","Public Utilities","Maintenance Service Contracts","INSTRUMENTATION SVCS INC",839662.00,"$5,495.00",2018
fy2018-41121,2018-04-24,"Public Utilities Fund","Public Utilities","Maintenance Service Contracts","AIRGAS USA LLC",839520.00,$208.57,2018
fy2018-41122,2018-04-11,"Public Utilities Fund","Public Utilities","Maintenance Service Contracts","AIRGAS USA LLC",838903.00,$190.91,2018
fy2018-41123,2018-04-17,"Public Utilities Fund","Public Utilities","Maintenance Service Contracts","RICHMOND OXYGEN CO",839395.00,$10.50,2018
fy2018-41124,2018-04-24,"Public Utilities Fund","Public Utilities","Maintenance Service Contracts","ALLMAX SOFTWARE INC",839522.00,"$1,650.00",2018
fy2018-41125,2018-04-10,"Public Utilities Fund","Public Utilities",Postage,DATAMATX,838675.00,"$5,087.25",2018
fy2018-41126,2018-04-10,"Public Utilities Fund","Public Utilities","Printing & Binding",DATAMATX,838675.00,$686.32,2018
fy2018-41127,2018-04-10,"Public Utilities Fund","Public Utilities","Printing & Binding","ASSOCIATED PRINTING SERVICES INC",838618.00,$984.00,2018
fy2018-41128,2018-04-09,"Public Utilities Fund","Public Utilities","Professional Health Services","BON SECOURS REGIONAL MED CTR",837471.00,"-$1,114.50",2018
fy2018-41129,2018-04-11,"Public Utilities Fund","Public Utilities","Professional Health Services","BON SECOURS REGIONAL MED CTR",838929.00,"$1,114.50",2018
fy2018-41130,2018-04-03,"Public Utilities Fund","Public Utilities","Professional Services","HAMPTON ROADS SANITATION DISTRICT",838397.00,$490.86,2018
fy2018-41131,2018-04-10,"Public Utilities Fund","Public Utilities","Professional Services","AIR WATER & SOIL LABORATORIES INC",838604.00,$743.50,2018
fy2018-41132,2018-04-10,"Public Utilities Fund","Public Utilities","Professional Services","JAMES R. REED & ASSOC.",838748.00,$458.00,2018
fy2018-41133,2018-04-10,"Public Utilities Fund","Public Utilities","Professional Services",DATAMATX,838675.00,$570.31,2018
fy2018-41134,2018-04-17,"Public Utilities Fund","Public Utilities","Professional Services","AIR WATER & SOIL LABORATORIES INC",839104.00,$392.00,2018
fy2018-41135,2018-04-10,"Public Utilities Fund","Public Utilities","Professional Services","ELECTRICAL EQUIPMENT CO.",838686.00,"$1,606.50",2018
fy2018-41136,2018-04-24,"Public Utilities Fund","Public Utilities","Professional Services","AIR WATER & SOIL LABORATORIES INC",839518.00,$486.00,2018
fy2018-41137,2018-04-24,"Public Utilities Fund","Public Utilities","Professional Services","ENVIRONMENTAL SAFETY PROFESSIONALS INC",839608.00,$90.00,2018
fy2018-41138,2018-04-24,"Public Utilities Fund","Public Utilities","Professional Services","MCCORMICK TAYLOR INC",839700.00,"$2,344.25",2018
fy2018-41139,2018-04-24,"Public Utilities Fund","Public Utilities","Professional Services","TREASURER OF VIRGINIA",839801.00,$44.23,2018
fy2018-41140,2018-04-17,"Public Utilities Fund","Public Utilities","Professional Services","ANALYTICS CORPORATION",839109.00,$112.00,2018
fy2018-41141,2018-04-17,"Public Utilities Fund","Public Utilities","Professional Services","JAMES R. REED & ASSOC.",839298.00,$63.00,2018
fy2018-41142,2018-04-03,"Public Utilities Fund","Public Utilities","Purchase of Sewer","COUNTY OF HENRICO",837512.00,"-$121,164.65",2018
fy2018-41143,2018-04-04,"Public Utilities Fund","Public Utilities","Purchase of Sewer","COUNTY OF HENRICO",838592.00,"$121,164.65",2018
fy2018-41144,2018-04-03,"Public Utilities Fund","Public Utilities","Purchase of Water Richmond","CITY OF RICHMOND",838318.00,"$107,292.00",2018
fy2018-41145,2018-04-03,"Public Utilities Fund","Public Utilities","Purchase of Water Route 33","COUNTY OF HENRICO",837512.00,"-$2,637.09",2018
fy2018-41146,2018-04-04,"Public Utilities Fund","Public Utilities","Purchase of Water Route 33","COUNTY OF HENRICO",838592.00,"$2,637.09",2018
fy2018-41147,2018-04-10,"Public Utilities Fund","Public Utilities","R&M Svcs - Facilities","JAMES RIVER TREE SERVICE",838750.00,"$1,900.00",2018
fy2018-41148,2018-04-10,"Public Utilities Fund","Public Utilities","R&M Svcs - Facilities","WHITLEY CURTIS W",838886.00,"$1,800.00",2018
fy2018-41149,2018-04-17,"Public Utilities Fund","Public Utilities","R&M Svcs - Facilities","ABLE AND ASSOCIATES LLC",839098.00,$892.50,2018
fy2018-41150,2018-04-24,"Public Utilities Fund","Public Utilities","R&M Svcs - Facilities","JAMES RIVER TREE SERVICE",839669.00,$500.00,2018
fy2018-41151,2018-04-17,"Public Utilities Fund","Public Utilities","R&M Svcs - Facilities","WHITLEY CURTIS W",839503.00,"$5,850.00",2018
fy2018-41152,2018-04-09,"Public Utilities Fund","Public Utilities","Repair & Maintenance Services","REA SERVICES I",10318.00,$267.25,2018
fy2018-41153,2018-04-09,"Public Utilities Fund","Public Utilities","Repair & Maintenance Services","COLE-PARMER INSTRUMENT CO",837499.00,"-$2,315.25",2018
fy2018-41154,2018-04-10,"Public Utilities Fund","Public Utilities","Repair & Maintenance Services","DAPARAK, INC.",838674.00,"$7,094.64",2018
fy2018-41155,2018-04-10,"Public Utilities Fund","Public Utilities","Repair & Maintenance Services","RICHMOND TRAFFIC CONTROL INC",838802.00,$578.00,2018
fy2018-41156,2018-04-11,"Public Utilities Fund","Public Utilities","Repair & Maintenance Services","COLE-PARMER INSTRUMENT CO",838948.00,"$2,315.25",2018
fy2018-41157,2018-04-10,"Public Utilities Fund","Public Utilities","Repair & Maintenance Services","ELECTRICAL EQUIPMENT CO.",838686.00,$464.17,2018
fy2018-41158,2018-04-17,"Public Utilities Fund","Public Utilities","Repair & Maintenance Services","SUPERIOR EXCAVATING & CONSTRUCTION INC",839446.00,"$15,412.10",2018
fy2018-41159,2018-04-17,"Public Utilities Fund","Public Utilities","Repair & Maintenance Services","XYLEM DEWATERING SOLUTIONS INC",839513.00,"$6,397.14",2018
fy2018-41160,2018-04-24,"Public Utilities Fund","Public Utilities","Repair & Maintenance Services","ELECTRICAL EQUIPMENT CO.",839605.00,"$16,658.27",2018
fy2018-41161,2018-04-24,"Public Utilities Fund","Public Utilities","Repair & Maintenance Services","LYTTLE SERVICE CO LLC",839696.00,$320.00,2018
fy2018-41162,2018-04-03,"Public Utilities Fund","Public Utilities","Small Capital Outlay","TENCARVA MACHINERY CO",838521.00,"$1,110.00",2018
fy2018-41163,2018-04-03,"Public Utilities Fund","Public Utilities","Small Capital Outlay","COLE-PARMER INSTRUMENT CO",838324.00,"$2,251.01",2018
fy2018-41164,2018-04-24,"Public Utilities Fund","Public Utilities","Small Capital Outlay","COLONIAL SCIENTIFIC, INC.",839577.00,$664.55,2018
fy2018-41165,2018-04-24,"Public Utilities Fund","Public Utilities","Small Capital Outlay","VIRGINIA CUSTOM BUILDINGS AND PLAY CENTERS LLC",839816.00,"$3,301.40",2018
fy2018-41166,2018-04-03,"Public Utilities Fund","Public Utilities","Small Tools","ASHLAND ACE HARDWARE",838274.00,$199.99,2018
fy2018-41167,2018-04-09,"Public Utilities Fund","Public Utilities","Small Tools","THE HOME DEPOT",10318.00,$267.85,2018
fy2018-41168,2018-04-09,"Public Utilities Fund","Public Utilities","Small Tools","HANOVER TOOL INC",837580.00,-$16.00,2018
fy2018-41169,2018-04-10,"Public Utilities Fund","Public Utilities","Small Tools","HANOVER TOOL INC",838725.00,$51.49,2018
fy2018-41170,2018-04-11,"Public Utilities Fund","Public Utilities","Small Tools","HANOVER TOOL INC",838987.00,$16.00,2018
fy2018-41171,2018-04-17,"Public Utilities Fund","Public Utilities","Small Tools","HANOVER TOOL INC",839269.00,$99.94,2018
fy2018-41172,2018-04-24,"Public Utilities Fund","Public Utilities","Small Tools","FASTENAL COMPANY",839613.00,$55.55,2018
fy2018-41173,2018-04-03,"Public Utilities Fund","Public Utilities","Subsistence & Lodging","HENDRICK ROBERT",838402.00,$91.31,2018
fy2018-41174,2018-04-10,"Public Utilities Fund","Public Utilities","Subsistence & Lodging","PETTY CASH CUSTODIAN",838791.00,$60.16,2018
fy2018-41175,2018-04-03,"Public Utilities Fund","Public Utilities","Supplies Chemical","UNIVAR USA INC",838547.00,"$3,201.67",2018
fy2018-41176,2018-04-03,"Public Utilities Fund","Public Utilities","Supplies Chemical","DOMINION CHEMICAL CO INC",838353.00,"$1,199.65",2018
fy2018-41177,2018-04-10,"Public Utilities Fund","Public Utilities","Supplies Chemical","BRENNTAG MID-SOUTH INC",838639.00,"$3,366.30",2018
fy2018-41178,2018-04-17,"Public Utilities Fund","Public Utilities","Supplies Chemical","GOVERNMENT MLO SUPPLIES USA INC",839254.00,"$7,400.00",2018
fy2018-41179,2018-04-10,"Public Utilities Fund","Public Utilities","Supplies Chemical","UNIVAR USA INC",838865.00,"$4,014.14",2018
fy2018-41180,2018-04-24,"Public Utilities Fund","Public Utilities","Supplies Chemical","BRENNTAG MID-SOUTH INC",839557.00,"$2,244.20",2018
fy2018-41181,2018-04-24,"Public Utilities Fund","Public Utilities","Supplies Chemical","WATER GUARD INC",839820.00,$492.00,2018
fy2018-41182,2018-04-24,"Public Utilities Fund","Public Utilities","Supplies Chemical",XELERA2,839833.00,$960.00,2018
fy2018-41183,2018-04-24,"Public Utilities Fund","Public Utilities","Supplies Chemical","GEORGE S COYNE CHEMICAL CO INC",839628.00,"$14,783.04",2018
fy2018-41184,2018-04-24,"Public Utilities Fund","Public Utilities","Supplies Gas Grease & Oil","NAPA/GENUINE PARTS CO.",839716.00,$20.00,2018
fy2018-41185,2018-04-17,"Public Utilities Fund","Public Utilities","Supplies Gas Grease & Oil","PUGH LUBRICANTS LLC/PUGH OIL COMAPNY INC",839379.00,$511.59,2018
fy2018-41186,2018-04-03,"Public Utilities Fund","Public Utilities","Supplies Medical & Lab","ENVIRONMENTAL RESOURCE ASSOCIATES",838361.00,$830.07,2018
fy2018-41187,2018-04-03,"Public Utilities Fund","Public Utilities","Supplies Medical & Lab","HACH COMPANY",838391.00,$461.32,2018
fy2018-41188,2018-04-03,"Public Utilities Fund","Public Utilities","Supplies Medical & Lab","IDEXX DISTRIBUTION CORP.",838409.00,$613.70,2018
fy2018-41189,2018-04-09,"Public Utilities Fund","Public Utilities","Supplies Medical & Lab","FISHER SCIENTIFIC CO LLC",837551.00,-$61.36,2018
fy2018-41190,2018-04-10,"Public Utilities Fund","Public Utilities","Supplies Medical & Lab","FISHER SCIENTIFIC CO LLC",838699.00,$154.58,2018
fy2018-41191,2018-04-10,"Public Utilities Fund","Public Utilities","Supplies Medical & Lab","ENVIRONMENTAL RESOURCE ASSOCIATES",838689.00,"$1,032.19",2018
fy2018-41192,2018-04-11,"Public Utilities Fund","Public Utilities","Supplies Medical & Lab","FISHER SCIENTIFIC CO LLC",838970.00,$61.36,2018
fy2018-41193,2018-04-10,"Public Utilities Fund","Public Utilities","Supplies Medical & Lab","HACH COMPANY",838721.00,$46.56,2018
fy2018-41194,2018-04-10,"Public Utilities Fund","Public Utilities","Supplies Medical & Lab","IVES EQUIPMENT CORPORATION",838745.00,$53.21,2018
fy2018-41195,2018-04-24,"Public Utilities Fund","Public Utilities","Supplies Medical & Lab","FISHER SCIENTIFIC CO LLC",839617.00,$479.37,2018
fy2018-41196,2018-04-24,"Public Utilities Fund","Public Utilities","Supplies Medical & Lab","HACH COMPANY",839642.00,$280.93,2018
fy2018-41197,2018-04-09,"Public Utilities Fund","Public Utilities","Supplies Office","IN  XLDESIGN4U",10318.00,$47.00,2018
fy2018-41198,2018-04-09,"Public Utilities Fund","Public Utilities","Supplies Office","THE HOME DEPOT",10318.00,$29.10,2018
fy2018-41199,2018-04-09,"Public Utilities Fund","Public Utilities","Supplies Office","AMAZON MKTPLAC",10318.00,$561.93,2018
fy2018-41200,2018-04-09,"Public Utilities Fund","Public Utilities","Supplies Office",Amazon.com,10318.00,$400.46,2018
fy2018-41201,2018-04-09,"Public Utilities Fund","Public Utilities","Supplies Office","Staples Inc -",10318.00,$306.97,2018
fy2018-41202,2018-04-10,"Public Utilities Fund","Public Utilities","Supplies Office","TSRC INC",838860.00,$9.48,2018
fy2018-41203,2018-04-17,"Public Utilities Fund","Public Utilities","Supplies Office","TSRC INC",839469.00,$44.21,2018
fy2018-41204,2018-04-24,"Public Utilities Fund","Public Utilities","Supplies Office","BALL OFFICE PRODUCTS LLC",839539.00,$81.45,2018
fy2018-41205,2018-04-03,"Public Utilities Fund","Public Utilities","Supplies Repair & Maint",AUTOMATIONDIRECT.COM,838282.00,$652.50,2018
fy2018-41206,2018-04-03,"Public Utilities Fund","Public Utilities","Supplies Repair & Maint","FORTILINE INC- FORTLINE WATERWORKS",838374.00,$254.03,2018
fy2018-41207,2018-04-03,"Public Utilities Fund","Public Utilities","Supplies Repair & Maint","LUCK STONE CORPORATION",838440.00,$441.26,2018
fy2018-41208,2018-04-03,"Public Utilities Fund","Public Utilities","Supplies Repair & Maint","WOOD EQUIPMNT SERV CO INC",838581.00,"$1,030.64",2018
fy2018-41209,2018-04-03,"Public Utilities Fund","Public Utilities","Supplies Repair & Maint","ANDRITZ SEPARATION INC",838271.00,$512.14,2018
fy2018-41210,2018-04-03,"Public Utilities Fund","Public Utilities","Supplies Repair & Maint","CAPITAL TRISTATE",838305.00,"$1,074.74",2018
fy2018-41211,2018-04-03,"Public Utilities Fund","Public Utilities","Supplies Repair & Maint","COMMONWEALTH ENGINEERING AND SALES",838327.00,$543.35,2018
fy2018-41212,2018-04-03,"Public Utilities Fund","Public Utilities","Supplies Repair & Maint","DEIST INDUSTRIES INC",838343.00,"$1,800.00",2018
fy2018-41213,2018-04-03,"Public Utilities Fund","Public Utilities","Supplies Repair & Maint","AQUA VA",838272.00,$17.89,2018
fy2018-41214,2018-04-03,"Public Utilities Fund","Public Utilities","Supplies Repair & Maint","ATLANTIC PUMP & EQUIPMENT CO., INC.",838281.00,"$1,160.00",2018
fy2018-41215,2018-04-03,"Public Utilities Fund","Public Utilities","Supplies Repair & Maint","FASTENAL COMPANY",838368.00,$44.62,2018
fy2018-41216,2018-04-03,"Public Utilities Fund","Public Utilities","Supplies Repair & Maint","HACH COMPANY",838391.00,"$1,209.60",2018
fy2018-41217,2018-04-03,"Public Utilities Fund","Public Utilities","Supplies Repair & Maint","L B WATER SERVICE INC",838424.00,"$2,252.16",2018
fy2018-41218,2018-04-03,"Public Utilities Fund","Public Utilities","Supplies Repair & Maint","MARTIN MARIETTA MATERIALS",838447.00,"$1,698.99",2018
fy2018-41219,2018-04-03,"Public Utilities Fund","Public Utilities","Supplies Repair & Maint","NAPA/GENUINE PARTS CO.",838459.00,$24.53,2018
fy2018-41220,2018-04-03,"Public Utilities Fund","Public Utilities","Supplies Repair & Maint","ASHLAND ACE HARDWARE",838274.00,$156.73,2018
fy2018-41221,2018-04-03,"Public Utilities Fund","Public Utilities","Supplies Repair & Maint","ASHLAND POWER EQUIPMENT",838275.00,$15.38,2018
fy2018-41222,2018-04-03,"Public Utilities Fund","Public Utilities","Supplies Repair & Maint","FERGUSON ENTERPRISES INC",838369.00,$107.94,2018
fy2018-41223,2018-04-09,"Public Utilities Fund","Public Utilities","Supplies Repair & Maint","APPLIED INDUSTRIAL TECHNOLOGIES INC",837441.00,-$169.16,2018
fy2018-41224,2018-04-09,"Public Utilities Fund","Public Utilities","Supplies Repair & Maint","FERGUSON ENTERPRISES INC",837547.00,"-$1,522.50",2018
fy2018-41225,2018-04-09,"Public Utilities Fund","Public Utilities","Supplies Repair & Maint","RYAN HERCO PRODUCTS CORP",837697.00,-$808.32,2018
fy2018-41226,2018-04-09,"Public Utilities Fund","Public Utilities","Supplies Repair & Maint","AUTOMATIC CONTROLS OF VA",837451.00,"-$1,763.26",2018
fy2018-41227,2018-04-09,"Public Utilities Fund","Public Utilities","Supplies Repair & Maint","COLE-PARMER INSTRUMENT CO",837499.00,"-$2,246.78",2018
fy2018-41228,2018-04-09,"Public Utilities Fund","Public Utilities","Supplies Repair & Maint","DOMINION LOCK & SECURITY INC",837531.00,-$149.49,2018
fy2018-41229,2018-04-09,"Public Utilities Fund","Public Utilities","Supplies Repair & Maint","ELECTRICAL EQUIPMENT CO.",837537.00,"-$2,536.08",2018
fy2018-41230,2018-04-09,"Public Utilities Fund","Public Utilities","Supplies Repair & Maint","THOR SYSTEMS INC",837737.00,"-$7,139.00",2018
fy2018-41231,2018-04-09,"Public Utilities Fund","Public Utilities","Supplies Repair & Maint","USA BLUEBOOK",837747.00,"-$1,265.28",2018
fy2018-41232,2018-04-09,"Public Utilities Fund","Public Utilities","Supplies Repair & Maint","THE HOME DEPOT",10318.00,$60.90,2018
fy2018-41233,2018-04-10,"Public Utilities Fund","Public Utilities","Supplies Repair & Maint",GRAINGER,838713.00,$79.33,2018
fy2018-41234,2018-04-10,"Public Utilities Fund","Public Utilities","Supplies Repair & Maint","NAPA/GENUINE PARTS CO.",838779.00,$73.67,2018
fy2018-41235,2018-04-10,"Public Utilities Fund","Public Utilities","Supplies Repair & Maint","SUEZ TREATMENT SOLUTIONS INC",838834.00,$76.00,2018
fy2018-41236,2018-04-11,"Public Utilities Fund","Public Utilities","Supplies Repair & Maint","RYAN HERCO PRODUCTS CORP",839054.00,$808.32,2018
fy2018-41237,2018-04-10,"Public Utilities Fund","Public Utilities","Supplies Repair & Maint","FASTENAL COMPANY",838696.00,$104.06,2018
fy2018-41238,2018-04-10,"Public Utilities Fund","Public Utilities","Supplies Repair & Maint","FORTILINE INC- FORTLINE WATERWORKS",838702.00,$575.00,2018
fy2018-41239,2018-04-10,"Public Utilities Fund","Public Utilities","Supplies Repair & Maint","HANOVER COMPANY INC",838723.00,$177.00,2018
fy2018-41240,2018-04-10,"Public Utilities Fund","Public Utilities","Supplies Repair & Maint","NATIONWIDE ELECT SUPP CO",838781.00,$493.90,2018
fy2018-41241,2018-04-11,"Public Utilities Fund","Public Utilities","Supplies Repair & Maint","APPLIED INDUSTRIAL TECHNOLOGIES INC",838910.00,$169.16,2018
fy2018-41242,2018-04-11,"Public Utilities Fund","Public Utilities","Supplies Repair & Maint","DOMINION LOCK & SECURITY INC",838962.00,$149.49,2018
fy2018-41243,2018-04-11,"Public Utilities Fund","Public Utilities","Supplies Repair & Maint","AUTOMATIC CONTROLS OF VA",838914.00,"$1,763.26",2018
fy2018-41244,2018-04-11,"Public Utilities Fund","Public Utilities","Supplies Repair & Maint","COLE-PARMER INSTRUMENT CO",838948.00,"$2,246.78",2018
fy2018-41245,2018-04-11,"Public Utilities Fund","Public Utilities","Supplies Repair & Maint","THOR SYSTEMS INC",839077.00,"$7,139.00",2018
fy2018-41246,2018-04-11,"Public Utilities Fund","Public Utilities","Supplies Repair & Maint","ELECTRICAL EQUIPMENT CO.",838964.00,"$2,536.08",2018
fy2018-41247,2018-04-11,"Public Utilities Fund","Public Utilities","Supplies Repair & Maint","FERGUSON ENTERPRISES INC",838969.00,"$1,522.50",2018
fy2018-41248,2018-04-11,"Public Utilities Fund","Public Utilities","Supplies Repair & Maint","USA BLUEBOOK",839083.00,"$1,265.28",2018
fy2018-41249,2018-04-10,"Public Utilities Fund","Public Utilities","Supplies Repair & Maint","ASHLAND ACE HARDWARE",838617.00,$27.98,2018
fy2018-41250,2018-04-10,"Public Utilities Fund","Public Utilities","Supplies Repair & Maint","CAPITAL TRISTATE",838647.00,$272.73,2018
fy2018-41251,2018-04-10,"Public Utilities Fund","Public Utilities","Supplies Repair & Maint","HEYWARD INCORPORATED",838734.00,"$2,473.23",2018
fy2018-41252,2018-04-10,"Public Utilities Fund","Public Utilities","Supplies Repair & Maint",XELERA2,838892.00,$858.00,2018
fy2018-41253,2018-04-17,"Public Utilities Fund","Public Utilities","Supplies Repair & Maint","FASTENAL COMPANY",839230.00,$23.98,2018
fy2018-41254,2018-04-17,"Public Utilities Fund","Public Utilities","Supplies Repair & Maint","NAPA/GENUINE PARTS CO.",839352.00,$113.44,2018
fy2018-41255,2018-04-17,"Public Utilities Fund","Public Utilities","Supplies Repair & Maint","FUSE COMPANY",837555.00,-$47.00,2018
fy2018-41256,2018-04-17,"Public Utilities Fund","Public Utilities","Supplies Repair & Maint",GRAINGER,839255.00,"$1,074.52",2018
fy2018-41257,2018-04-17,"Public Utilities Fund","Public Utilities","Supplies Repair & Maint","SUEZ TREATMENT SOLUTIONS INC",839445.00,"$5,935.25",2018
fy2018-41258,2018-04-17,"Public Utilities Fund","Public Utilities","Supplies Repair & Maint","SUPERIOR EXCAVATING & CONSTRUCTION INC",839446.00,"$2,898.66",2018
fy2018-41259,2018-04-17,"Public Utilities Fund","Public Utilities","Supplies Repair & Maint","USA BLUEBOOK",839479.00,$204.17,2018
fy2018-41260,2018-04-24,"Public Utilities Fund","Public Utilities","Supplies Repair & Maint","BALL OFFICE PRODUCTS LLC",839539.00,$499.60,2018
fy2018-41261,2018-04-17,"Public Utilities Fund","Public Utilities","Supplies Repair & Maint","APPLIED INDUSTRIAL TECHNOLOGIES INC",839113.00,"$2,667.44",2018
fy2018-41262,2018-04-17,"Public Utilities Fund","Public Utilities","Supplies Repair & Maint","CAPITAL TRISTATE",839157.00,$319.97,2018
fy2018-41263,2018-04-17,"Public Utilities Fund","Public Utilities","Supplies Repair & Maint","FORTILINE INC- FORTLINE WATERWORKS",839241.00,"$2,174.82",2018
fy2018-41264,2018-04-24,"Public Utilities Fund","Public Utilities","Supplies Repair & Maint","APPLIED INDUSTRIAL TECHNOLOGIES INC",839524.00,$179.98,2018
fy2018-41265,2018-04-24,"Public Utilities Fund","Public Utilities","Supplies Repair & Maint","CAPITAL TRISTATE",839562.00,$72.80,2018
fy2018-41266,2018-04-24,"Public Utilities Fund","Public Utilities","Supplies Repair & Maint","NAPA/GENUINE PARTS CO.",839716.00,$8.94,2018
fy2018-41267,2018-04-24,"Public Utilities Fund","Public Utilities","Supplies Repair & Maint","SHERWOOD-LOGAN & ASSOCIATES INC",839771.00,"$1,351.00",2018
fy2018-41268,2018-04-24,"Public Utilities Fund","Public Utilities","Supplies Repair & Maint","ASHLAND ACE HARDWARE",839528.00,$153.04,2018
fy2018-41269,2018-04-24,"Public Utilities Fund","Public Utilities","Supplies Repair & Maint",AUTOMATIONDIRECT.COM,839533.00,$373.75,2018
fy2018-41270,2018-04-24,"Public Utilities Fund","Public Utilities","Supplies Repair & Maint","ELECTRICAL EQUIPMENT CO.",839605.00,$117.29,2018
fy2018-41271,2018-04-24,"Public Utilities Fund","Public Utilities","Supplies Repair & Maint","FASTENAL COMPANY",839613.00,$248.78,2018
fy2018-41272,2018-04-24,"Public Utilities Fund","Public Utilities","Supplies Repair & Maint","MECHANICSVILLE RENTAL CENTER",839703.00,$581.00,2018
fy2018-41273,2018-04-17,"Public Utilities Fund","Public Utilities","Supplies Repair & Maint","ASHLAND ACE HARDWARE",839116.00,$26.98,2018
fy2018-41274,2018-04-17,"Public Utilities Fund","Public Utilities","Supplies Repair & Maint","ENGINEERING PRODUCTS & CONTROLS INC",839222.00,$208.00,2018
fy2018-41275,2018-04-17,"Public Utilities Fund","Public Utilities","Supplies Repair & Maint","TRIO FASTENERS INC",839466.00,$25.00,2018
fy2018-41276,2018-04-17,"Public Utilities Fund","Public Utilities","Supplies Repair & Maint","FUSE COMPANY",839622.00,$47.00,2018
fy2018-41277,2018-04-24,"Public Utilities Fund","Public Utilities","Supplies Repair & Maint","BATTERIES PLUS",839541.00,$57.90,2018
fy2018-41278,2018-04-24,"Public Utilities Fund","Public Utilities","Supplies Repair & Maint","MARTIN MARIETTA MATERIALS",839699.00,$275.50,2018
fy2018-41279,2018-04-24,"Public Utilities Fund","Public Utilities","Supplies Repair & Maint","NATIONWIDE ELECT SUPP CO",839717.00,$673.00,2018
fy2018-41280,2018-04-24,"Public Utilities Fund","Public Utilities","Supplies Repair & Maint","SERVICE MACHINE & WELDING CO INC",839769.00,$26.39,2018
fy2018-41281,2018-04-03,"Public Utilities Fund","Public Utilities","Supplies Veh & Pw Eq Non-Fleet","CARTER MACHINERY CO INC",838308.00,$129.82,2018
fy2018-41282,2018-04-03,"Public Utilities Fund","Public Utilities","Supplies Veh & Pw Eq Non-Fleet","VIRGINIA PUBLIC WORKS EQUIPMENT COMPANY",838555.00,$82.93,2018
fy2018-41283,2018-04-03,"Public Utilities Fund","Public Utilities","Supplies Veh & Pw Eq Non-Fleet","NAPA/GENUINE PARTS CO.",838459.00,$180.24,2018
fy2018-41284,2018-04-10,"Public Utilities Fund","Public Utilities","Supplies Veh & Pw Eq Non-Fleet","CUSTOM HOSE & FITTING",838671.00,$7.20,2018
fy2018-41285,2018-04-17,"Public Utilities Fund","Public Utilities","Supplies Veh & Pw Eq Non-Fleet","VIRGINIA PUBLIC WORKS EQUIPMENT COMPANY",839489.00,$171.43,2018
fy2018-41286,2018-04-24,"Public Utilities Fund","Public Utilities","Supplies Veh & Pw Eq Non-Fleet",GRAINGER,839635.00,$29.55,2018
fy2018-41287,2018-04-17,"Public Utilities Fund","Public Utilities","Supplies Veh & Pw Eq Non-Fleet","CUSTOM HOSE & FITTING",839196.00,$7.50,2018
fy2018-41288,2018-04-17,"Public Utilities Fund","Public Utilities","Supplies Veh & Pw Eq Non-Fleet","STANDBY SYSTEMS INC",839440.00,$196.75,2018
fy2018-41289,2018-04-17,"Public Utilities Fund","Public Utilities","Supplies Veh & Pwr Equip Fleet","NAPA/GENUINE PARTS CO.",839352.00,$435.31,2018
fy2018-41290,2018-04-03,"Public Utilities Fund","Public Utilities","Telecomm Wireless",AT&T,838278.00,$182.76,2018
fy2018-41291,2018-04-03,"Public Utilities Fund","Public Utilities","Telecomm Wireless",VERIZON,838550.00,$791.32,2018
fy2018-41292,2018-04-09,"Public Utilities Fund","Public Utilities","Telecomm Wireless","VZWRLSS MY VZ",10318.00,$230.90,2018
fy2018-41293,2018-04-09,"Public Utilities Fund","Public Utilities","Telecomm Wireless",VERIZON,837753.00,-$512.51,2018
fy2018-41294,2018-04-10,"Public Utilities Fund","Public Utilities","Telecomm Wireless","VERIZON WIRELESS",838871.00,"$1,205.11",2018
fy2018-41295,2018-04-10,"Public Utilities Fund","Public Utilities","Telecomm Wireless",VERIZON,838870.00,$139.25,2018
fy2018-41296,2018-04-11,"Public Utilities Fund","Public Utilities","Telecomm Wireless",VERIZON,839086.00,$512.51,2018
fy2018-41297,2018-04-17,"Public Utilities Fund","Public Utilities","Telecomm Wireless",VERIZON,839484.00,$272.97,2018
fy2018-41298,2018-04-24,"Public Utilities Fund","Public Utilities","Telecomm Wireless",VERIZON,839812.00,"$1,085.30",2018
fy2018-41299,2018-04-24,"Public Utilities Fund","Public Utilities","Telecomm Wireless","TREASURER OF VIRGINIA",839800.00,$750.01,2018
fy2018-41300,2018-04-24,"Public Utilities Fund","Public Utilities","Telecomm Wireless","VERIZON WIRELESS",839813.00,$269.08,2018
fy2018-41301,2018-04-04,"Public Utilities Fund","Public Utilities","Underground Utility","BENCHMARK VA LLC-SUBSURFACE UTILITY SERVICES",838590.00,"$15,790.00",2018
fy2018-41302,2018-04-03,"Public Utilities Fund","Public Utilities","Underground Utility","BENCHMARK VA LLC-SUBSURFACE UTILITY SERVICES",837458.00,"-$15,790.00",2018
fy2018-41303,2018-04-24,"Public Utilities Fund","Public Utilities","Underground Utility","BENCHMARK VA LLC-SUBSURFACE UTILITY SERVICES",839545.00,"$16,040.00",2018
fy2018-41304,2018-04-03,"Public Utilities Fund","Public Utilities","Uniforms & Wearing Apparel",GRAINGER,838387.00,$234.95,2018
fy2018-41305,2018-04-03,"Public Utilities Fund","Public Utilities","Uniforms & Wearing Apparel","CINTAS CORPORATION",838317.00,$208.16,2018
fy2018-41306,2018-04-03,"Public Utilities Fund","Public Utilities","Uniforms & Wearing Apparel","WORK DUDS",838582.00,$135.00,2018
fy2018-41307,2018-04-09,"Public Utilities Fund","Public Utilities","Uniforms & Wearing Apparel",STEELTOESHOESC,10318.00,$109.99,2018
fy2018-41308,2018-04-10,"Public Utilities Fund","Public Utilities","Uniforms & Wearing Apparel","CINTAS CORPORATION",838658.00,$365.45,2018
fy2018-41309,2018-04-17,"Public Utilities Fund","Public Utilities","Uniforms & Wearing Apparel","CINTAS CORPORATION",839173.00,$586.30,2018
fy2018-41310,2018-04-24,"Public Utilities Fund","Public Utilities","Uniforms & Wearing Apparel","CINTAS CORPORATION",839574.00,$353.22,2018
fy2018-41311,2018-04-24,"Public Utilities Fund","Public Utilities","Uniforms & Wearing Apparel","FASTENAL COMPANY",839613.00,$40.00,2018
fy2018-41312,2018-04-24,"Public Utilities Fund","Public Utilities","Uniforms & Wearing Apparel","SAFEWARE INC",839766.00,$607.70,2018
fy2018-41313,2018-04-24,"Public Utilities Fund","Public Utilities","Uniforms & Wearing Apparel","RED WING SHOE STORE",839746.00,$224.98,2018
fy2018-41314,2018-04-17,"Public Utilities Fund","Public Utilities","Uniforms & Wearing Apparel","RED WING SHOE STORE",839389.00,$127.49,2018
fy2018-41315,2018-04-24,"Public Utilities Fund","Public Utilities","Uniforms & Wearing Apparel","HANOVER COMPANY INC",839646.00,$135.00,2018
fy2018-41316,2018-04-24,"Public Utilities Fund","Public Utilities","Uniforms & Wearing Apparel","WORK DUDS",839829.00,$116.98,2018
fy2018-41317,2018-04-03,"County Improvements Fund","Public Works","Roadway Mgmt Projects","MCDONOUGH BOLYARD PECK",837635.00,"-$27,915.18",2018
fy2018-41318,2018-04-03,"County Improvements Fund","Public Works","Roadway Mgmt Projects","TIMMONS GROUP",838531.00,"$7,554.90",2018
fy2018-41319,2018-04-03,"County Improvements Fund","Public Works","Roadway Mgmt Projects","BERGER LARRY C AND LYNN N",838292.00,"$20,950.00",2018
fy2018-41320,2018-04-04,"County Improvements Fund","Public Works","Roadway Mgmt Projects","MCDONOUGH BOLYARD PECK",838597.00,"$27,915.18",2018
fy2018-41321,2018-04-09,"County Improvements Fund","Public Works","Roadway Mgmt Projects","BHM VA NEWSPAP",10318.00,$94.60,2018
fy2018-41322,2018-04-09,"County Improvements Fund","Public Works","Roadway Mgmt Projects","DEPT OF ENVIRO",10318.00,$971.04,2018
fy2018-41323,2018-04-09,"County Improvements Fund","Public Works","Roadway Mgmt Projects","JAY B CALL III ASSOC INC",837600.00,"-$4,550.00",2018
fy2018-41324,2018-04-10,"County Improvements Fund","Public Works","Roadway Mgmt Projects","KIMLEY-HORN & ASSOCIATES",838759.00,"$15,898.69",2018
fy2018-41325,2018-04-11,"County Improvements Fund","Public Works","Roadway Mgmt Projects","JAY B CALL III ASSOC INC",838999.00,"$4,550.00",2018
fy2018-41326,2018-04-10,"County Improvements Fund","Public Works","Roadway Mgmt Projects","ERM & ASSOCIATES LLC",838690.00,"$14,666.25",2018
fy2018-41327,2018-04-17,"County Improvements Fund","Public Works","Roadway Mgmt Projects",ARC,839114.00,$101.00,2018
fy2018-41328,2018-04-17,"County Improvements Fund","Public Works","Roadway Mgmt Projects","CARDNO INC",839158.00,"$10,557.50",2018
fy2018-41329,2018-04-17,"County Improvements Fund","Public Works","Roadway Mgmt Projects","SUPERIOR EXCAVATING & CONSTRUCTION",839447.00,"$3,347.20",2018
fy2018-41330,2018-04-17,"County Improvements Fund","Public Works","Roadway Mgmt Projects","UNION BANK & TRUST CO",839473.00,"$27,059.49",2018
fy2018-41331,2018-04-24,"County Improvements Fund","Public Works","Roadway Mgmt Projects","KIMLEY-HORN & ASSOCIATES",839678.00,"$22,555.58",2018
fy2018-41332,2018-04-24,"County Improvements Fund","Public Works","Roadway Mgmt Projects","TIMMONS GROUP",839798.00,"$51,578.99",2018
fy2018-41333,2018-04-17,"County Improvements Fund","Public Works","Roadway Mgmt Projects","ABERNATHY CONSTRUCTION CORPORATION",839097.00,"$514,130.30",2018
fy2018-41334,2018-04-17,"County Improvements Fund","Public Works","Roadway Mgmt Projects","MCDONOUGH BOLYARD PECK",839337.00,"$15,996.64",2018
fy2018-41335,2018-04-09,"County Improvements Fund","Public Works","Stormwater Management Projects","ERNST SEEDS",10318.00,$66.00,2018
fy2018-41336,2018-04-03,"General Fund","Public Works","Contractual Services","TREASURER OF VIRGINIA",838537.00,$600.00,2018
fy2018-41337,2018-04-09,"General Fund","Public Works","Educational Training","TNVIMS CONFERE",10318.00,$280.00,2018
fy2018-41338,2018-04-03,"General Fund","Public Works","Electrical Services","DOMINION ENERGY VIRGINIA",838354.00,$292.53,2018
fy2018-41339,2018-04-24,"General Fund","Public Works","Professional Services","KIMLEY-HORN & ASSOCIATES",839678.00,"$1,291.86",2018
fy2018-41340,2018-04-09,"General Fund","Public Works","Small Capital Outlay","THE SAFETY EQU",10318.00,$138.80,2018
fy2018-41341,2018-04-03,"General Fund","Public Works","Supplies Office","TSRC INC",838543.00,$199.64,2018
fy2018-41342,2018-04-09,"General Fund","Public Works","Supplies Office","TSRC INC",837743.00,-$280.50,2018
fy2018-41343,2018-04-09,"General Fund","Public Works","Supplies Office","BLS AUTODESK P",10318.00,$265.00,2018
fy2018-41344,2018-04-09,"General Fund","Public Works","Supplies Office","ACORN SALES CO",10318.00,$30.91,2018
fy2018-41345,2018-04-09,"General Fund","Public Works","Supplies Office",Amazon.com,10318.00,$385.98,2018
fy2018-41346,2018-04-11,"General Fund","Public Works","Supplies Office","TSRC INC",839081.00,$280.50,2018
fy2018-41347,2018-04-17,"General Fund","Public Works","Supplies Office","TSRC INC",839469.00,$141.52,2018
fy2018-41348,2018-04-24,"General Fund","Public Works","Supplies Office","TSRC INC",839805.00,$74.52,2018
fy2018-41349,2018-04-03,"General Fund","Public Works","Supplies Other Operating","DIAMOND SPRINGS WATER CO",838351.00,$4.00,2018
fy2018-41350,2018-04-10,"General Fund","Public Works","Supplies Other Operating","PETTY CASH CUSTODIAN",838791.00,$44.30,2018
fy2018-41351,2018-04-09,"General Fund","Public Works","Telecomm Wireless","VZWRLSS MY VZ",10318.00,$80.02,2018
fy2018-41352,2018-04-17,"General Fund","Public Works","Training Services","GROSSE, DYLAN",839261.00,$90.81,2018
fy2018-41353,2018-04-09,"General Fund","Public Works Operations",Advertising,SMARTSIGN,10318.00,$132.45,2018
fy2018-41354,2018-04-03,"General Fund","Public Works Operations","Contractual Services","CENTRAL VIRGINIA WASTE MANAGEMENT AUTHORITY",838310.00,$367.44,2018
fy2018-41355,2018-04-17,"General Fund","Public Works Operations","Contractual Services","CENTRAL VIRGINIA WASTE MANAGEMENT AUTHORITY",839165.00,"$6,275.76",2018
fy2018-41356,2018-04-24,"General Fund","Public Works Operations","Contractual Services","CENTRAL VIRGINIA WASTE MANAGEMENT AUTHORITY",839565.00,"$10,757.59",2018
fy2018-41357,2018-04-24,"General Fund","Public Works Operations","Dues & Memberships",SWANA,839790.00,$212.00,2018
fy2018-41358,2018-04-09,"General Fund","Public Works Operations","Educational Training","HILTON VIRGINI",10318.00,$167.30,2018
fy2018-41359,2018-04-09,"General Fund","Public Works Operations","Educational Training","PAYPAL  VRA",10318.00,$250.00,2018
fy2018-41360,2018-04-10,"General Fund","Public Works Operations","Educational Training","PETTY CASH CUSTODIAN",838791.00,$43.99,2018
fy2018-41361,2018-04-03,"General Fund","Public Works Operations","Electrical Services","DOMINION ENERGY VIRGINIA",838354.00,$605.52,2018
fy2018-41362,2018-04-09,"General Fund","Public Works Operations","Electrical Services","RAPPAHANNOCK ELECTRIC COOP",837679.00,-$664.33,2018
fy2018-41363,2018-04-11,"General Fund","Public Works Operations","Electrical Services","RAPPAHANNOCK ELECTRIC COOP",839044.00,$664.33,2018
fy2018-41364,2018-04-17,"General Fund","Public Works Operations","Electrical Services","DOMINION ENERGY VIRGINIA",839213.00,"$1,123.98",2018
fy2018-41365,2018-04-24,"General Fund","Public Works Operations","Electrical Services","DOMINION ENERGY VIRGINIA",839598.00,$717.74,2018
fy2018-41366,2018-04-24,"General Fund","Public Works Operations","Electrical Services","RAPPAHANNOCK ELECTRIC COOP",839741.00,$681.78,2018
fy2018-41367,2018-04-09,"General Fund","Public Works Operations","Machinery & Equipment Addtl","ASHLAND ACE HD",10318.00,"$3,399.99",2018
fy2018-41368,2018-04-09,"General Fund","Public Works Operations","Machinery & Equipment Repl","HANOVER TOOL INC",837580.00,"-$2,900.00",2018
fy2018-41369,2018-04-11,"General Fund","Public Works Operations","Machinery & Equipment Repl","HANOVER TOOL INC",838987.00,"$2,900.00",2018
fy2018-41370,2018-04-24,"General Fund","Public Works Operations","Mileage Reimbursement","COLE J VANCE",839576.00,$11.45,2018
fy2018-41371,2018-04-24,"General Fund","Public Works Operations","Mileage Reimbursement","BOGGS GEORGE L",839550.00,$13.41,2018
fy2018-41372,2018-04-09,"General Fund","Public Works Operations","Professional Health Services","BON SECOURS REGIONAL MED CTR",837471.00,-$283.00,2018
fy2018-41373,2018-04-11,"General Fund","Public Works Operations","Professional Health Services","BON SECOURS REGIONAL MED CTR",838929.00,$283.00,2018
fy2018-41374,2018-04-24,"General Fund","Public Works Operations","Professional Services","GOLDER ASSOCIATES INC",839632.00,"$5,381.97",2018
fy2018-41375,2018-04-09,"General Fund","Public Works Operations","R&M Svcs - Radios",Amazon.com,10318.00,$274.72,2018
fy2018-41376,2018-04-24,"General Fund","Public Works Operations","R&M Svcs - Radios","NETWORKFLEET INC",839718.00,$19.00,2018
fy2018-41377,2018-04-03,"General Fund","Public Works Operations","Repair & Maintenance Services","PROBITY SERVICE CORPORATION",838480.00,$390.00,2018
fy2018-41378,2018-04-09,"General Fund","Public Works Operations","Repair & Maintenance Services","VAMAC HANOVER",837750.00,-$58.29,2018
fy2018-41379,2018-04-11,"General Fund","Public Works Operations","Repair & Maintenance Services","VAMAC HANOVER",839085.00,$58.29,2018
fy2018-41380,2018-04-17,"General Fund","Public Works Operations","Repair & Maintenance Services","BUG BUSTERS PEST CONTROL SERVICES INC",839147.00,$10.00,2018
